Ref No,Fund Type,Dept,Cost Centre Description    ,Description    ,Creditor Name    ,GL Code Net Amount,Payment date        
2,Revenue,CAHD,North - bed purchasing and direct  payments,Respite Planned - Residential, Amber House,9805.79, 22-Oct-2019
3,Revenue,CAHD,North - bed purchasing and direct  payments,Respite Planned - Residential, Amber House,6193.13, 22-Oct-2019
4,Revenue,CAHD,South - Bed Purchasing and Direct payments,Permanent Nursing, Stanley House,6211.88, 22-Oct-2019
5,Revenue,CAHD,Jointly Funded H&SC Packages,Permanent Nursing, Stanley House,1776.56, 22-Oct-2019
6,Revenue,CAHD,North - bed purchasing and direct  payments,Permanent Nursing, Stanley House,8209.68, 22-Oct-2019
7,Revenue,CAHD,Central - Bed Purchasing and Direct Payments,Permanent Nursing, Stanley House,4904.09, 22-Oct-2019
8,Revenue,CAHD,Central - Bed Purchasing and Direct Payments,Permanent Nursing, Stanley House,3678.07, 22-Oct-2019
9,Revenue,CAHD,MH Purchasing - Younger,Permanent Nursing, Stanley House,4738.16, 22-Oct-2019
10,Revenue,CAHD,Jointly Funded H&SC Packages,Permanent Nursing, Stanley House,4522.60, 22-Oct-2019
11,Revenue,CAHD,18-25 Year Olds,Permanent Residential,1 St Georges House,13333.52, 22-Oct-2019
12,Revenue,CAHD,CSC - LAC Housing Support Grants,Grants to Voluntary Bodies,1625 Independent People,3343.00, 07-Oct-2019
13,Revenue,CAHD,CSC - Care Leavers Independent Living,Grants to Voluntary Bodies,1625 Independent People,1074.50, 07-Oct-2019
14,Revenue,CAHD,CSC - LAC Housing Support Grants,Grants to Voluntary Bodies,1625 Independent People,3343.00, 07-Oct-2019
15,Revenue,CAHD,CSC - Care Leavers Independent Living,Grants to Voluntary Bodies,1625 Independent People,859.60, 08-Oct-2019
16,Revenue,CAHD,CSC - Care Leavers Independent Living,Grants to Voluntary Bodies,1625 Independent People,13266.00, 09-Oct-2019
17,Revenue,CAHD,CSC - LAC Housing Support Grants,Grants to Voluntary Bodies,1625 Independent People,3343.00, 08-Oct-2019
18,Revenue,CAHD,Supporting People Programme,Grants to Voluntary Bodies,1625 Independent People,15167.00, 01-Oct-2019
19,Revenue,CAHD,Supporting People Programme,Grants to Voluntary Bodies,1625 Independent People,10046.00, 01-Oct-2019
20,Revenue,CAHD,CSC - Asylum Seekers - Unaccompanied,Adults - Family Support,16Pluscare Support Solutions,5937.88, 17-Oct-2019
21,Revenue,CAHD,CSC - Care Leavers Independent Living,Independent Living,16Pluscare Support Solutions,5937.88, 23-Oct-2019
22,Revenue,CAHD,North - bed purchasing and direct  payments,Permanent Nursing,1St Floor Lingfield House,2367.00, 22-Oct-2019
23,Revenue,CAHD,Central - Community based support,Day Care / Social Activities,3 Trees Community Support Ltd,395.28, 16-Oct-2019
24,Revenue,CAHD,Central - Community based support,Other Small Contracts,3 Trees Community Support Ltd,5165.44, 16-Oct-2019
25,Revenue,CAHD,Central - Community based support,Supported Living,3 Trees Community Support Ltd,5278.32, 16-Oct-2019
26,Revenue,CAHD,North - Community based support,Day Care / Social Activities,3 Trees Community Support Ltd,663.68, 16-Oct-2019
27,Revenue,CAHD,Central - Community based support,Day Care / Social Activities,3 Trees Community Support Ltd,97.60, 16-Oct-2019
28,Revenue,CAHD,Central - Community based support,Other Small Contracts,3 Trees Community Support Ltd,5162.02, 16-Oct-2019
29,Revenue,CAHD,Central - Community based support,Supported Living,3 Trees Community Support Ltd,5288.08, 16-Oct-2019
30,Revenue,CAHD,North - Community based support,Day Care / Social Activities,3 Trees Community Support Ltd,668.56, 16-Oct-2019
31,Revenue,CAHD,Central - Community based support,Other Small Contracts,3 Trees Community Support Ltd,5168.86, 16-Oct-2019
32,Revenue,CAHD,Central - Community based support,Supported Living,3 Trees Community Support Ltd,5236.85, 16-Oct-2019
33,Revenue,CAHD,North - Community based support,Day Care / Social Activities,3 Trees Community Support Ltd,673.44, 16-Oct-2019
34,Revenue,CAHD,Central - Community based support,Day Care / Social Activities,3 Trees Community Support Ltd,195.20, 24-Oct-2019
35,Revenue,CAHD,Central - Community based support,Other Small Contracts,3 Trees Community Support Ltd,5179.12, 24-Oct-2019
36,Revenue,CAHD,Central - Community based support,Supported Living,3 Trees Community Support Ltd,5288.10, 24-Oct-2019
37,Revenue,CAHD,North - Community based support,Day Care / Social Activities,3 Trees Community Support Ltd,678.32, 24-Oct-2019
38,Revenue,CAHD,South - Bed Purchasing and Direct payments,Permanent Residential,5Th Floor Harlech Court,16667.12, 22-Oct-2019
39,Revenue,CAHD,South - Bed Purchasing and Direct payments,Permanent Residential,5Th Floor Harlech Court,10419.52, 22-Oct-2019
40,Revenue,CAHD,S28A cases,Permanent Residential,5Th Floor Harlech Court,10904.68, 22-Oct-2019
41,Revenue,CAHD,South - Bed Purchasing and Direct payments,Permanent Residential,5Th Floor Harlech Court,11436.40, 22-Oct-2019
42,Revenue,CAHD,North - bed purchasing and direct  payments,Permanent Residential,5Th Floor Harlech Court,12498.56, 22-Oct-2019
43,Revenue,CAHD,North - bed purchasing and direct  payments,Permanent Residential,5Th Floor Harlech Court,10537.24, 22-Oct-2019
44,Revenue,CAHD,North - bed purchasing and direct  payments,Permanent Residential,5Th Floor Harlech Court,9071.12, 22-Oct-2019
45,Revenue,CAHD,Alexandra Way,Mechanical & Electrical Maintenance,A E Horder (Contracting) Limited,486.31, 25-Oct-2019
46,Revenue,CAHD,North Hub Offices,Other Supplies & Services,A E Horder (Contracting) Limited,731.24, 11-Oct-2019
47,Revenue,CAHD,CSC - Section 17 0-25,Preventative Assistance,A+bility Ltd,556.00, 07-Oct-2019
48,Revenue,CAHD,CSC - Section 17 0-25,Preventative Assistance,A+bility Ltd,556.00, 31-Oct-2019
49,Revenue,CAHD,CSC - Vinney Green Secure Unit,Service Contracts (Premises),Abbey Fire Protection Limited,1074.07, 16-Oct-2019
50,Revenue,CAHD,North - Community based support,Day Care / Social Activities,About Me Care and Support Limited,626.08, 30-Oct-2019
51,Revenue,CAHD,South - community based support,Day Care / Social Activities,About Me Care and Support Limited,1386.32, 24-Oct-2019
52,Revenue,CAHD,Section 117 Placements MH Younger,Permanent Residential,Acorn Care Providers,6608.20, 22-Oct-2019
53,Revenue,CAHD,North - S117,Permanent Residential,Acorn Care Providers,3900.00, 22-Oct-2019
54,Revenue,CAHD,Jointly Funded H&SC Packages,Permanent Residential,Acorn Care Providers,2100.00, 22-Oct-2019
55,Revenue,CAHD,MH Purchasing - Younger,Permanent Residential,Acorn Care Providers,6144.00, 22-Oct-2019
56,Revenue,CAHD,Training - Adult Services,Training Expenses,Acorn Health & Safety Limited,432.25, 03-Oct-2019
57,Revenue,CAHD,Training Budget - Children`s Social Serv,Training Expenses,Acorn Health & Safety Limited,479.00, 03-Oct-2019
58,Revenue,CAHD,Training - Adult Services,Training Expenses,Acorn Health & Safety Limited,477.00, 17-Oct-2019
59,Revenue,CAHD,Training - Adult Services,Training Expenses,Acorn Health & Safety Limited,477.00, 18-Oct-2019
60,Revenue,CAHD,Training - Adult Services,Training Expenses,Acorn Health & Safety Limited,427.50, 24-Oct-2019
61,Revenue,CAHD,South - community based support,Supported Living,Action on Hearing Loss,844.20, 18-Oct-2019
62,Revenue,CAHD,South - community based support,Other Small Contracts,Advantedge Commercial Finance Limited,571.20, 14-Oct-2019
63,Revenue,CAHD,South - community based support,Other Small Contracts,Advantedge Commercial Finance Limited,952.00, 14-Oct-2019
64,Revenue,CAHD,South - community based support,Other Small Contracts,Advantedge Commercial Finance Limited,647.36, 14-Oct-2019
65,Revenue,CAHD,North - Community based support,Other Small Contracts,Advantedge Commercial Finance Limited,580.72, 14-Oct-2019
66,Revenue,CAHD,South - community based support,Day Care / Social Activities,Age Concern,634.24, 22-Oct-2019
67,Revenue,CAHD,South - community based support,Day Care / Social Activities,Age Concern,720.00, 22-Oct-2019
68,Revenue,CAHD,South - community based support,Day Care / Social Activities,Age Concern,720.00, 22-Oct-2019
69,Revenue,CAHD,South - community based support,Day Care / Social Activities,Age Concern,536.00, 22-Oct-2019
70,Revenue,CAHD,South - community based support,Day Care / Social Activities,Age Concern,634.24, 22-Oct-2019
71,Revenue,CAHD,North - Community based support,Day Care / Social Activities,Age Concern,621.60, 22-Oct-2019
72,Revenue,CAHD,North - Community based support,Day Care / Social Activities,Age Concern,720.00, 22-Oct-2019
73,Revenue,CAHD,Central - Community based support,Day Care / Social Activities,Age Concern,634.24, 22-Oct-2019
74,Revenue,CAHD,Central - Community based support,Day Care / Social Activities,Age Concern,536.00, 22-Oct-2019
75,Revenue,CAHD,North - Community based support,Day Care / Social Activities,Age Concern,634.24, 22-Oct-2019
76,Revenue,CAHD,Central - Community based support,Day Care / Social Activities,Age Concern,621.60, 22-Oct-2019
77,Revenue,CAHD,Mental Health and Emotional Wellbeing,Other Small Contracts,Age UK South Gloucestershire,13725.00, 01-Oct-2019
78,Revenue,CAHD,Extra Care Housing,Private & Voluntary Home Care,Agincare UK Limited,23256.50, 01-Oct-2019
79,Revenue,CAHD,Extra Care Housing,Private & Voluntary Home Care,Agincare UK Limited,11253.50, 01-Oct-2019
80,Revenue,CAHD,Extra Care Housing,Private & Voluntary Home Care,Agincare UK Limited,28508.53, 04-Oct-2019
81,Revenue,CAHD,Prison Assessments & Costs,Other Supplies & Services,Agincare UK Limited,4343.00, 16-Oct-2019
82,Revenue,CAHD,Prison Assessments & Costs,Other Supplies & Services,Agincare UK Limited,3977.50, 31-Oct-2019
83,Revenue,CAHD,18-25 Year Olds,Permanent Residential,Alexander House,12155.16, 22-Oct-2019
84,Revenue,CAHD,South - community based support,Other Small Contracts,AliMo Care Ltd,524.16, 10-Oct-2019
85,Revenue,CAHD,North - Community based support,Other Small Contracts,AliMo Care Ltd,121.68, 10-Oct-2019
86,Revenue,CAHD,South - community based support,Other Small Contracts,AliMo Care Ltd,556.92, 23-Oct-2019
87,Revenue,CAHD,North - Community based support,Other Small Contracts,AliMo Care Ltd,126.36, 23-Oct-2019
88,Revenue,CAHD,South - community based support,Other Small Contracts,AliMo Care Ltd,814.32, 25-Oct-2019
89,Revenue,CAHD,North - Community based support,Other Small Contracts,AliMo Care Ltd,126.36, 25-Oct-2019
90,Revenue,CAHD,Pathway 1 - Re-Ablement Home Care,Other Small Contracts,AliMo Care Ltd,575.64, 31-Oct-2019
91,Revenue,CAHD,Pathway 1 - Re-Ablement Home Care,Other Small Contracts,AliMo Care Ltd,542.88, 31-Oct-2019
92,Revenue,CAHD,Pathway 1 - Re-Ablement Home Care,Other Small Contracts,AliMo Care Ltd,552.24, 31-Oct-2019
93,Revenue,CAHD,Pathway 1 - Re-Ablement Home Care,Other Small Contracts,AliMo Care Ltd,519.48, 31-Oct-2019
94,Revenue,CAHD,Pathway 1 - Re-Ablement Home Care,Other Small Contracts,AliMo Care Ltd,528.84, 31-Oct-2019
95,Revenue,CAHD,Grange School Holding Account,Other Private Contractors,All England Netball Association,3375.03, 14-Oct-2019
96,Revenue,CAHD,Grange School Holding Account,Other Private Contractors,All England Netball Association,20000.00, 14-Oct-2019
97,Revenue,CAHD,Grange School Holding Account,Other Private Contractors,All England Netball Association,3410.97, 14-Oct-2019
98,Revenue,CAHD,North - bed purchasing and direct  payments,Permanent Nursing,Allambie Court,2320.44, 22-Oct-2019
99,Revenue,CAHD,Mental Health and Emotional Wellbeing,Other Small Contracts,Alzheimers Society,11142.75, 01-Oct-2019
100,Revenue,CAHD,CSC - Residential Placements,Permanent Residential,Amberleigh Care Ltd,16688.57, 17-Oct-2019
101,Revenue,CAHD,CSC - Residential Placements,Permanent Residential,Amberleigh Care Ltd,2225.14, 31-Oct-2019
102,Revenue,CAHD,EARLY YEARS DISABILITY  ACCES FUND,Preventative Assistance,Ambourne House Day Nursery,615.00, 18-Oct-2019
103,Revenue,CAHD,North - bed purchasing and direct  payments,Permanent Nursing,Amerind Grove Nursing Home,2706.32, 22-Oct-2019
104,Revenue,CAHD,CSC - Agency Fostering,Foster Parent Allowances,Amicus Foster Care Ltd,3157.20, 04-Oct-2019
105,Revenue,CAHD,CSC - Parent & Child Assessments,Foster Parent Allowances,Amicus Foster Care Ltd,7379.40, 04-Oct-2019
106,Revenue,CAHD,CSC - Agency Fostering,Foster Parent Allowances,Amicus Foster Care Ltd,4721.61, 04-Oct-2019
107,Revenue,CAHD,CSC - Agency Fostering,Foster Parent Allowances,Amicus Foster Care Ltd,5336.40, 04-Oct-2019
108,Revenue,CAHD,Supporting People Programme,Grants to Voluntary Bodies,Anchor Hanover Group,1039.00, 01-Oct-2019
109,Revenue,CAHD,Supporting People Programme,Grants to Voluntary Bodies,Anchor Hanover Group,847.00, 01-Oct-2019
110,Revenue,CAHD,CSC - Section 17 0-25,Preventative Assistance,Angel Care Support Limited,4536.00, 07-Oct-2019
111,Revenue,CAHD,CSC - Section 17 0-25,Preventative Assistance,Angel Care Support Limited,3276.00, 07-Oct-2019
112,Revenue,CAHD,CSC - Vinney Green Secure Unit,External Lecturers Fees,Individual,1100.00, 16-Oct-2019
113,Revenue,CAHD,Statemented Support Equipment,"Provisions (Food, etc)",Apple Retail UK Ltd,947.23, 18-Oct-2019
114,Revenue,CAHD,Alexandra Way,Premises Maintenance by Contractor,Apre Surfacing Limited,1352.00, 22-Oct-2019
115,Revenue,CAHD,Jointly Funded H&SC Packages,Permanent Residential,Ash View House,1111.40, 22-Oct-2019
116,Revenue,CAHD,South - Bed Purchasing and Direct payments,Permanent Residential,Ash View House,5421.04, 22-Oct-2019
117,Revenue,CAHD,S117 Placements PCT,Permanent Residential,Ash View House,7556.32, 22-Oct-2019
118,Revenue,CAHD,18-25 Year Olds,Permanent Residential,Ash View House,7099.52, 22-Oct-2019
119,Revenue,CAHD,North - bed purchasing and direct  payments,Permanent Residential,Ash View House,7120.00, 22-Oct-2019
120,Revenue,CAHD,North - bed purchasing and direct  payments,Permanent Residential,Ash View House,1525.71, 22-Oct-2019
121,Revenue,CAHD,Section 117 Placements MH Younger,Permanent Residential,Ash View House,4924.12, 22-Oct-2019
122,Revenue,CAHD,Jointly Funded H&SC Packages,Permanent Residential,Ash View House,2110.40, 22-Oct-2019
123,Revenue,CAHD,South - S117,Permanent Residential,Ash View House,6692.80, 22-Oct-2019
124,Revenue,CAHD,18-25 Year Olds,Permanent Residential,Ash View House,6615.52, 22-Oct-2019
125,Revenue,CAHD,North - bed purchasing and direct  payments,Permanent Residential,Aspects 2 Limited,7231.88, 22-Oct-2019
126,Revenue,CAHD,Supporting People Programme,Grants to Voluntary Bodies,Aspects and Milestones Trust,3441.00, 01-Oct-2019
127,Revenue,CAHD,Supporting People Programme,Grants to Voluntary Bodies,Aspects and Milestones Trust,1725.00, 01-Oct-2019
128,Revenue,CAHD,CSC - Legal Fees,Legal Fees,Aspire Social Work Services Limited,697.20, 15-Oct-2019
129,Revenue,CAHD,CSC - Vinney Green Secure Unit,R & M by Departments,Assa Abloy Limited,670.00, 11-Oct-2019
130,Revenue,CAHD,CSC - Vinney Green Secure Unit,R & M by Departments,Assa Abloy Limited,14343.75, 11-Oct-2019
131,Revenue,CAHD,South - Bed Purchasing and Direct payments,Adults - Family Support,Ategi Limited,15893.02, 23-Oct-2019
132,Revenue,CAHD,CSC - Vinney Green Secure Unit,Service Contracts (Premises),Atus Systems Limited,1950.00, 18-Oct-2019
133,Revenue,CAHD,South - Bed Purchasing and Direct payments,Permanent Residential,Autism Specialised Care Homes,6506.88, 22-Oct-2019
134,Revenue,CAHD,CSC - Adoption Support Fund,Post Adoption,Avalon Thomas,722.00, 17-Oct-2019
135,Revenue,CAHD,North - bed purchasing and direct  payments,Permanent Residential,Avery Homes Downend Limited,4200.00, 22-Oct-2019
136,Revenue,CAHD,North - bed purchasing and direct  payments,Permanent Residential,Avery Homes Downend Limited,4300.80, 22-Oct-2019
137,Revenue,CAHD,North - bed purchasing and direct  payments,Permanent Residential,Avery Homes Downend Limited,5420.00, 22-Oct-2019
138,Revenue,CAHD,North - bed purchasing and direct  payments,Permanent Residential,Avery Homes Downend Limited,4420.00, 22-Oct-2019
139,Revenue,CAHD,Central - Bed Purchasing and Direct Payments,Permanent Residential,Avery Homes Downend Limited,6250.00, 22-Oct-2019
140,Revenue,CAHD,Central - Bed Purchasing and Direct Payments,Permanent Residential,Avery Homes Downend Limited,5000.00, 22-Oct-2019
141,Revenue,CAHD,Younger Adult Mental Health,Health Services (Third Party Payments),Avon & Wiltshire Mental Health,1693.33, 11-Oct-2019
142,Revenue,CAHD,CSC - LAC - Counselling & Therapy,Other Supplies & Services,Avon & Wiltshire Mental Health,15000.00, 11-Oct-2019
143,Revenue,CAHD,Mental Health and Emotional Wellbeing,Project Funding,Avon & Wiltshire Mental Health,2500.00, 31-Oct-2019
144,Revenue,CAHD,Alexandra Way,Mechanical & Electrical Maintenance,Avon Armour Limited,219.00, 30-Oct-2019
145,Revenue,CAHD,South Hub Offices,"Holidays, Outings & Visits",Avon Valley Country Park,491.66, 10-Oct-2019
146,Revenue,CAHD,School Awards Ceremony,Other Supplies & Services,BAC Trading Limited,3691.68, 18-Oct-2019
147,Revenue,CAHD,School Awards Ceremony,Other Supplies & Services,BAC Trading Limited,4400.00, 24-Oct-2019
148,Revenue,CAHD,Care Management Team - South,Other Supplies & Services,Back Care Solutions Ltd,826.00, 11-Oct-2019
149,Revenue,CAHD,CSC - Quality Review Unit,Agency Staff (Admin/Support Staff) Pay,Baltimore Consulting Group,2040.00, 01-Oct-2019
150,Revenue,CAHD,CSC - Quality Review Unit,Agency Staff (Admin/Support Staff) Pay,Baltimore Consulting Group,3360.00, 07-Oct-2019
151,Revenue,CAHD,CSC - Quality Review Unit,Agency Staff (Admin/Support Staff) Pay,Baltimore Consulting Group,2400.00, 21-Oct-2019
152,Revenue,CAHD,CSC - Quality Review Unit,Agency Staff (Admin/Support Staff) Pay,Baltimore Consulting Group,2400.00, 24-Oct-2019
153,Revenue,CAHD,CSC � Section 17 CENTRAL,Grants to Voluntary Bodies,Barnardo Services Limited,2647.20, 31-Oct-2019
154,Revenue,CAHD,CSC - Family Group Conferencing,Grants to Voluntary Bodies,Barnardo Services Limited,5422.75, 04-Oct-2019
155,Revenue,CAHD,Children & Young People�s Health,Other Small Contracts,Barnardos,7650.00, 16-Oct-2019
156,Revenue,CAHD,Pensions - Non DSG,Annual Pension,Bath & North East Somerset Council,107859.59, 07-Oct-2019
157,Revenue,CAHD,Pensions - Non DSG,Annual Pension,Bath & North East Somerset Council,6371.72, 22-Oct-2019
158,Revenue,CAHD,School Improvement and Support,Catering,Bawa Healthcare & Leisure,1671.67, 11-Oct-2019
159,Revenue,CAHD,School Improvement and Support,Premises Hire,Bawa Healthcare & Leisure,375.00, 11-Oct-2019
160,Revenue,CAHD,Pathway 3 - (Complex Beds),Permanent Nursing,Beaufort Care Ltd,5571.00, 14-Oct-2019
161,Revenue,CAHD,South Glos Users in South Glos Homes,Permanent Nursing,Beaufort Grange Care Home,662.24, 22-Oct-2019
162,Revenue,CAHD,South Glos Users in South Glos Homes,Permanent Nursing,Beaufort Grange Care Home,662.24, 22-Oct-2019
163,Revenue,CAHD,South Glos Users in South Glos Homes,Permanent Nursing,Beaufort Grange Care Home,662.24, 22-Oct-2019
164,Revenue,CAHD,South Glos Users in South Glos Homes,Permanent Nursing,Beaufort Grange Care Home,662.24, 22-Oct-2019
165,Revenue,CAHD,South Glos Users in South Glos Homes,Permanent Nursing,Beaufort Grange Care Home,662.24, 22-Oct-2019
166,Revenue,CAHD,South Glos Users in South Glos Homes,Permanent Nursing,Beaufort Grange Care Home,662.24, 22-Oct-2019
167,Revenue,CAHD,South Glos Users in South Glos Homes,Permanent Nursing,Beaufort Grange Care Home,662.24, 22-Oct-2019
168,Revenue,CAHD,South Glos Users in South Glos Homes,Permanent Nursing,Beaufort Grange Care Home,662.24, 22-Oct-2019
169,Revenue,CAHD,South Glos Users in South Glos Homes,Permanent Nursing,Beaufort Grange Care Home,662.24, 22-Oct-2019
170,Revenue,CAHD,South Glos Users in South Glos Homes,Permanent Nursing,Beaufort Grange Care Home,662.24, 22-Oct-2019
171,Revenue,CAHD,South Glos Users in South Glos Homes,Permanent Nursing,Beaufort Grange Care Home,662.24, 22-Oct-2019
172,Revenue,CAHD,North - S117,Permanent Nursing,Beaufort Grange Care Home,4877.04, 22-Oct-2019
173,Revenue,CAHD,South Glos Users in South Glos Homes,Permanent Nursing,Beaufort Grange Care Home,662.24, 22-Oct-2019
174,Revenue,CAHD,South Glos Users in South Glos Homes,Permanent Nursing,Beaufort Grange Care Home,662.24, 22-Oct-2019
175,Revenue,CAHD,South Glos Users in South Glos Homes,Permanent Nursing,Beaufort Grange Care Home,662.24, 22-Oct-2019
176,Revenue,CAHD,South Glos Users in South Glos Homes,Permanent Nursing,Beaufort Grange Care Home,662.24, 22-Oct-2019
177,Revenue,CAHD,South Glos Users in South Glos Homes,Permanent Nursing,Beaufort Grange Care Home,662.24, 22-Oct-2019
178,Revenue,CAHD,South Glos Users in South Glos Homes,Permanent Nursing,Beaufort Grange Care Home,662.24, 22-Oct-2019
179,Revenue,CAHD,North - bed purchasing and direct  payments,Permanent Residential,Beaufort Grange Care Home,5337.76, 22-Oct-2019
180,Revenue,CAHD,South Glos Users in South Glos Homes,Permanent Nursing,Beaufort Grange Care Home,662.24, 22-Oct-2019
181,Revenue,CAHD,North - S117,Permanent Nursing,Beaufort Grange Care Home,5005.76, 22-Oct-2019
182,Revenue,CAHD,South Glos Users in South Glos Homes,Permanent Nursing,Beaufort Grange Care Home,662.24, 22-Oct-2019
183,Revenue,CAHD,South Glos Users in South Glos Homes,Permanent Nursing,Beaufort Grange Care Home,662.24, 22-Oct-2019
184,Revenue,CAHD,South Glos Users in South Glos Homes,Permanent Nursing,Beaufort Grange Care Home,662.24, 22-Oct-2019
185,Revenue,CAHD,South Glos Users in South Glos Homes,Permanent Nursing,Beaufort Grange Care Home,662.24, 22-Oct-2019
186,Revenue,CAHD,South Glos Users in South Glos Homes,Permanent Nursing,Beaufort Grange Care Home,662.24, 22-Oct-2019
187,Revenue,CAHD,South Glos Users in South Glos Homes,Permanent Nursing,Beaufort Grange Care Home,662.24, 22-Oct-2019
188,Revenue,CAHD,South Glos Users in South Glos Homes,Permanent Nursing,Beaufort Grange Care Home,662.24, 22-Oct-2019
189,Revenue,CAHD,South Glos Users in South Glos Homes,Permanent Nursing,Beaufort Grange Care Home,662.24, 22-Oct-2019
190,Revenue,CAHD,South - Bed Purchasing and Direct payments,Permanent Residential,Beaufort Grange Care Home,5156.20, 22-Oct-2019
191,Revenue,CAHD,South Glos Users in South Glos Homes,Permanent Nursing,Beaufort Grange Care Home,662.24, 22-Oct-2019
192,Revenue,CAHD,South Glos Users in South Glos Homes,Permanent Nursing,Beaufort Grange Care Home,662.24, 22-Oct-2019
193,Revenue,CAHD,South Glos Users in South Glos Homes,Permanent Nursing,Beaufort Grange Care Home,662.24, 22-Oct-2019
194,Revenue,CAHD,South Glos Users in South Glos Homes,Permanent Nursing,Beaufort Grange Care Home,662.24, 22-Oct-2019
195,Revenue,CAHD,North - bed purchasing and direct  payments,Respite Planned - Nursing,Beaufort Grange Care Home,1251.44, 22-Oct-2019
196,Revenue,CAHD,South Glos Users in South Glos Homes,Permanent Nursing,Beaufort Grange Care Home,662.24, 22-Oct-2019
197,Revenue,CAHD,South Glos Users in South Glos Homes,Permanent Nursing,Beaufort Grange Care Home,662.24, 22-Oct-2019
198,Revenue,CAHD,South Glos Users in South Glos Homes,Permanent Nursing,Beaufort Grange Care Home,662.24, 22-Oct-2019
199,Revenue,CAHD,South Glos Users in South Glos Homes,Permanent Nursing,Beaufort Grange Care Home,662.24, 22-Oct-2019
200,Revenue,CAHD,South Glos Users in South Glos Homes,Permanent Nursing,Beaufort Grange Care Home,662.24, 22-Oct-2019
201,Revenue,CAHD,South Glos Users in South Glos Homes,Permanent Nursing,Beaufort Grange Care Home,662.24, 22-Oct-2019
202,Revenue,CAHD,South Glos Users in South Glos Homes,Permanent Nursing,Beaufort Grange Care Home,662.24, 22-Oct-2019
203,Revenue,CAHD,South Glos Users in South Glos Homes,Permanent Nursing,Beaufort Grange Care Home,662.24, 22-Oct-2019
204,Revenue,CAHD,South Glos Users in South Glos Homes,Permanent Nursing,Beaufort Grange Care Home,662.24, 22-Oct-2019
205,Revenue,CAHD,North - bed purchasing and direct  payments,Permanent Nursing,Beaufort Grange Care Home,8687.83, 22-Oct-2019
206,Revenue,CAHD,North - bed purchasing and direct  payments,Permanent Nursing,Beaufort Grange Care Home,5405.76, 22-Oct-2019
207,Revenue,CAHD,South Glos Users in South Glos Homes,Permanent Nursing,Beaufort Grange Care Home,662.24, 22-Oct-2019
208,Revenue,CAHD,North - bed purchasing and direct  payments,Permanent Residential,Beaufort House,2549.56, 22-Oct-2019
209,Revenue,CAHD,Central - Bed Purchasing and Direct Payments,Permanent Residential,Beaufort House,2867.20, 22-Oct-2019
210,Revenue,CAHD,Central - Bed Purchasing and Direct Payments,Permanent Residential,Beaufort House,2775.60, 22-Oct-2019
211,Revenue,CAHD,North - bed purchasing and direct  payments,Permanent Residential,Beaufort House,2571.40, 22-Oct-2019
212,Revenue,CAHD,South - Bed Purchasing and Direct payments,Permanent Residential,Beaufort House,2536.84, 22-Oct-2019
213,Revenue,CAHD,North - bed purchasing and direct  payments,Permanent Residential,Beaufort House,3072.00, 22-Oct-2019
214,Revenue,CAHD,North - bed purchasing and direct  payments,Permanent Residential,Beaufort House,2699.92, 22-Oct-2019
215,Revenue,CAHD,South - Bed Purchasing and Direct payments,Fees & Charges Income - General,Beaufort House,537.94, 22-Oct-2019
216,Revenue,CAHD,South - Bed Purchasing and Direct payments,Permanent Residential,Beech House,5919.28, 22-Oct-2019
217,Revenue,CAHD,South Glos Users in South Glos Homes,Permanent Nursing,Beech House,1324.48, 22-Oct-2019
218,Revenue,CAHD,North - bed purchasing and direct  payments,Permanent Residential,Beech House,22841.28, 22-Oct-2019
219,Revenue,CAHD,North - bed purchasing and direct  payments,Fees & Charges Income - General,Beech House,2994.20, 22-Oct-2019
220,Revenue,CAHD,North - bed purchasing and direct  payments,Fees & Charges Income - General,Beech House,1401.18, 22-Oct-2019
221,Revenue,CAHD,North - bed purchasing and direct  payments,Permanent Residential,Beech House,16657.09, 22-Oct-2019
222,Revenue,CAHD,North - bed purchasing and direct  payments,Permanent Residential,Beech House,4301.28, 22-Oct-2019
223,Revenue,CAHD,North - bed purchasing and direct  payments,Fees & Charges Income - General,Beech House,3067.65, 22-Oct-2019
224,Revenue,CAHD,North - bed purchasing and direct  payments,Fees & Charges Income - General,Beech House,1425.52, 22-Oct-2019
225,Revenue,CAHD,South Glos Users in South Glos Homes,Permanent Nursing,Beech House,1324.48, 22-Oct-2019
226,Revenue,CAHD,South Glos Users in South Glos Homes,Permanent Nursing,Beech House,1324.48, 22-Oct-2019
227,Revenue,CAHD,South Glos Users in South Glos Homes,Permanent Nursing,Beech House,1324.48, 22-Oct-2019
228,Revenue,CAHD,South Glos Users in South Glos Homes,Permanent Nursing,Beech House,1324.48, 22-Oct-2019
229,Revenue,CAHD,South Glos Users in South Glos Homes,Permanent Nursing,Beech House,1324.48, 22-Oct-2019
230,Revenue,CAHD,South Glos Users in South Glos Homes,Permanent Nursing,Beech House,1324.48, 22-Oct-2019
231,Revenue,CAHD,South Glos Users in South Glos Homes,Permanent Nursing,Beech House,1324.48, 22-Oct-2019
232,Revenue,CAHD,North - bed purchasing and direct  payments,Permanent Nursing,Beech House,7095.52, 22-Oct-2019
233,Revenue,CAHD,South Glos Users in South Glos Homes,Permanent Nursing,Beech House,1324.48, 22-Oct-2019
234,Revenue,CAHD,North - bed purchasing and direct  payments,Permanent Residential,Beech House,5919.28, 22-Oct-2019
235,Revenue,CAHD,South Glos Users in South Glos Homes,Permanent Nursing,Beech House,1324.48, 22-Oct-2019
236,Revenue,CAHD,South Glos Users in South Glos Homes,Permanent Nursing,Beech House,1324.48, 22-Oct-2019
237,Revenue,CAHD,North - bed purchasing and direct  payments,Permanent Nursing,Beech House,8566.40, 22-Oct-2019
238,Revenue,CAHD,South Glos Users in South Glos Homes,Permanent Nursing,Beech House,1324.48, 22-Oct-2019
239,Revenue,CAHD,South Glos Users in South Glos Homes,Permanent Nursing,Beech House,1324.48, 22-Oct-2019
240,Revenue,CAHD,South Glos Users in South Glos Homes,Permanent Nursing,Beech House,1324.48, 22-Oct-2019
241,Revenue,CAHD,South Glos Users in South Glos Homes,Permanent Nursing,Beech House,1324.48, 22-Oct-2019
242,Revenue,CAHD,North - bed purchasing and direct  payments,Permanent Nursing,Beech House,7987.20, 22-Oct-2019
243,Revenue,CAHD,South Glos Users in South Glos Homes,Permanent Nursing,Beech House,1324.48, 22-Oct-2019
244,Revenue,CAHD,South Glos Users in South Glos Homes,Permanent Nursing,Beech House,1324.48, 22-Oct-2019
245,Revenue,CAHD,South Glos Users in South Glos Homes,Permanent Nursing,Beech House,1324.48, 22-Oct-2019
246,Revenue,CAHD,North - bed purchasing and direct  payments,Permanent Residential,Beech House,8138.96, 22-Oct-2019
247,Revenue,CAHD,South Glos Users in South Glos Homes,Permanent Nursing,Beech House,1324.48, 22-Oct-2019
248,Revenue,CAHD,North - bed purchasing and direct  payments,Permanent Residential,Beech House,8151.04, 22-Oct-2019
249,Revenue,CAHD,South Glos Users in South Glos Homes,Permanent Nursing,Beech House,1324.48, 22-Oct-2019
250,Revenue,CAHD,North - bed purchasing and direct  payments,Permanent Nursing,Beech House,8447.12, 22-Oct-2019
251,Revenue,CAHD,South Glos Users in South Glos Homes,Permanent Nursing,Beech House,1324.48, 22-Oct-2019
252,Revenue,CAHD,South Glos Users in South Glos Homes,Permanent Nursing,Beech House,1324.48, 22-Oct-2019
253,Revenue,CAHD,South Glos Users in South Glos Homes,Permanent Nursing,Beech House,1324.48, 22-Oct-2019
254,Revenue,CAHD,South Glos Users in South Glos Homes,Permanent Nursing,Beech House,1324.48, 22-Oct-2019
255,Revenue,CAHD,South Glos Users in South Glos Homes,Permanent Nursing,Beech House,1324.48, 22-Oct-2019
256,Revenue,CAHD,South Glos Users in South Glos Homes,Permanent Nursing,Beech House,1324.48, 22-Oct-2019
257,Revenue,CAHD,North - bed purchasing and direct  payments,Permanent Residential,Beech House,8560.64, 22-Oct-2019
258,Revenue,CAHD,South Glos Users in South Glos Homes,Permanent Nursing,Beechwood Care Home,1028.00, 22-Oct-2019
259,Revenue,CAHD,18-25 Year Olds,Permanent Residential,Beechwood Court,15254.92, 22-Oct-2019
260,Revenue,CAHD,Independent Special Placements - Pre 16,Other Private Contractors,Belgrave School,6662.50, 18-Oct-2019
261,Revenue,CAHD,Independent Special Placements - Pre 16,Other Private Contractors,Belgrave School,5577.00, 18-Oct-2019
262,Revenue,CAHD,Independent Special Placements - Pre 16,Other Private Contractors,Belgrave School,4817.50, 21-Oct-2019
263,Revenue,CAHD,Independent Special Placements - Pre 16,Other Private Contractors,Belgrave School,4225.39, 21-Oct-2019
264,Revenue,CAHD,Independent Special Placements - Pre 16,Other Private Contractors,Belgrave School,4927.50, 21-Oct-2019
265,Revenue,CAHD,South - S117,Permanent Residential,Bidna House,3692.64, 22-Oct-2019
266,Revenue,CAHD,CSC - Care Leavers Support Costs,"Provisions (Food, etc)",Big Yellow Self Storage Company Limited,1825.01, 25-Oct-2019
267,Revenue,CAHD,North - S117,Permanent Residential,Blackwater Mill,3600.00, 22-Oct-2019
268,Revenue,CAHD,Statemented Support Payments to OLAs,Other L.A.'s - General,Blaise High School,907.83, 25-Oct-2019
269,Revenue,CAHD,Central - Community based support,Other Small Contracts,Blakehill Healthcare Ltd,787.50, 15-Oct-2019
270,Revenue,CAHD,Central - Community based support,Other Small Contracts,Blakehill Healthcare Ltd,800.00, 15-Oct-2019
271,Revenue,CAHD,Central - Community based support,Other Small Contracts,Blakehill Healthcare Ltd,3387.50, 15-Oct-2019
272,Revenue,CAHD,Central - Community based support,Other Small Contracts,Blakehill Healthcare Ltd,5025.00, 30-Oct-2019
273,Revenue,CAHD,Central - Community based support,Other Small Contracts,Blakehill Healthcare Ltd,3475.00, 15-Oct-2019
274,Revenue,CAHD,Central - Community based support,Other Small Contracts,Blakehill Healthcare Ltd,1387.50, 04-Oct-2019
275,Revenue,CAHD,Central - Community based support,Other Small Contracts,Blakehill Healthcare Ltd,5325.00, 16-Oct-2019
276,Revenue,CAHD,Central - Community based support,Other Small Contracts,Blakehill Healthcare Ltd,4371.96, 14-Oct-2019
277,Revenue,CAHD,Central - Community based support,Other Small Contracts,Blakehill Healthcare Ltd,1700.00, 02-Oct-2019
278,Revenue,CAHD,Central - Community based support,Other Small Contracts,Blakehill Healthcare Ltd,1400.00, 04-Oct-2019
279,Revenue,CAHD,Central - Community based support,Other Small Contracts,Blakehill Healthcare Ltd,3500.00, 31-Oct-2019
280,Revenue,CAHD,Central - Community based support,Other Small Contracts,Blakehill Healthcare Ltd,1387.50, 07-Oct-2019
281,Revenue,CAHD,South - Bed Purchasing and Direct payments,Permanent Nursing,Blossom Field,4780.36, 22-Oct-2019
282,Revenue,CAHD,South Glos Users in South Glos Homes,Permanent Nursing,Blossom Field,662.24, 22-Oct-2019
283,Revenue,CAHD,North - S117,Permanent Nursing,Blossom Field,791.48, 22-Oct-2019
284,Revenue,CAHD,North - bed purchasing and direct  payments,Permanent Nursing,Blossom Field,4730.40, 22-Oct-2019
285,Revenue,CAHD,South Glos Users in South Glos Homes,Permanent Nursing,Blossom Field,662.24, 22-Oct-2019
286,Revenue,CAHD,North - bed purchasing and direct  payments,Permanent Nursing,Blossom Field,4770.40, 22-Oct-2019
287,Revenue,CAHD,South Glos Users in South Glos Homes,Permanent Nursing,Blossom Field,662.24, 22-Oct-2019
288,Revenue,CAHD,North - bed purchasing and direct  payments,Fees & Charges Income - General,Blossom Field,1238.75, 22-Oct-2019
289,Revenue,CAHD,South Glos Users in South Glos Homes,Permanent Nursing,Blossom Field,662.24, 22-Oct-2019
290,Revenue,CAHD,North - bed purchasing and direct  payments,Permanent Nursing,Blossom Field,3891.20, 22-Oct-2019
291,Revenue,CAHD,South Glos Users in South Glos Homes,Permanent Nursing,Blossom Field,662.24, 22-Oct-2019
292,Revenue,CAHD,North - bed purchasing and direct  payments,Permanent Nursing,Blossom Field,5000.00, 22-Oct-2019
293,Revenue,CAHD,South Glos Users in South Glos Homes,Permanent Nursing,Blossom Field,662.24, 22-Oct-2019
294,Revenue,CAHD,South Glos Users in South Glos Homes,Permanent Nursing,Blossom Field,662.24, 22-Oct-2019
295,Revenue,CAHD,South - Bed Purchasing and Direct payments,Permanent Nursing,Blossom Field,4413.08, 22-Oct-2019
296,Revenue,CAHD,South Glos Users in South Glos Homes,Permanent Nursing,Blossom Field,662.24, 22-Oct-2019
297,Revenue,CAHD,North - bed purchasing and direct  payments,Permanent Nursing,Blossom Field,3533.92, 22-Oct-2019
298,Revenue,CAHD,South Glos Users in South Glos Homes,Permanent Nursing,Blossom Field,662.24, 22-Oct-2019
299,Revenue,CAHD,North - bed purchasing and direct  payments,Permanent Nursing,Blossom Field,4799.88, 22-Oct-2019
300,Revenue,CAHD,South Glos Users in South Glos Homes,Permanent Nursing,Blossom Field,662.24, 22-Oct-2019
301,Revenue,CAHD,South Glos Users in South Glos Homes,Permanent Nursing,Blossom Field,662.24, 22-Oct-2019
302,Revenue,CAHD,North - bed purchasing and direct  payments,Permanent Nursing,Blossom Field,4800.00, 22-Oct-2019
303,Revenue,CAHD,South Glos Users in South Glos Homes,Permanent Nursing,Blossom Field,662.24, 22-Oct-2019
304,Revenue,CAHD,South Glos Users in South Glos Homes,Permanent Nursing,Blossom Field,662.24, 22-Oct-2019
305,Revenue,CAHD,South Glos Users in South Glos Homes,Permanent Nursing,Blossom Field,662.24, 22-Oct-2019
306,Revenue,CAHD,Central - Bed Purchasing and Direct Payments,Permanent Nursing,Blossom Field,4267.36, 22-Oct-2019
307,Revenue,CAHD,South Glos Users in South Glos Homes,Permanent Nursing,Blossom Field,662.24, 22-Oct-2019
308,Revenue,CAHD,South Glos Users in South Glos Homes,Permanent Nursing,Blossom Field,662.24, 22-Oct-2019
309,Revenue,CAHD,South Glos Users in South Glos Homes,Permanent Nursing,Blossom Field,662.24, 22-Oct-2019
310,Revenue,CAHD,North - bed purchasing and direct  payments,Permanent Nursing,Blossom Field,4267.36, 22-Oct-2019
311,Revenue,CAHD,South Glos Users in South Glos Homes,Permanent Nursing,Blossom Field,662.24, 22-Oct-2019
312,Revenue,CAHD,South Glos Users in South Glos Homes,Permanent Nursing,Blossom Field,662.24, 22-Oct-2019
313,Revenue,CAHD,Central - Bed Purchasing and Direct Payments,Respite Planned - Nursing,Blossom Field,4800.00, 22-Oct-2019
314,Revenue,CAHD,South Glos Users in South Glos Homes,Permanent Nursing,Blossom Field,662.24, 22-Oct-2019
315,Revenue,CAHD,South Glos Users in South Glos Homes,Permanent Nursing,Blossom Field,662.24, 22-Oct-2019
316,Revenue,CAHD,North - S117,Permanent Nursing,Blossom Field,4400.00, 22-Oct-2019
317,Revenue,CAHD,North - S117,Permanent Nursing,Blossom Field,3771.43, 22-Oct-2019
318,Revenue,CAHD,North - bed purchasing and direct  payments,Permanent Nursing,Blossom Field,3634.96, 22-Oct-2019
319,Revenue,CAHD,South Glos Users in South Glos Homes,Permanent Nursing,Blossom Field,662.24, 22-Oct-2019
320,Revenue,CAHD,North - bed purchasing and direct  payments,Permanent Nursing,Blossom Field,5000.00, 22-Oct-2019
321,Revenue,CAHD,South Glos Users in South Glos Homes,Permanent Nursing,Blossom Field,662.24, 22-Oct-2019
322,Revenue,CAHD,South Glos Users in South Glos Homes,Permanent Nursing,Blossom Field,662.24, 22-Oct-2019
323,Revenue,CAHD,North - bed purchasing and direct  payments,Permanent Residential,Bluebells,3699.60, 22-Oct-2019
324,Revenue,CAHD,Central - Community based support,Other Small Contracts,Bluebird Care (South Gloucestershire),2091.35, 10-Oct-2019
325,Revenue,CAHD,South - community based support,Other Small Contracts,Bluebird Care (South Gloucestershire),989.05, 10-Oct-2019
326,Revenue,CAHD,North - Community based support,Other Small Contracts,Bluebird Care (South Gloucestershire),1413.03, 10-Oct-2019
327,Revenue,CAHD,Central - Community based support,Other Small Contracts,Bluebird Care (South Gloucestershire),2491.50, 22-Oct-2019
328,Revenue,CAHD,South - community based support,Other Small Contracts,Bluebird Care (South Gloucestershire),682.61, 22-Oct-2019
329,Revenue,CAHD,North - Community based support,Other Small Contracts,Bluebird Care (South Gloucestershire),2177.98, 22-Oct-2019
330,Revenue,CAHD,Central - Community based support,Other Small Contracts,Bluebird Care (South Gloucestershire),2775.07, 23-Oct-2019
331,Revenue,CAHD,South - community based support,Other Small Contracts,Bluebird Care (South Gloucestershire),718.20, 23-Oct-2019
332,Revenue,CAHD,North - Community based support,Other Small Contracts,Bluebird Care (South Gloucestershire),2228.65, 23-Oct-2019
333,Revenue,CAHD,Central - Community based support,Other Small Contracts,Bluebird Care (South Gloucestershire),2801.05, 23-Oct-2019
334,Revenue,CAHD,South - community based support,Other Small Contracts,Bluebird Care (South Gloucestershire),1249.95, 23-Oct-2019
335,Revenue,CAHD,North - Community based support,Other Small Contracts,Bluebird Care (South Gloucestershire),2671.12, 23-Oct-2019
336,Revenue,CAHD,Central - Community based support,Other Small Contracts,Bluebird Care (South Gloucestershire),3065.30, 23-Oct-2019
337,Revenue,CAHD,South - community based support,Other Small Contracts,Bluebird Care (South Gloucestershire),556.42, 23-Oct-2019
338,Revenue,CAHD,North - Community based support,Other Small Contracts,Bluebird Care (South Gloucestershire),4065.28, 23-Oct-2019
339,Revenue,CAHD,S28A cases,Permanent Residential,Bradbury House,6505.16, 22-Oct-2019
340,Revenue,CAHD,18-25 Year Olds,Permanent Residential,Bradbury House,9917.08, 22-Oct-2019
341,Revenue,CAHD,North - S117,Permanent Residential,Bradbury House,5740.24, 22-Oct-2019
342,Revenue,CAHD,Jointly Funded H&SC Packages,Permanent Residential,Bradbury House,7927.00, 22-Oct-2019
343,Revenue,CAHD,South - Bed Purchasing and Direct payments,Permanent Residential,Bradbury House,9777.00, 22-Oct-2019
344,Revenue,CAHD,CSC - Residential Placements,Permanent Residential,Branas ISAF Ltd,20357.14, 25-Oct-2019
345,Revenue,CAHD,CSC - Residential Placements,Permanent Residential,Branas ISAF Ltd,19285.71, 25-Oct-2019
346,Revenue,CAHD,Social Lettings Agency,Fees - General,Individual,8.15, 03-Oct-2019
347,Revenue,CAHD,Social Lettings Agency,Other Supplies & Services,Individual,766.10, 03-Oct-2019
348,Revenue,CAHD,North - bed purchasing and direct  payments,Permanent Residential,Bridge House Care Home,2625.52, 22-Oct-2019
349,Revenue,CAHD,CSC - Vinney Green Secure Unit,Training Expenses,Bridgwater and Taunton College,7941.00, 17-Oct-2019
350,Revenue,CAHD,North - bed purchasing and direct  payments,Permanent Residential,Bridgwater Court,10773.64, 22-Oct-2019
351,Revenue,CAHD,Health Inequalities,Other Small Contracts,Bristol & Avon Chinese Womens Group,500.00, 01-Oct-2019
352,Revenue,CAHD,Older People's Commissioned Se,Grants to Voluntary Bodies,Bristol Area Stroke Foundation,19052.75, 01-Oct-2019
353,Revenue,CAHD,Transport OLA Special Schools and RB,Client Transport,Bristol City Council,2815.60, 01-Oct-2019
354,Revenue,CAHD,Sexual Health,Other Small Contracts,Bristol City Council,230134.00, 25-Oct-2019
355,Revenue,CAHD,Schools Specific Grant Income,Other Public Bodies,Bristol City Council,630.00, 29-Oct-2019
356,Revenue,CAHD,Placements OLA Special Schools and RB,Other L.A.'s - General,Bristol City Council - Schools,2578.00, 28-Oct-2019
357,Revenue,CAHD,Placements OLA Special Schools and RB,Other L.A.'s - General,Bristol City Council - Schools,1381.00, 28-Oct-2019
358,Revenue,CAHD,Statemented Support Payments to OLAs,Other L.A.'s - General,Bristol City Council - Schools,1379.43, 25-Oct-2019
359,Revenue,CAHD,Placements OLA Special Schools and RB,Other L.A.'s - General,Bristol City Council - Schools,914.33, 28-Oct-2019
360,Revenue,CAHD,Placements OLA Special Schools and RB,Other L.A.'s - General,Bristol City Council - Schools,1305.58, 28-Oct-2019
361,Revenue,CAHD,Statemented Support Payments to OLAs,Other L.A.'s - General,Bristol City Council - Schools,660.24, 25-Oct-2019
362,Revenue,CAHD,Placements OLA Special Schools and RB,Other L.A.'s - General,Bristol City Council - Schools,3356.33, 28-Oct-2019
363,Revenue,CAHD,Placements OLA Special Schools and RB,Other L.A.'s - General,Bristol City Council - Schools,2578.00, 28-Oct-2019
364,Revenue,CAHD,Placements OLA Special Schools and RB,Other L.A.'s - General,Bristol City Council - Schools,1381.00, 28-Oct-2019
365,Revenue,CAHD,Placements OLA Special Schools and RB,Other L.A.'s - General,Bristol City Council - Schools,2050.17, 28-Oct-2019
366,Revenue,CAHD,Placements OLA Special Schools and RB,Other L.A.'s - General,Bristol City Council - Schools,1381.00, 28-Oct-2019
367,Revenue,CAHD,Placements OLA Special Schools and RB,Other L.A.'s - General,Bristol City Council - Schools,1381.00, 28-Oct-2019
368,Revenue,CAHD,Placements OLA Special Schools and RB,Other L.A.'s - General,Bristol City Council - Schools,2050.17, 28-Oct-2019
369,Revenue,CAHD,Placements OLA Special Schools and RB,Other L.A.'s - General,Bristol City Council - Schools,1675.30, 28-Oct-2019
370,Revenue,CAHD,Placements OLA Special Schools and RB,Other L.A.'s - General,Bristol City Council - Schools,809.00, 28-Oct-2019
371,Revenue,CAHD,Placements OLA Special Schools and RB,Other L.A.'s - General,Bristol City Council - Schools,883.50, 28-Oct-2019
372,Revenue,CAHD,Placements OLA Special Schools and RB,Other L.A.'s - General,Bristol City Council - Schools,4107.54, 28-Oct-2019
373,Revenue,CAHD,Placements OLA Special Schools and RB,Other L.A.'s - General,Bristol City Council - Schools,777.50, 28-Oct-2019
374,Revenue,CAHD,Placements OLA Special Schools and RB,Other L.A.'s - General,Bristol City Council - Schools,1031.20, 28-Oct-2019
375,Revenue,CAHD,Placements OLA Special Schools and RB,Other L.A.'s - General,Bristol City Council - Schools,2783.92, 28-Oct-2019
376,Revenue,CAHD,Placements OLA Special Schools and RB,Other L.A.'s - General,Bristol City Council - Schools,2578.00, 28-Oct-2019
377,Revenue,CAHD,Placements OLA Special Schools and RB,Other L.A.'s - General,Bristol City Council - Schools,809.00, 28-Oct-2019
378,Revenue,CAHD,Placements OLA Special Schools and RB,Other L.A.'s - General,Bristol City Council - Schools,2578.00, 28-Oct-2019
379,Revenue,CAHD,Placements OLA Special Schools and RB,Other L.A.'s - General,Bristol City Council - Schools,883.50, 28-Oct-2019
380,Revenue,CAHD,Placements OLA Special Schools and RB,Other L.A.'s - General,Bristol City Council - Schools,2062.40, 28-Oct-2019
381,Revenue,CAHD,Placements OLA Special Schools and RB,Other L.A.'s - General,Bristol City Council - Schools,2578.00, 28-Oct-2019
382,Revenue,CAHD,Placements OLA Special Schools and RB,Other L.A.'s - General,Bristol City Council - Schools,1305.58, 28-Oct-2019
383,Revenue,CAHD,Schools Specific Grant Income,Other Public Bodies,Bristol City Council - Schools,630.00, 25-Oct-2019
384,Revenue,CAHD,Bed and Breakfast,Bed & Breakfast,Bristol Housing & Support Limited,420.00, 01-Oct-2019
385,Revenue,CAHD,Bed and Breakfast,Bed & Breakfast,Bristol Housing & Support Limited,420.00, 07-Oct-2019
386,Revenue,CAHD,Bed and Breakfast,Bed & Breakfast,Bristol Housing & Support Limited,420.00, 18-Oct-2019
387,Revenue,CAHD,Bed and Breakfast,Bed & Breakfast,Bristol Housing & Support Limited,420.00, 21-Oct-2019
388,Revenue,CAHD,Bed and Breakfast,Bed & Breakfast,Bristol Housing & Support Limited,420.00, 28-Oct-2019
389,Revenue,CAHD,Mental Capacity Act / DOLS,Grants to Voluntary Bodies,Bristol MIND,902.10, 23-Oct-2019
390,Revenue,CAHD,Mental Capacity Act / DOLS,Grants to Voluntary Bodies,Bristol MIND,822.30, 23-Oct-2019
391,Revenue,CAHD,Mental Capacity Act / DOLS,Grants to Voluntary Bodies,Bristol MIND,522.00, 23-Oct-2019
392,Revenue,CAHD,Schools Specific Grant Income,Other Supplies & Services,Bristol Tuition Limited,646.00, 28-Oct-2019
393,Revenue,CAHD,SEN High Needs - Not at School Base,Other Private Contractors,Bristol Tuition Limited,845.00, 24-Oct-2019
394,Revenue,CAHD,SEN High Needs - Not at School Base,Other Private Contractors,Bristol Tuition Limited,627.00, 23-Oct-2019
395,Revenue,CAHD,Statemented Support Payments to OLAs,Other L.A.'s - General,Broadlands Academy,1332.27, 25-Oct-2019
396,Revenue,CAHD,Parent Partnership,Fees - General,Individual,8547.72, 25-Oct-2019
397,Revenue,CAHD,South Glos Users in South Glos Homes,Permanent Nursing,Brunelcare,709.54, 17-Oct-2019
398,Revenue,CAHD,South Glos Users in South Glos Homes,Permanent Nursing,Brunelcare,709.54, 17-Oct-2019
399,Revenue,CAHD,South Glos Users in South Glos Homes,Permanent Nursing,Brunelcare,709.54, 17-Oct-2019
400,Revenue,CAHD,South Glos Users in South Glos Homes,Permanent Nursing,Brunelcare,709.54, 17-Oct-2019
401,Revenue,CAHD,South Glos Users in South Glos Homes,Permanent Nursing,Brunelcare,709.54, 17-Oct-2019
402,Revenue,CAHD,South Glos Users in South Glos Homes,Permanent Nursing,Brunelcare,709.54, 17-Oct-2019
403,Revenue,CAHD,South Glos Users in South Glos Homes,Permanent Nursing,Brunelcare,709.54, 17-Oct-2019
404,Revenue,CAHD,South Glos Users in South Glos Homes,Permanent Nursing,Brunelcare,709.54, 17-Oct-2019
405,Revenue,CAHD,South Glos Users in South Glos Homes,Permanent Nursing,Brunelcare,709.54, 17-Oct-2019
406,Revenue,CAHD,South Glos Users in South Glos Homes,Permanent Nursing,Brunelcare,709.54, 17-Oct-2019
407,Revenue,CAHD,South Glos Users in South Glos Homes,Permanent Nursing,Brunelcare,709.54, 17-Oct-2019
408,Revenue,CAHD,South Glos Users in South Glos Homes,Permanent Nursing,Brunelcare,709.54, 17-Oct-2019
409,Revenue,CAHD,South Glos Users in South Glos Homes,Permanent Nursing,Brunelcare,709.54, 17-Oct-2019
410,Revenue,CAHD,South - S117,Permanent Nursing,Brunelcare,3550.71, 17-Oct-2019
411,Revenue,CAHD,North - S117,Permanent Nursing,Brunelcare,3550.71, 17-Oct-2019
412,Revenue,CAHD,North - S117,Permanent Nursing,Brunelcare,3550.71, 17-Oct-2019
413,Revenue,CAHD,South - Bed Purchasing and Direct payments,Permanent Nursing,Brunelcare,3550.71, 17-Oct-2019
414,Revenue,CAHD,South - Bed Purchasing and Direct payments,Permanent Nursing,Brunelcare,2940.64, 17-Oct-2019
415,Revenue,CAHD,South - Bed Purchasing and Direct payments,Permanent Nursing,Brunelcare,2588.57, 17-Oct-2019
416,Revenue,CAHD,South - Bed Purchasing and Direct payments,Permanent Nursing,Brunelcare,2740.63, 17-Oct-2019
417,Revenue,CAHD,South - Bed Purchasing and Direct payments,Permanent Nursing,Brunelcare,2843.53, 17-Oct-2019
418,Revenue,CAHD,South - Bed Purchasing and Direct payments,Permanent Nursing,Brunelcare,2957.79, 17-Oct-2019
419,Revenue,CAHD,South - Bed Purchasing and Direct payments,Permanent Nursing,Brunelcare,2577.94, 17-Oct-2019
420,Revenue,CAHD,South - Bed Purchasing and Direct payments,Permanent Nursing,Brunelcare,3550.71, 17-Oct-2019
421,Revenue,CAHD,Enhanced Dementia Beds,Respite Planned - Nursing,Brunelcare,4234.29, 17-Oct-2019
422,Revenue,CAHD,Central - Bed Purchasing and Direct Payments,Permanent Nursing,Brunelcare,568.03, 17-Oct-2019
423,Revenue,CAHD,South - Bed Purchasing and Direct payments,Respite Planned - Nursing,Brunelcare,946.86, 17-Oct-2019
424,Revenue,CAHD,South - Bed Purchasing and Direct payments,Respite Planned - Nursing,Brunelcare,591.79, 17-Oct-2019
425,Revenue,CAHD,North - bed purchasing and direct  payments,Permanent Nursing,Brunelcare,2664.86, 17-Oct-2019
426,Revenue,CAHD,North - bed purchasing and direct  payments,Permanent Nursing,Brunelcare,2850.09, 17-Oct-2019
427,Revenue,CAHD,North - bed purchasing and direct  payments,Permanent Nursing,Brunelcare,2843.70, 17-Oct-2019
428,Revenue,CAHD,North - bed purchasing and direct  payments,Permanent Nursing,Brunelcare,3550.71, 17-Oct-2019
429,Revenue,CAHD,North - bed purchasing and direct  payments,Respite Planned - Nursing,Brunelcare,1538.64, 17-Oct-2019
430,Revenue,CAHD,South - Bed Purchasing and Direct payments,Permanent Nursing,Brunelcare,803.43, 17-Oct-2019
431,Revenue,CAHD,Central - Bed Purchasing and Direct Payments,Respite Planned - Nursing,Brunelcare,828.50, 17-Oct-2019
432,Revenue,CAHD,Central - Bed Purchasing and Direct Payments,Permanent Nursing,Brunelcare,1078.24, 17-Oct-2019
433,Revenue,CAHD,South - community based support,Other Small Contracts,Brunelcare,20438.33, 18-Oct-2019
434,Revenue,CAHD,North - Community based support,Other Small Contracts,Brunelcare,279.07, 18-Oct-2019
435,Revenue,CAHD,South - community based support,Other Small Contracts,Brunelcare,21247.16, 23-Oct-2019
436,Revenue,CAHD,North - Community based support,Other Small Contracts,Brunelcare,283.80, 23-Oct-2019
437,Revenue,CAHD,Pathway 1 - Re-Ablement Home Care,Other Small Contracts,Brunelcare,549.70, 08-Oct-2019
438,Revenue,CAHD,Information Systems - Software,Computer Equipment - Purchase,BT Global Services Solutions,489.74, 30-Oct-2019
439,Revenue,CAHD,Early Years High Needs Support,Other Private Contractors,Busy Bees Day Nursery,895.39, 23-Oct-2019
440,Revenue,CAHD,CSC - Vinney Green Secure Unit,R & M by Departments,BWS Standfast Fire & Security Systems,1920.00, 30-Oct-2019
441,Revenue,CAHD,CSC - Agency Fostering,Foster Parent Allowances,By the Bridge Ltd,4424.14, 01-Oct-2019
442,Revenue,CAHD,CSC - Agency Fostering,Foster Parent Allowances,By the Bridge Ltd,4281.43, 31-Oct-2019
443,Revenue,CAHD,Social Lettings Agency,Fees - General,Individual,16.16, 25-Oct-2019
444,Revenue,CAHD,Social Lettings Agency,Other Supplies & Services,Individual,648.56, 25-Oct-2019
445,Revenue,CAHD,Academy Resource Base Funding,Other Public Bodies,Cabot Learning Federation,1010.96, 25-Oct-2019
446,Revenue,CAHD,Statemented Support Payments to OLAs,Other L.A.'s - General,Cabot Learning Federation,1544.49, 25-Oct-2019
447,Revenue,CAHD,Schools Specific Grant Income,Other Public Bodies,Cabot Learning Federation,630.00, 25-Oct-2019
448,Revenue,CAHD,Academy Resource Base Funding,Other Public Bodies,Cabot Learning Federation,1172.68, 25-Oct-2019
449,Revenue,CAHD,Academy Resource Base Funding,Other Public Bodies,Cabot Learning Federation,1172.68, 25-Oct-2019
450,Revenue,CAHD,Statemented Support Academies,Other Public Bodies,Cabot Learning Federation,1837.42, 25-Oct-2019
451,Revenue,CAHD,Statemented Support Academies,Other Public Bodies,Cabot Learning Federation,1202.39, 25-Oct-2019
452,Revenue,CAHD,Statemented Support Academies,Other Public Bodies,Cabot Learning Federation,518.76, 25-Oct-2019
453,Revenue,CAHD,Statemented Support Academies,Other Public Bodies,Cabot Learning Federation,554.13, 25-Oct-2019
454,Revenue,CAHD,Statemented Support Academies,Other Public Bodies,Cabot Learning Federation,7753.25, 25-Oct-2019
455,Revenue,CAHD,Statemented Support Academies,Other Public Bodies,Cabot Learning Federation,565.92, 25-Oct-2019
456,Revenue,CAHD,Statemented Support Academies,Other Public Bodies,Cabot Learning Federation,1048.67, 25-Oct-2019
457,Revenue,CAHD,Statemented Support Academies,Other Public Bodies,Cabot Learning Federation,2616.63, 25-Oct-2019
458,Revenue,CAHD,Schools Specific Grant Income,Other Public Bodies,Cabot Learning Federation,630.00, 25-Oct-2019
459,Revenue,CAHD,Academy Resource Base Funding,Other Public Bodies,Cabot Learning Federation,1172.68, 25-Oct-2019
460,Revenue,CAHD,Schools Specific Grant Income,Other Public Bodies,Cabot Learning Federation,630.00, 25-Oct-2019
461,Revenue,CAHD,Statemented Support Payments to OLAs,Other L.A.'s - General,Cabot Learning Federation,1013.94, 25-Oct-2019
462,Revenue,CAHD,Academy Resource Base Funding,Other Public Bodies,Cabot Learning Federation,1010.96, 25-Oct-2019
463,Revenue,CAHD,Schools Specific Grant Income,Other Public Bodies,Cabot Learning Federation,630.00, 25-Oct-2019
464,Revenue,CAHD,Academy Resource Base Funding,Other Public Bodies,Cabot Learning Federation,1172.68, 25-Oct-2019
465,Revenue,CAHD,Academy Resource Base Funding,Other Public Bodies,Cabot Learning Federation,646.92, 25-Oct-2019
466,Revenue,CAHD,Statemented Support Academies,Other Public Bodies,Cabot Learning Federation,695.61, 25-Oct-2019
467,Revenue,CAHD,Statemented Support Academies,Other Public Bodies,Cabot Learning Federation,530.55, 25-Oct-2019
468,Revenue,CAHD,Statemented Support Academies,Other Public Bodies,Cabot Learning Federation,918.75, 25-Oct-2019
469,Revenue,CAHD,Statemented Support Payments to OLAs,Other L.A.'s - General,Cabot Learning Federation,872.46, 25-Oct-2019
470,Revenue,CAHD,Academy Resource Base Funding,Other Public Bodies,Cabot Learning Federation,1172.68, 25-Oct-2019
471,Revenue,CAHD,Academy Resource Base Funding,Other Public Bodies,Cabot Learning Federation,1172.68, 25-Oct-2019
472,Revenue,CAHD,Statemented Support Academies,Other Public Bodies,Cabot Learning Federation,554.13, 25-Oct-2019
473,Revenue,CAHD,Statemented Support Academies,Other Public Bodies,Cabot Learning Federation,742.77, 25-Oct-2019
474,Revenue,CAHD,Statemented Support Academies,Other Public Bodies,Cabot Learning Federation,778.14, 25-Oct-2019
475,Revenue,CAHD,Statemented Support Academies,Other Public Bodies,Cabot Learning Federation,943.20, 25-Oct-2019
476,Revenue,CAHD,Statemented Support Academies,Other Public Bodies,Cabot Learning Federation,813.51, 25-Oct-2019
477,Revenue,CAHD,Statemented Support Payments to OLAs,Other L.A.'s - General,Cabot Learning Federation,601.29, 25-Oct-2019
478,Revenue,CAHD,Statemented Support Academies,Other Public Bodies,Cabot Learning Federation,860.67, 25-Oct-2019
479,Revenue,CAHD,Statemented Support Academies,Other Public Bodies,Cabot Learning Federation,589.50, 25-Oct-2019
480,Revenue,CAHD,Statemented Support Academies,Other Public Bodies,Cabot Learning Federation,801.72, 25-Oct-2019
481,Revenue,CAHD,Statemented Support Academies,Other Public Bodies,Cabot Learning Federation,1096.47, 25-Oct-2019
482,Revenue,CAHD,Statemented Support Academies,Other Public Bodies,Cabot Learning Federation,730.98, 25-Oct-2019
483,Revenue,CAHD,Statemented Support Academies,Other Public Bodies,Cabot Learning Federation,907.83, 25-Oct-2019
484,Revenue,CAHD,Statemented Support Academies,Other Public Bodies,Cabot Learning Federation,530.55, 25-Oct-2019
485,Revenue,CAHD,Statemented Support Academies,Other Public Bodies,Cabot Learning Federation,742.77, 25-Oct-2019
486,Revenue,CAHD,Statemented Support Academies,Other Public Bodies,Cabot Learning Federation,907.83, 25-Oct-2019
487,Revenue,CAHD,Academy Resource Base Funding,Other Public Bodies,Cabot Learning Federation,1172.68, 25-Oct-2019
488,Revenue,CAHD,Schools Specific Grant Income,Other Public Bodies,Cabot Learning Federation,630.00, 25-Oct-2019
489,Revenue,CAHD,Schools Specific Grant Income,Other Public Bodies,Cabot Learning Federation,630.00, 25-Oct-2019
490,Revenue,CAHD,Academy Resource Base Funding,Other Public Bodies,Cabot Learning Federation,1698.32, 25-Oct-2019
491,Revenue,CAHD,Schools Specific Grant Income,Other Public Bodies,Cabot Learning Federation,630.00, 25-Oct-2019
492,Revenue,CAHD,Academy Resource Base Funding,Other Public Bodies,Cabot Learning Federation,1698.32, 25-Oct-2019
493,Revenue,CAHD,Academy Resource Base Funding,Other Public Bodies,Cabot Learning Federation,1536.62, 25-Oct-2019
494,Revenue,CAHD,Academy Resource Base Funding,Other Public Bodies,Cabot Learning Federation,646.92, 25-Oct-2019
495,Revenue,CAHD,Academy Resource Base Funding,Other Public Bodies,Cabot Learning Federation,1536.62, 25-Oct-2019
496,Revenue,CAHD,Statemented Support Payments to OLAs,Other L.A.'s - General,Cabot Learning Federation,1072.89, 25-Oct-2019
497,Revenue,CAHD,Schools Specific Grant Income,Other Public Bodies,Cabot Learning Federation,630.00, 25-Oct-2019
498,Revenue,CAHD,Academy Resource Base Funding,Other Public Bodies,Cabot Learning Federation,1698.32, 25-Oct-2019
499,Revenue,CAHD,Schools Specific Grant Income,Other Public Bodies,Cabot Learning Federation,630.00, 25-Oct-2019
500,Revenue,CAHD,Academy Resource Base Funding,Other Public Bodies,Cabot Learning Federation,1698.32, 25-Oct-2019
501,Revenue,CAHD,Statemented Support Academies,Other Public Bodies,Cabot Learning Federation,1296.90, 25-Oct-2019
502,Revenue,CAHD,Schools Specific Grant Income,Other Public Bodies,Cabot Learning Federation,630.00, 25-Oct-2019
503,Revenue,CAHD,Academy Resource Base Funding,Other Public Bodies,Cabot Learning Federation,1536.62, 25-Oct-2019
504,Revenue,CAHD,Schools Specific Grant Income,Other Public Bodies,Cabot Learning Federation,630.00, 25-Oct-2019
505,Revenue,CAHD,Schools Specific Grant Income,Other Public Bodies,Cabot Learning Federation,630.00, 25-Oct-2019
506,Revenue,CAHD,Academy Resource Base Funding,Other Public Bodies,Cabot Learning Federation,1536.62, 25-Oct-2019
507,Revenue,CAHD,Schools Specific Grant Income,Other Public Bodies,Cabot Learning Federation,630.00, 25-Oct-2019
508,Revenue,CAHD,Early Years High Needs Support,Other Private Contractors,Caerleon Childcare,515.70, 23-Oct-2019
509,Revenue,CAHD,CSC - Residential Placements,Permanent Residential,Cambian Childcare Ltd,19042.99, 02-Oct-2019
510,Revenue,CAHD,CSC - Residential Placements,Permanent Residential,Cambian Childcare Ltd,18428.70, 29-Oct-2019
511,Revenue,CAHD,CSC - Residential Placements,Permanent Residential,Cambian Childcare Ltd,22500.00, 24-Oct-2019
512,Revenue,CAHD,Post 16 High Needs Placements,Other Private Contractors,Cambian Whinfell School Limited,39943.64, 28-Oct-2019
513,Revenue,CAHD,Post 16 High Needs Placements,Other Private Contractors,Cambian Whinfell School Limited,39943.64, 28-Oct-2019
514,Revenue,CAHD,North - Community based support,Day Care / Social Activities,Camphill Communities Thornbury Limited,525.03, 04-Oct-2019
515,Revenue,CAHD,North - Community based support,Other Small Contracts,Camphill Communities Thornbury Limited,170.28, 04-Oct-2019
516,Revenue,CAHD,North - Community based support,Supported Living,Camphill Communities Thornbury Limited,600.71, 04-Oct-2019
517,Revenue,CAHD,North - Community based support,Day Care / Social Activities,Camphill Communities Thornbury Limited,1144.66, 11-Oct-2019
518,Revenue,CAHD,North - Community based support,Other Small Contracts,Camphill Communities Thornbury Limited,170.28, 11-Oct-2019
519,Revenue,CAHD,North - Community based support,Supported Living,Camphill Communities Thornbury Limited,983.84, 11-Oct-2019
520,Revenue,CAHD,North - Community based support,Day Care / Social Activities,Camphill Communities Thornbury Limited,1168.31, 18-Oct-2019
521,Revenue,CAHD,North - Community based support,Other Small Contracts,Camphill Communities Thornbury Limited,170.28, 18-Oct-2019
522,Revenue,CAHD,North - Community based support,Supported Living,Camphill Communities Thornbury Limited,1050.06, 18-Oct-2019
523,Revenue,CAHD,North - Community based support,Day Care / Social Activities,Camphill Communities Thornbury Limited,898.70, 25-Oct-2019
524,Revenue,CAHD,North - Community based support,Other Small Contracts,Camphill Communities Thornbury Limited,170.28, 25-Oct-2019
525,Revenue,CAHD,North - Community based support,Supported Living,Camphill Communities Thornbury Limited,1040.60, 25-Oct-2019
526,Revenue,CAHD,North - S117,Permanent Residential,Canjayor,3937.76, 22-Oct-2019
527,Revenue,CAHD,Alexandra Way,Refuse Collection Charges,Cannon Hygiene Limited,616.47, 31-Oct-2019
528,Revenue,CAHD,CAH Director,Training Expenses,Capita Resourcing Limited,1200.00, 31-Oct-2019
529,Revenue,CAHD,Central - Community based support,Other Small Contracts,Care 1st Homecare,2929.92, 10-Oct-2019
530,Revenue,CAHD,Central - Community based support,Other Small Contracts,Care 1st Homecare,2912.48, 10-Oct-2019
531,Revenue,CAHD,Central - Community based support,Other Small Contracts,Care 1st Homecare,2929.92, 10-Oct-2019
532,Revenue,CAHD,Central - Community based support,Other Small Contracts,Care 1st Homecare,2947.36, 30-Oct-2019
533,Revenue,CAHD,Central - Community based support,Other Small Contracts,Care 1st Homecare,2929.92, 30-Oct-2019
534,Revenue,CAHD,Central - Community based support,Other Small Contracts,Care 1st Homecare,2938.64, 30-Oct-2019
535,Revenue,CAHD,Central - Community based support,Other Small Contracts,Care Horizons Limited,1371.72, 10-Oct-2019
536,Revenue,CAHD,South - community based support,Other Small Contracts,Care Horizons Limited,183.54, 10-Oct-2019
537,Revenue,CAHD,North - Community based support,Day Care / Social Activities,Care Horizons Limited,410.55, 10-Oct-2019
538,Revenue,CAHD,North - Community based support,Other Small Contracts,Care Horizons Limited,598.92, 10-Oct-2019
539,Revenue,CAHD,Younger MH non-res purchasing,Other Small Contracts,Care Horizons Limited,376.74, 10-Oct-2019
540,Revenue,CAHD,Central - Community based support,Other Small Contracts,Care Horizons Limited,1342.74, 18-Oct-2019
541,Revenue,CAHD,South - community based support,Other Small Contracts,Care Horizons Limited,169.05, 18-Oct-2019
542,Revenue,CAHD,North - Community based support,Day Care / Social Activities,Care Horizons Limited,386.40, 18-Oct-2019
543,Revenue,CAHD,North - Community based support,Other Small Contracts,Care Horizons Limited,772.80, 18-Oct-2019
544,Revenue,CAHD,Younger MH non-res purchasing,Other Small Contracts,Care Horizons Limited,371.91, 18-Oct-2019
545,Revenue,CAHD,Central - Community based support,Other Small Contracts,Care Horizons Limited,1371.72, 24-Oct-2019
546,Revenue,CAHD,South - community based support,Other Small Contracts,Care Horizons Limited,178.71, 24-Oct-2019
547,Revenue,CAHD,North - Community based support,Day Care / Social Activities,Care Horizons Limited,400.89, 24-Oct-2019
548,Revenue,CAHD,North - Community based support,Other Small Contracts,Care Horizons Limited,787.29, 24-Oct-2019
549,Revenue,CAHD,Younger MH non-res purchasing,Other Small Contracts,Care Horizons Limited,492.66, 24-Oct-2019
550,Revenue,CAHD,Younger MH non-res purchasing,Other Small Contracts,Care Horizons Limited,889.59, 25-Oct-2019
551,Revenue,CAHD,SLA Grants - Support Serv,Grants to Voluntary Bodies,Carers Support Centre,12275.00, 01-Oct-2019
552,Revenue,CAHD,SLA Grants - Support Serv,Grants to Voluntary Bodies,Carers Support Centre,25275.00, 01-Oct-2019
553,Revenue,CAHD,Health Inequalities,Other Small Contracts,Carers Support Centre,60477.00, 01-Oct-2019
554,Revenue,CAHD,Central - Community based support,Supported Living,Cartrefi Cymru Co Operative,1340.32, 22-Oct-2019
555,Revenue,CAHD,Central - Community based support,Other Small Contracts,Cartrefi Cymru Co-operative Ltd,7015.68, 09-Oct-2019
556,Revenue,CAHD,Central - Community based support,Other Small Contracts,Cartrefi Cymru Co-operative Ltd,7015.68, 09-Oct-2019
557,Revenue,CAHD,Central - Community based support,Other Small Contracts,Cartrefi Cymru Co-operative Ltd,7194.32, 09-Oct-2019
558,Revenue,CAHD,Central - Community based support,Other Small Contracts,Cartrefi Cymru Co-operative Ltd,7194.32, 09-Oct-2019
559,Revenue,CAHD,Schools Specific Grant Income,Other Public Bodies,Castle School Education Trust,630.00, 25-Oct-2019
560,Revenue,CAHD,Statemented Support Academies,Other Public Bodies,Castle School Education Trust,1698.32, 25-Oct-2019
561,Revenue,CAHD,Statemented Support Academies,Other Public Bodies,Castle School Education Trust,530.55, 25-Oct-2019
562,Revenue,CAHD,Statemented Support Academies,Other Public Bodies,Castle School Education Trust,565.92, 25-Oct-2019
563,Revenue,CAHD,Statemented Support Academies,Other Public Bodies,Castle School Education Trust,778.14, 25-Oct-2019
564,Revenue,CAHD,Statemented Support Academies,Other Public Bodies,Castle School Education Trust,931.41, 25-Oct-2019
565,Revenue,CAHD,Statemented Support Academies,Other Public Bodies,Castle School Education Trust,542.34, 25-Oct-2019
566,Revenue,CAHD,Statemented Support Academies,Other Public Bodies,Castle School Education Trust,672.03, 25-Oct-2019
567,Revenue,CAHD,Statemented Support Academies,Other Public Bodies,Castle School Education Trust,577.71, 25-Oct-2019
568,Revenue,CAHD,Statemented Support Academies,Other Public Bodies,Castle School Education Trust,505.08, 25-Oct-2019
569,Revenue,CAHD,Statemented Support Academies,Other Public Bodies,Castle School Education Trust,860.67, 25-Oct-2019
570,Revenue,CAHD,Statemented Support Academies,Other Public Bodies,Castle School Education Trust,1461.96, 25-Oct-2019
571,Revenue,CAHD,Statemented Support Academies,Other Public Bodies,Castle School Education Trust,860.67, 25-Oct-2019
572,Revenue,CAHD,Statemented Support Academies,Other Public Bodies,Castle School Education Trust,1002.15, 25-Oct-2019
573,Revenue,CAHD,Statemented Support Academies,Other Public Bodies,Castle School Education Trust,672.03, 25-Oct-2019
574,Revenue,CAHD,Statemented Support Academies,Other Public Bodies,Castle School Education Trust,1120.05, 25-Oct-2019
575,Revenue,CAHD,Statemented Support Academies,Other Public Bodies,Castle School Education Trust,506.97, 25-Oct-2019
576,Revenue,CAHD,Statemented Support Academies,Other Public Bodies,Castle School Education Trust,636.66, 25-Oct-2019
577,Revenue,CAHD,Statemented Support Academies,Other Public Bodies,Castle School Education Trust,589.50, 25-Oct-2019
578,Revenue,CAHD,Statemented Support Academies,Other Public Bodies,Castle School Education Trust,577.71, 25-Oct-2019
579,Revenue,CAHD,Statemented Support Academies,Other Public Bodies,Castle School Education Trust,624.87, 25-Oct-2019
580,Revenue,CAHD,Statemented Support Academies,Other Public Bodies,Castle School Education Trust,825.30, 25-Oct-2019
581,Revenue,CAHD,Statemented Support Academies,Other Public Bodies,Castle School Education Trust,1190.79, 25-Oct-2019
582,Revenue,CAHD,Statemented Support Academies,Other Public Bodies,Castle School Education Trust,848.88, 25-Oct-2019
583,Revenue,CAHD,Statemented Support Academies,Other Public Bodies,Castle School Education Trust,1237.95, 25-Oct-2019
584,Revenue,CAHD,Statemented Support Academies,Other Public Bodies,Castle School Education Trust,1061.10, 25-Oct-2019
585,Revenue,CAHD,Statemented Support Academies,Other Public Bodies,Castle School Education Trust,518.76, 25-Oct-2019
586,Revenue,CAHD,Statemented Support Academies,Other Public Bodies,Castle School Education Trust,577.71, 25-Oct-2019
587,Revenue,CAHD,Statemented Support Academies,Other Public Bodies,Castle School Education Trust,1143.63, 25-Oct-2019
588,Revenue,CAHD,Statemented Support Academies,Other Public Bodies,Castle School Education Trust,1072.89, 25-Oct-2019
589,Revenue,CAHD,Statemented Support Academies,Other Public Bodies,Castle School Education Trust,825.30, 25-Oct-2019
590,Revenue,CAHD,Statemented Support Academies,Other Public Bodies,Castle School Education Trust,1485.54, 25-Oct-2019
591,Revenue,CAHD,Academy Resource Base Funding,Other Public Bodies,Castle School Education Trust,1698.32, 25-Oct-2019
592,Revenue,CAHD,Schools Specific Grant Income,Other Public Bodies,Castle School Education Trust,630.00, 25-Oct-2019
593,Revenue,CAHD,Statemented Support Academies,Other Public Bodies,Castle School Education Trust,1698.32, 25-Oct-2019
594,Revenue,CAHD,Academy Resource Base Funding,Other Public Bodies,Castle School Education Trust,1698.32, 25-Oct-2019
595,Revenue,CAHD,Schools Specific Grant Income,Other Public Bodies,Castle School Education Trust,630.00, 25-Oct-2019
596,Revenue,CAHD,Statemented Support Academies,Other Public Bodies,Castle School Education Trust,1322.75, 25-Oct-2019
597,Revenue,CAHD,Statemented Support Academies,Other Public Bodies,Castle School Education Trust,1017.08, 25-Oct-2019
598,Revenue,CAHD,Statemented Support Academies,Other Public Bodies,Castle School Education Trust,672.03, 25-Oct-2019
599,Revenue,CAHD,Statemented Support Academies,Other Public Bodies,Castle School Education Trust,872.46, 25-Oct-2019
600,Revenue,CAHD,Statemented Support Academies,Other Public Bodies,Castle School Education Trust,848.88, 25-Oct-2019
601,Revenue,CAHD,Statemented Support Academies,Other Public Bodies,Castle School Education Trust,907.83, 25-Oct-2019
602,Revenue,CAHD,Statemented Support Academies,Other Public Bodies,Castle School Education Trust,1556.28, 25-Oct-2019
603,Revenue,CAHD,Statemented Support Academies,Other Public Bodies,Castle School Education Trust,1025.73, 25-Oct-2019
604,Revenue,CAHD,Statemented Support Academies,Other Public Bodies,Castle School Education Trust,1473.75, 25-Oct-2019
605,Revenue,CAHD,Schools in Financial Difficulties,Other Public Bodies,Castle School Education Trust,23140.01, 11-Oct-2019
606,Revenue,CAHD,Schools Specific Grant Income,Other Public Bodies,Castle School Education Trust,630.00, 25-Oct-2019
607,Revenue,CAHD,Schools Specific Grant Income,Other Public Bodies,Castle School Education Trust,630.00, 25-Oct-2019
608,Revenue,CAHD,Academy Resource Base Funding,Other Public Bodies,Castle School Education Trust,1698.32, 25-Oct-2019
609,Revenue,CAHD,Academy Resource Base Funding,Other Public Bodies,Castle School Education Trust,1698.32, 25-Oct-2019
610,Revenue,CAHD,Academy Resource Base Funding,Other Public Bodies,Castle School Education Trust,1698.32, 25-Oct-2019
611,Revenue,CAHD,Statemented Support Academies,Other Public Bodies,Castle School Education Trust,630.58, 25-Oct-2019
612,Revenue,CAHD,Statemented Support Academies,Other Public Bodies,Castle School Education Trust,778.14, 25-Oct-2019
613,Revenue,CAHD,Statemented Support Academies,Other Public Bodies,Castle School Education Trust,613.08, 25-Oct-2019
614,Revenue,CAHD,Academy Resource Base Funding,Other Public Bodies,Castle School Education Trust,1698.32, 25-Oct-2019
615,Revenue,CAHD,Schools Specific Grant Income,Other Public Bodies,Castle School Education Trust,630.00, 25-Oct-2019
616,Revenue,CAHD,Academy Resource Base Funding,Other Public Bodies,Castle School Education Trust,1698.32, 25-Oct-2019
617,Revenue,CAHD,Schools Specific Grant Income,Other Public Bodies,Castle School Education Trust,630.00, 25-Oct-2019
618,Revenue,CAHD,Schools Specific Grant Income,Other Public Bodies,Castle School Education Trust,630.00, 25-Oct-2019
619,Revenue,CAHD,Academy Resource Base Funding,Other Public Bodies,Castle School Education Trust,1698.32, 25-Oct-2019
620,Revenue,CAHD,Schools Specific Grant Income,Other Public Bodies,Castle School Education Trust,630.00, 25-Oct-2019
621,Revenue,CAHD,Schools Specific Grant Income,Other Public Bodies,Castle School Education Trust,630.00, 25-Oct-2019
622,Revenue,CAHD,Schools Specific Grant Income,Other Public Bodies,Castle School Educational Turust,630.00, 25-Oct-2019
623,Revenue,CAHD,Schools Specific Grant Income,Other Public Bodies,Castle School Educational Turust,630.00, 25-Oct-2019
624,Revenue,CAHD,Schools Specific Grant Income,Other Public Bodies,Castle School Educational Turust,630.00, 25-Oct-2019
625,Revenue,CAHD,Schools Specific Grant Income,Other Public Bodies,Castle School Educational Turust,630.00, 25-Oct-2019
626,Revenue,CAHD,Independent Special Placements - Pre 16,Other Private Contractors,Catch 22 Charity Ltd,8410.00, 18-Oct-2019
627,Revenue,CAHD,Social Lettings Agency,Fees - General,Individual,10.53, 01-Oct-2019
628,Revenue,CAHD,Social Lettings Agency,Fees & Charges Income - General,Individual,595.11, 01-Oct-2019
629,Revenue,CAHD,Schools Specific Grant Income,Other Public Bodies,Cathays High School,630.00, 25-Oct-2019
630,Revenue,CAHD,North - Community based support,Day Care / Social Activities,Causeway House,2133.96, 22-Oct-2019
631,Revenue,CAHD,Central - Community based support,Day Care / Social Activities,Causeway House,1136.76, 22-Oct-2019
632,Revenue,CAHD,South - community based support,Day Care / Social Activities,Causeway House,5253.12, 22-Oct-2019
633,Revenue,CAHD,18-25 Year Olds,Day Care / Social Activities,Causeway House,1077.90, 22-Oct-2019
634,Revenue,CAHD,18-25 Year Olds,Day Care / Social Activities,Causeway House,826.02, 22-Oct-2019
635,Revenue,CAHD,18-25 Year Olds,Day Care / Social Activities,Causeway House,1418.72, 22-Oct-2019
636,Revenue,CAHD,18-25 Year Olds,Day Care / Social Activities,Causeway House,4414.64, 22-Oct-2019
637,Revenue,CAHD,Central - Community based support,Day Care / Social Activities,Causeway House,3891.60, 22-Oct-2019
638,Revenue,CAHD,Central - Community based support,Day Care / Social Activities,Causeway House,1704.96, 22-Oct-2019
639,Revenue,CAHD,North - Community based support,Day Care / Social Activities,Causeway House,3226.20, 22-Oct-2019
640,Revenue,CAHD,North - Community based support,Day Care / Social Activities,Causeway House,4806.44, 22-Oct-2019
641,Revenue,CAHD,Central - Community based support,Day Care / Social Activities,Causeway House,3652.12, 22-Oct-2019
642,Revenue,CAHD,North - Community based support,Day Care / Social Activities,Causeway House,3149.08, 22-Oct-2019
643,Revenue,CAHD,North - Community based support,Day Care / Social Activities,Causeway House,568.32, 22-Oct-2019
644,Revenue,CAHD,South - Bed Purchasing and Direct payments,Permanent Nursing,Cedar Care Homes Limited,3095.92, 22-Oct-2019
645,Revenue,CAHD,School Admissions Related Expenses,Subsistence,Celia Butler Education Management and Consultancy,860.30, 14-Oct-2019
646,Revenue,CAHD,CSC - Vinney Green Secure Unit,External Lecturers Fees,Cell Workout Ltd,524.10, 23-Oct-2019
647,Revenue,CAHD,North - bed purchasing and direct  payments,Permanent Residential,Cepen Lodge,2741.48, 22-Oct-2019
648,Revenue,CAHD,South - Bed Purchasing and Direct payments,Permanent Residential,Challenge House,2834.44, 22-Oct-2019
649,Revenue,CAHD,North - S117,Permanent Residential,Challenge House,2571.40, 22-Oct-2019
650,Revenue,CAHD,North - bed purchasing and direct  payments,Permanent Residential,Challenge House,2233.00, 22-Oct-2019
651,Revenue,CAHD,North - bed purchasing and direct  payments,Permanent Residential,Challenge House,2900.00, 22-Oct-2019
652,Revenue,CAHD,North - bed purchasing and direct  payments,Permanent Residential,Challenge House,2370.72, 22-Oct-2019
653,Revenue,CAHD,Central - Bed Purchasing and Direct Payments,Permanent Residential,Challenge House,2365.60, 22-Oct-2019
654,Revenue,CAHD,Central - Bed Purchasing and Direct Payments,Permanent Residential,Challenge House,2363.40, 22-Oct-2019
655,Revenue,CAHD,North - bed purchasing and direct  payments,Permanent Residential,Challenge House,2363.40, 22-Oct-2019
656,Revenue,CAHD,Central - Bed Purchasing and Direct Payments,Respite Emergency - Residential,Challenge House,2834.44, 22-Oct-2019
657,Revenue,CAHD,North - bed purchasing and direct  payments,Permanent Residential,Challenge House,2834.40, 22-Oct-2019
658,Revenue,CAHD,North - bed purchasing and direct  payments,Permanent Nursing,Challenge House,3130.36, 22-Oct-2019
659,Revenue,CAHD,Central - Bed Purchasing and Direct Payments,Permanent Nursing,Challenge House,3000.00, 22-Oct-2019
660,Revenue,CAHD,North - S117,Permanent Nursing,Challenge House,2395.80, 22-Oct-2019
661,Revenue,CAHD,Central - Bed Purchasing and Direct Payments,Permanent Nursing,Challenge House,3056.00, 22-Oct-2019
662,Revenue,CAHD,North - bed purchasing and direct  payments,Permanent Nursing,Challenge House,2571.40, 22-Oct-2019
663,Revenue,CAHD,Central - Bed Purchasing and Direct Payments,Respite Planned - Nursing,Challenge House,2218.86, 22-Oct-2019
664,Revenue,CAHD,North - bed purchasing and direct  payments,Permanent Nursing,Challenge House,2395.80, 22-Oct-2019
665,Revenue,CAHD,North - bed purchasing and direct  payments,Permanent Nursing,Challenge House,3130.36, 22-Oct-2019
666,Revenue,CAHD,South Glos Users in South Glos Homes,Permanent Nursing,Challenge House,662.24, 22-Oct-2019
667,Revenue,CAHD,South Glos Users in South Glos Homes,Permanent Nursing,Challenge House,662.24, 22-Oct-2019
668,Revenue,CAHD,South Glos Users in South Glos Homes,Permanent Nursing,Challenge House,662.24, 22-Oct-2019
669,Revenue,CAHD,North - Community based support,Day Care / Social Activities,Challenge House,574.88, 22-Oct-2019
670,Revenue,CAHD,South - Bed Purchasing and Direct payments,Permanent Nursing,Challenge House,2884.20, 22-Oct-2019
671,Revenue,CAHD,South Glos Users in South Glos Homes,Permanent Nursing,Challenge House,662.24, 22-Oct-2019
672,Revenue,CAHD,North - bed purchasing and direct  payments,Permanent Nursing,Challenge House,3335.08, 22-Oct-2019
673,Revenue,CAHD,North - bed purchasing and direct  payments,Permanent Nursing,Challenge House,3208.48, 22-Oct-2019
674,Revenue,CAHD,South Glos Users in South Glos Homes,Permanent Nursing,Challenge House,662.24, 22-Oct-2019
675,Revenue,CAHD,South Glos Users in South Glos Homes,Permanent Nursing,Challenge House,662.24, 22-Oct-2019
676,Revenue,CAHD,North - bed purchasing and direct  payments,Permanent Nursing,Challenge House,3338.84, 22-Oct-2019
677,Revenue,CAHD,South Glos Users in South Glos Homes,Permanent Nursing,Challenge House,662.24, 22-Oct-2019
678,Revenue,CAHD,South Glos Users in South Glos Homes,Permanent Nursing,Challenge House,662.24, 22-Oct-2019
679,Revenue,CAHD,South Glos Users in South Glos Homes,Permanent Nursing,Challenge House,662.24, 22-Oct-2019
680,Revenue,CAHD,South - Bed Purchasing and Direct payments,Permanent Nursing,Challenge House,3000.00, 22-Oct-2019
681,Revenue,CAHD,South - Bed Purchasing and Direct payments,Permanent Nursing,Challenge House,1285.71, 22-Oct-2019
682,Revenue,CAHD,South Glos Users in South Glos Homes,Permanent Nursing,Challenge House,662.24, 22-Oct-2019
683,Revenue,CAHD,South - Bed Purchasing and Direct payments,Permanent Residential,Challenge House,3000.00, 22-Oct-2019
684,Revenue,CAHD,South Glos Users in South Glos Homes,Permanent Nursing,Challenge House,662.24, 22-Oct-2019
685,Revenue,CAHD,South Glos Users in South Glos Homes,Permanent Nursing,Challenge House,662.24, 22-Oct-2019
686,Revenue,CAHD,South Glos Users in South Glos Homes,Permanent Nursing,Challenge House,662.24, 22-Oct-2019
687,Revenue,CAHD,Central - Bed Purchasing and Direct Payments,Permanent Nursing,Challenge House,3000.00, 22-Oct-2019
688,Revenue,CAHD,South - Bed Purchasing and Direct payments,Permanent Nursing,Challenge House,3000.00, 22-Oct-2019
689,Revenue,CAHD,North - bed purchasing and direct  payments,Permanent Nursing,Challenge House,2827.52, 22-Oct-2019
690,Revenue,CAHD,South Glos Users in South Glos Homes,Permanent Nursing,Challenge House,662.24, 22-Oct-2019
691,Revenue,CAHD,North - bed purchasing and direct  payments,Permanent Nursing,Challenge House,3338.84, 22-Oct-2019
692,Revenue,CAHD,South Glos Users in South Glos Homes,Permanent Nursing,Challenge House,662.24, 22-Oct-2019
693,Revenue,CAHD,South Glos Users in South Glos Homes,Permanent Nursing,Challenge House,662.24, 22-Oct-2019
694,Revenue,CAHD,South Glos Users in South Glos Homes,Permanent Nursing,Challenge House,662.24, 22-Oct-2019
695,Revenue,CAHD,North - bed purchasing and direct  payments,Permanent Nursing,Challenge House,2827.52, 22-Oct-2019
696,Revenue,CAHD,South Glos Users in South Glos Homes,Permanent Nursing,Challenge House,662.24, 22-Oct-2019
697,Revenue,CAHD,South Glos Users in South Glos Homes,Permanent Nursing,Challenge House,662.24, 22-Oct-2019
698,Revenue,CAHD,North - bed purchasing and direct  payments,Permanent Nursing,Challenge House,3263.84, 22-Oct-2019
699,Revenue,CAHD,South Glos Users in South Glos Homes,Permanent Nursing,Challenge House,662.24, 22-Oct-2019
700,Revenue,CAHD,CSC - Vinney Green Secure Unit,External Lecturers Fees,Changing Tunes,880.00, 18-Oct-2019
701,Revenue,CAHD,Alexandra Way,"Provisions (Food, etc)",Charles Saunders Limited,584.35, 07-Oct-2019
702,Revenue,CAHD,Mental Capacity Act / DOLS,Legal Fees,Individual,500.00, 21-Oct-2019
703,Revenue,CAHD,Statemented Support Academies,Other Public Bodies,Charlton Wood Primary Academy,702.17, 25-Oct-2019
704,Revenue,CAHD,Central - Community based support,Other Small Contracts,Cherish Able Care Limited,2109.58, 10-Oct-2019
705,Revenue,CAHD,South - community based support,Other Small Contracts,Cherish Able Care Limited,7289.56, 10-Oct-2019
706,Revenue,CAHD,North - Community based support,Other Small Contracts,Cherish Able Care Limited,1447.38, 10-Oct-2019
707,Revenue,CAHD,Central - Community based support,Other Small Contracts,Cherish Able Care Limited,2123.77, 14-Oct-2019
708,Revenue,CAHD,South - community based support,Other Small Contracts,Cherish Able Care Limited,7259.21, 14-Oct-2019
709,Revenue,CAHD,North - Community based support,Other Small Contracts,Cherish Able Care Limited,1466.30, 14-Oct-2019
710,Revenue,CAHD,Central - Community based support,Other Small Contracts,Cherish Able Care Limited,2109.58, 16-Oct-2019
711,Revenue,CAHD,South - community based support,Other Small Contracts,Cherish Able Care Limited,7259.16, 16-Oct-2019
712,Revenue,CAHD,North - Community based support,Other Small Contracts,Cherish Able Care Limited,1452.11, 16-Oct-2019
713,Revenue,CAHD,S28A cases,Permanent Residential,Chescombe Lodge,9764.44, 22-Oct-2019
714,Revenue,CAHD,CSC - LAC Placements,"Holidays, Outings & Visits",Childrens Contact Services Ltd,815.40, 18-Oct-2019
715,Revenue,CAHD,CSC - Emergency Duty Team,Preventative Assistance,Childrens Contact Services Ltd,1315.00, 17-Oct-2019
716,Revenue,CAHD,18-25 Year Olds,Other Small Contracts,Cintre,107.36, 10-Oct-2019
717,Revenue,CAHD,Central - Community based support,Other Small Contracts,Cintre,312.32, 10-Oct-2019
718,Revenue,CAHD,South - community based support,Other Small Contracts,Cintre,732.00, 10-Oct-2019
719,Revenue,CAHD,18-25 Year Olds,Other Small Contracts,Cintre,97.60, 10-Oct-2019
720,Revenue,CAHD,Central - Community based support,Other Small Contracts,Cintre,366.00, 10-Oct-2019
721,Revenue,CAHD,South - community based support,Other Small Contracts,Cintre,697.84, 10-Oct-2019
722,Revenue,CAHD,18-25 Year Olds,Other Small Contracts,Cintre,43.92, 23-Oct-2019
723,Revenue,CAHD,Central - Community based support,Other Small Contracts,Cintre,78.08, 23-Oct-2019
724,Revenue,CAHD,South - community based support,Other Small Contracts,Cintre,727.12, 23-Oct-2019
725,Revenue,CAHD,18-25 Year Olds,Other Small Contracts,Cintre,68.32, 25-Oct-2019
726,Revenue,CAHD,Central - Community based support,Other Small Contracts,Cintre,234.24, 25-Oct-2019
727,Revenue,CAHD,South - community based support,Other Small Contracts,Cintre,736.88, 25-Oct-2019
728,Revenue,CAHD,Planning and Partnerships Procurement,Membership Fees,CIPFA Business Limited,146.00, 04-Oct-2019
729,Revenue,CAHD,CSC - Fostering Carer Support,Sporting Expenses,Circadian Trust,577.60, 14-Oct-2019
730,Revenue,CAHD,Future Bright,Fees - General,City of Bristol College,635.00, 23-Oct-2019
731,Revenue,CAHD,Section 117 Placements MH Younger,Permanent Residential,Claro Homes,3554.60, 22-Oct-2019
732,Revenue,CAHD,North - bed purchasing and direct  payments,Permanent Nursing,Claro Homes,3318.20, 22-Oct-2019
733,Revenue,CAHD,South - Bed Purchasing and Direct payments,Permanent Residential,Cleeve Lodge,3686.40, 22-Oct-2019
734,Revenue,CAHD,South - Bed Purchasing and Direct payments,Permanent Residential,Cleeve Lodge,3686.40, 22-Oct-2019
735,Revenue,CAHD,South - Bed Purchasing and Direct payments,Permanent Residential,Cleeve Lodge,1308.44, 22-Oct-2019
736,Revenue,CAHD,South - Bed Purchasing and Direct payments,Permanent Residential,Cleeve Lodge,2921.68, 22-Oct-2019
737,Revenue,CAHD,South - Bed Purchasing and Direct payments,Permanent Residential,Cleeve Lodge,3086.48, 22-Oct-2019
738,Revenue,CAHD,South - Bed Purchasing and Direct payments,Permanent Residential,Cleeve Lodge,4000.00, 22-Oct-2019
739,Revenue,CAHD,South - Bed Purchasing and Direct payments,Fees & Charges Income - General,Cleeve Lodge,4885.71, 22-Oct-2019
740,Revenue,CAHD,South - Bed Purchasing and Direct payments,Permanent Residential,Cleeve Lodge,9385.71, 22-Oct-2019
741,Revenue,CAHD,South - Bed Purchasing and Direct payments,Fees & Charges Income - General,Cleeve Lodge,1464.17, 22-Oct-2019
742,Revenue,CAHD,South - Bed Purchasing and Direct payments,Permanent Residential,Cleeve Lodge,2893.00, 22-Oct-2019
743,Revenue,CAHD,South - Bed Purchasing and Direct payments,Permanent Residential,Cleeve Lodge,2635.60, 22-Oct-2019
744,Revenue,CAHD,South - Bed Purchasing and Direct payments,Respite Planned - Residential,Cleeve Lodge,2571.43, 22-Oct-2019
745,Revenue,CAHD,North - bed purchasing and direct  payments,Permanent Nursing,Clevedon Court Nursing Home,3448.16, 22-Oct-2019
746,Revenue,CAHD,Central - Community based support,Other Small Contracts,Clover Health and Home Care Ltd,892.08, 18-Oct-2019
747,Revenue,CAHD,Central - Community based support,Other Small Contracts,Clover Health and Home Care Ltd,1364.67, 18-Oct-2019
748,Revenue,CAHD,Central - Community based support,Other Small Contracts,Clover Health and Home Care Ltd,1932.84, 24-Oct-2019
749,Revenue,CAHD,North - Community based support,Other Small Contracts,Clover Health and Home Care Ltd,2538.18, 14-Oct-2019
750,Revenue,CAHD,Central - Community based support,Other Small Contracts,Clover Health and Home Care Ltd,892.08, 18-Oct-2019
751,Revenue,CAHD,Central - Community based support,Other Small Contracts,Clover Health and Home Care Ltd,1210.68, 18-Oct-2019
752,Revenue,CAHD,Sexual Health,Other Small Contracts,Cohesian Consultancy,500.00, 01-Oct-2019
753,Revenue,CAHD,Sexual Health,Other Small Contracts,Cohesian Consultancy,500.00, 01-Oct-2019
754,Revenue,CAHD,South - Bed Purchasing and Direct payments,Permanent Residential,Collingwood Care Home,2826.24, 22-Oct-2019
755,Revenue,CAHD,South - Bed Purchasing and Direct payments,Permanent Residential,Collingwood Care Home,2241.28, 22-Oct-2019
756,Revenue,CAHD,South - Bed Purchasing and Direct payments,Permanent Residential,Collingwood Care Home,2420.80, 22-Oct-2019
757,Revenue,CAHD,North - bed purchasing and direct  payments,Permanent Residential,Collingwood Care Home,3000.00, 22-Oct-2019
758,Revenue,CAHD,South - Bed Purchasing and Direct payments,Permanent Residential,Collingwood Care Home,2504.28, 22-Oct-2019
759,Revenue,CAHD,South - Bed Purchasing and Direct payments,Permanent Residential,Concorde Lodge,19007.60, 22-Oct-2019
760,Revenue,CAHD,Statemented Support Equipment,Educational Supplies & Equipment,Connevans Limited,1590.05, 04-Oct-2019
761,Revenue,CAHD,Statemented Support Equipment,Educational Supplies & Equipment,Connevans Limited,1961.25, 11-Oct-2019
762,Revenue,CAHD,Bed and Breakfast,Bed & Breakfast,Connolly & Callaghan Limited,763.00, 25-Oct-2019
763,Revenue,CAHD,Bed and Breakfast,Bed & Breakfast,Connolly & Callaghan Limited,455.00, 22-Oct-2019
764,Revenue,CAHD,Bed and Breakfast,Bed & Breakfast,Connolly & Callaghan Limited,665.00, 22-Oct-2019
765,Revenue,CAHD,Bed and Breakfast,Bed & Breakfast,Connolly & Callaghan Limited,910.00, 29-Oct-2019
766,Revenue,CAHD,Bed and Breakfast,Bed & Breakfast,Connolly & Callaghan Limited,581.00, 22-Oct-2019
767,Revenue,CAHD,Bed and Breakfast,Bed & Breakfast,Connolly & Callaghan Limited,539.00, 22-Oct-2019
768,Revenue,CAHD,Bed and Breakfast,Bed & Breakfast,Connolly & Callaghan Limited,539.00, 22-Oct-2019
769,Revenue,CAHD,Bed and Breakfast,Bed & Breakfast,Connolly & Callaghan Limited,497.00, 22-Oct-2019
770,Revenue,CAHD,Bed and Breakfast,Bed & Breakfast,Connolly & Callaghan Limited,448.00, 22-Oct-2019
771,Revenue,CAHD,Bed and Breakfast,Bed & Breakfast,Connolly & Callaghan Limited,539.00, 22-Oct-2019
772,Revenue,CAHD,Bed and Breakfast,Bed & Breakfast,Connolly & Callaghan Limited,497.00, 01-Oct-2019
773,Revenue,CAHD,Bed and Breakfast,Bed & Breakfast,Connolly & Callaghan Limited,455.00, 18-Oct-2019
774,Revenue,CAHD,Bed and Breakfast,Bed & Breakfast,Connolly & Callaghan Limited,426.00, 11-Oct-2019
775,Revenue,CAHD,Bed and Breakfast,Bed & Breakfast,Connolly & Callaghan Limited,497.00, 18-Oct-2019
776,Revenue,CAHD,Bed and Breakfast,Bed & Breakfast,Connolly & Callaghan Limited,665.00, 18-Oct-2019
777,Revenue,CAHD,Bed and Breakfast,Bed & Breakfast,Connolly & Callaghan Limited,910.00, 11-Oct-2019
778,Revenue,CAHD,Bed and Breakfast,Bed & Breakfast,Connolly & Callaghan Limited,581.00, 18-Oct-2019
779,Revenue,CAHD,Bed and Breakfast,Bed & Breakfast,Connolly & Callaghan Limited,714.00, 11-Oct-2019
780,Revenue,CAHD,Bed and Breakfast,Bed & Breakfast,Connolly & Callaghan Limited,539.00, 18-Oct-2019
781,Revenue,CAHD,Bed and Breakfast,Bed & Breakfast,Connolly & Callaghan Limited,455.00, 18-Oct-2019
782,Revenue,CAHD,Bed and Breakfast,Bed & Breakfast,Connolly & Callaghan Limited,497.00, 18-Oct-2019
783,Revenue,CAHD,Bed and Breakfast,Bed & Breakfast,Connolly & Callaghan Limited,448.00, 18-Oct-2019
784,Revenue,CAHD,Bed and Breakfast,Bed & Breakfast,Connolly & Callaghan Limited,483.00, 11-Oct-2019
785,Revenue,CAHD,Bed and Breakfast,Bed & Breakfast,Connolly & Callaghan Limited,539.00, 18-Oct-2019
786,Revenue,CAHD,Bed and Breakfast,Bed & Breakfast,Connolly & Callaghan Limited,420.00, 11-Oct-2019
787,Revenue,CAHD,Bed and Breakfast,Bed & Breakfast,Connolly & Callaghan Limited,455.00, 18-Oct-2019
788,Revenue,CAHD,Bed and Breakfast,Bed & Breakfast,Connolly & Callaghan Limited,497.00, 17-Oct-2019
789,Revenue,CAHD,Bed and Breakfast,Bed & Breakfast,Connolly & Callaghan Limited,497.00, 18-Oct-2019
790,Revenue,CAHD,Bed and Breakfast,Bed & Breakfast,Connolly & Callaghan Limited,665.00, 18-Oct-2019
791,Revenue,CAHD,Bed and Breakfast,Bed & Breakfast,Connolly & Callaghan Limited,910.00, 16-Oct-2019
792,Revenue,CAHD,Bed and Breakfast,Bed & Breakfast,Connolly & Callaghan Limited,581.00, 18-Oct-2019
793,Revenue,CAHD,Bed and Breakfast,Bed & Breakfast,Connolly & Callaghan Limited,539.00, 18-Oct-2019
794,Revenue,CAHD,Bed and Breakfast,Bed & Breakfast,Connolly & Callaghan Limited,455.00, 17-Oct-2019
795,Revenue,CAHD,Bed and Breakfast,Bed & Breakfast,Connolly & Callaghan Limited,497.00, 17-Oct-2019
796,Revenue,CAHD,Bed and Breakfast,Bed & Breakfast,Connolly & Callaghan Limited,426.00, 17-Oct-2019
797,Revenue,CAHD,Bed and Breakfast,Bed & Breakfast,Connolly & Callaghan Limited,483.00, 17-Oct-2019
798,Revenue,CAHD,Bed and Breakfast,Bed & Breakfast,Connolly & Callaghan Limited,539.00, 18-Oct-2019
799,Revenue,CAHD,Bed and Breakfast,Bed & Breakfast,Connolly & Callaghan Limited,420.00, 23-Oct-2019
800,Revenue,CAHD,Bed and Breakfast,Bed & Breakfast,Connolly & Callaghan Limited,2450.00, 09-Oct-2019
801,Revenue,CAHD,Independent Special Placements - Post 16,Other Private Contractors,Cotswold Chine School,46897.50, 14-Oct-2019
802,Revenue,CAHD,Independent Special Placements - Post 16,Other Private Contractors,Cotswold Chine School,39292.50, 14-Oct-2019
803,Revenue,CAHD,Independent Special Placements - Post 16,Other Private Contractors,Cotswold Chine School,22815.00, 14-Oct-2019
804,Revenue,CAHD,Independent Special Placements - Pre 16,Other Private Contractors,Cotswold Chine School,23955.75, 14-Oct-2019
805,Revenue,CAHD,Independent Special Placements - Pre 16,Other Private Contractors,Cotswold Chine School,23955.75, 14-Oct-2019
806,Revenue,CAHD,Independent Special Placements - Pre 16,Other Private Contractors,Cotswold Chine School,1990.00, 30-Oct-2019
807,Revenue,CAHD,Independent Special Placements - Pre 16,Other Private Contractors,Cotswold Chine School,1155.60, 30-Oct-2019
808,Revenue,CAHD,Schools Specific Grant Income,Other Public Bodies,Cotswold Chine School,630.00, 25-Oct-2019
809,Revenue,CAHD,Alexandra Way,Cleaning & Domestic Services,Countrywide Healthcare Supplies Ltd,507.93, 31-Oct-2019
810,Revenue,CAHD,Alexandra Way,Cleaning & Domestic Services,Countrywide Healthcare Supplies Ltd,752.42, 01-Oct-2019
811,Revenue,CAHD,Alexandra Way,Cleaning & Domestic Services,Countrywide Healthcare Supplies Ltd,1502.79, 31-Oct-2019
812,Revenue,CAHD,North - bed purchasing and direct  payments,Permanent Residential,Cream Iii Ltd,8644.00, 22-Oct-2019
813,Revenue,CAHD,S28A cases,Permanent Residential,Creedy Court,10597.96, 22-Oct-2019
814,Revenue,CAHD,S28A cases,Permanent Residential,Creedy Court,8904.92, 22-Oct-2019
815,Revenue,CAHD,North - bed purchasing and direct  payments,Permanent Residential,Creedy Court,14054.00, 22-Oct-2019
816,Revenue,CAHD,Training Budget - Children`s Social Serv,Training Expenses,Cruidin Training and Consultancy Ltd,2114.50, 16-Oct-2019
817,Revenue,CAHD,South - Bed Purchasing and Direct payments,Permanent Residential,Daneswood,12268.80, 22-Oct-2019
818,Revenue,CAHD,South - community based support,Day Care / Social Activities,Daneswood,1413.28, 22-Oct-2019
819,Revenue,CAHD,North - bed purchasing and direct  payments,Permanent Residential,Daneswood,10264.00, 22-Oct-2019
820,Revenue,CAHD,North - S117,Permanent Nursing,Danshell Healthcare Group,10872.28, 22-Oct-2019
821,Revenue,CAHD,Jointly Funded H&SC Packages,Permanent Nursing,Danshell Healthcare Group,1613.28, 22-Oct-2019
822,Revenue,CAHD,Learning Difficulties PSL,Other Supplies & Services,Individual,2400.00, 22-Oct-2019
823,Revenue,CAHD,Discretionary Housing Payment,Other Supplies & Services,Individual,1532.00, 08-Oct-2019
824,Revenue,CAHD,Alexandra Way,Premises Maintenance by Contractor,Davis Roofing Limited,1450.00, 30-Oct-2019
825,Revenue,CAHD,South - community based support,Day Care / Social Activities,Deafblind Uk,1054.32, 17-Oct-2019
826,Revenue,CAHD,South - community based support,Day Care / Social Activities,Deafblind Uk,1415.31, 30-Oct-2019
827,Revenue,CAHD,CSC - Adoption Support Fund,Post Adoption,Individual,1800.00, 03-Oct-2019
828,Revenue,CAHD,Schools Specific Grant Income,Other Public Bodies,Dene Magna School,630.00, 25-Oct-2019
829,Revenue,CAHD,South - community based support,Supported Living,Design House,2661.20, 22-Oct-2019
830,Revenue,CAHD,South - community based support,Supported Living,Design House,3063.00, 22-Oct-2019
831,Revenue,CAHD,South - community based support,Supported Living,Design House,3132.76, 22-Oct-2019
832,Revenue,CAHD,South - community based support,Supported Living,Design House,2993.28, 22-Oct-2019
833,Revenue,CAHD,South - community based support,Day Care / Social Activities,Design House,516.32, 22-Oct-2019
834,Revenue,CAHD,South - community based support,Day Care / Social Activities,Design House,1183.20, 22-Oct-2019
835,Revenue,CAHD,Central - Community based support,Day Care / Social Activities,Design House,2440.84, 22-Oct-2019
836,Revenue,CAHD,South - community based support,Day Care / Social Activities,Design House,921.28, 22-Oct-2019
837,Revenue,CAHD,South - community based support,Supported Living,Design House,2638.60, 22-Oct-2019
838,Revenue,CAHD,South - community based support,Supported Living,Design House,2638.60, 22-Oct-2019
839,Revenue,CAHD,South - community based support,Supported Living,Design House,2149.32, 22-Oct-2019
840,Revenue,CAHD,South - community based support,Day Care / Social Activities,Design House,516.32, 22-Oct-2019
841,Revenue,CAHD,South - community based support,Supported Living,Design House,1896.52, 22-Oct-2019
842,Revenue,CAHD,South - community based support,Supported Living,Design House,2516.60, 22-Oct-2019
843,Revenue,CAHD,South - community based support,Supported Living,Design House,4307.12, 22-Oct-2019
844,Revenue,CAHD,North - Community based support,Supported Living,Design House,3054.24, 22-Oct-2019
845,Revenue,CAHD,South - community based support,Day Care / Social Activities,Design House,1505.96, 22-Oct-2019
846,Revenue,CAHD,South - community based support,Supported Living,Design House,2924.68, 22-Oct-2019
847,Revenue,CAHD,South - community based support,Supported Living,Design House,2542.80, 22-Oct-2019
848,Revenue,CAHD,South - community based support,Supported Living,Design House,2257.48, 22-Oct-2019
849,Revenue,CAHD,South - community based support,Supported Living,Design House,2257.48, 22-Oct-2019
850,Revenue,CAHD,Central - Community based support,Other Small Contracts,Dhek Bhal,42.16, 10-Oct-2019
851,Revenue,CAHD,South - community based support,Other Small Contracts,Dhek Bhal,463.76, 10-Oct-2019
852,Revenue,CAHD,Central - Community based support,Other Small Contracts,Dhek Bhal,42.16, 10-Oct-2019
853,Revenue,CAHD,South - community based support,Other Small Contracts,Dhek Bhal,500.65, 10-Oct-2019
854,Revenue,CAHD,Central - Community based support,Other Small Contracts,Dhek Bhal,42.16, 16-Oct-2019
855,Revenue,CAHD,South - community based support,Other Small Contracts,Dhek Bhal,500.65, 16-Oct-2019
856,Revenue,CAHD,Central - Community based support,Other Small Contracts,Dhek Bhal,42.16, 24-Oct-2019
857,Revenue,CAHD,South - community based support,Other Small Contracts,Dhek Bhal,500.65, 24-Oct-2019
858,Revenue,CAHD,Central - Community based support,Other Small Contracts,Dhek Bhal,42.16, 24-Oct-2019
859,Revenue,CAHD,South - community based support,Other Small Contracts,Dhek Bhal,495.38, 24-Oct-2019
860,Revenue,CAHD,South - community based support,Supported Living,Dimensions  Suite 2,1903.12, 22-Oct-2019
861,Revenue,CAHD,South - community based support,Supported Living,Dimensions  Suite 2,1902.28, 22-Oct-2019
862,Revenue,CAHD,South - community based support,Supported Living,Dimensions  Suite 2,1902.28, 22-Oct-2019
863,Revenue,CAHD,South - community based support,Supported Living,Dimensions  Suite 2,1902.28, 22-Oct-2019
864,Revenue,CAHD,South - Bed Purchasing and Direct payments,Permanent Residential,Dimensions  Suite 2,5630.76, 22-Oct-2019
865,Revenue,CAHD,South - Bed Purchasing and Direct payments,Permanent Residential,Dimensions  Suite 2,2806.12, 22-Oct-2019
866,Revenue,CAHD,CSC - Vinney Green Secure Unit,Teaching Assistants Pay,Diversiti UK Learning and Development C.I.C Ltd,865.00, 17-Oct-2019
867,Revenue,CAHD,Central - Community based support,Other Small Contracts,DoCare Limited,13473.30, 02-Oct-2019
868,Revenue,CAHD,South - community based support,Day Care / Social Activities,DoCare Limited,75.60, 02-Oct-2019
869,Revenue,CAHD,South - community based support,Other Small Contracts,DoCare Limited,697.59, 02-Oct-2019
870,Revenue,CAHD,North - Community based support,Other Small Contracts,DoCare Limited,5127.48, 02-Oct-2019
871,Revenue,CAHD,Central - Community based support,Other Small Contracts,DoCare Limited,14064.36, 14-Oct-2019
872,Revenue,CAHD,South - community based support,Day Care / Social Activities,DoCare Limited,81.00, 14-Oct-2019
873,Revenue,CAHD,South - community based support,Other Small Contracts,DoCare Limited,686.46, 14-Oct-2019
874,Revenue,CAHD,North - Community based support,Other Small Contracts,DoCare Limited,5160.78, 14-Oct-2019
875,Revenue,CAHD,Central - Community based support,Other Small Contracts,DoCare Limited,14299.29, 10-Oct-2019
876,Revenue,CAHD,South - community based support,Day Care / Social Activities,DoCare Limited,75.60, 10-Oct-2019
877,Revenue,CAHD,South - community based support,Other Small Contracts,DoCare Limited,708.54, 10-Oct-2019
878,Revenue,CAHD,North - Community based support,Other Small Contracts,DoCare Limited,5236.92, 10-Oct-2019
879,Revenue,CAHD,Central - Community based support,Other Small Contracts,DoCare Limited,15187.83, 14-Oct-2019
880,Revenue,CAHD,South - community based support,Day Care / Social Activities,DoCare Limited,75.60, 14-Oct-2019
881,Revenue,CAHD,South - community based support,Other Small Contracts,DoCare Limited,654.00, 14-Oct-2019
882,Revenue,CAHD,North - Community based support,Other Small Contracts,DoCare Limited,5205.42, 14-Oct-2019
883,Revenue,CAHD,Central - Community based support,Day Care / Social Activities,DoCare Limited,22.32, 23-Oct-2019
884,Revenue,CAHD,Central - Community based support,Other Small Contracts,DoCare Limited,14902.68, 23-Oct-2019
885,Revenue,CAHD,South - community based support,Day Care / Social Activities,DoCare Limited,64.80, 23-Oct-2019
886,Revenue,CAHD,South - community based support,Other Small Contracts,DoCare Limited,702.57, 23-Oct-2019
887,Revenue,CAHD,North - Community based support,Other Small Contracts,DoCare Limited,5117.94, 23-Oct-2019
888,Revenue,CAHD,18-25 Year Olds,Other Small Contracts,DoCare Limited,44.64, 25-Oct-2019
889,Revenue,CAHD,Central - Community based support,Day Care / Social Activities,DoCare Limited,22.32, 25-Oct-2019
890,Revenue,CAHD,Central - Community based support,Other Small Contracts,DoCare Limited,15713.22, 25-Oct-2019
891,Revenue,CAHD,South - community based support,Day Care / Social Activities,DoCare Limited,81.00, 25-Oct-2019
892,Revenue,CAHD,South - community based support,Other Small Contracts,DoCare Limited,594.81, 25-Oct-2019
893,Revenue,CAHD,North - Community based support,Other Small Contracts,DoCare Limited,4500.90, 25-Oct-2019
894,Revenue,CAHD,Pathway 1 - Re-Ablement Home Care,Other Small Contracts,DoCare Limited,1595.88, 07-Oct-2019
895,Revenue,CAHD,Pathway 1 - Re-Ablement Home Care,Other Small Contracts,DoCare Limited,1311.30, 07-Oct-2019
896,Revenue,CAHD,Pathway 1 - Re-Ablement Home Care,Other Small Contracts,DoCare Limited,1065.78, 07-Oct-2019
897,Revenue,CAHD,Statemented Support Academies,Other Public Bodies,Downend School,978.57, 25-Oct-2019
898,Revenue,CAHD,Statemented Support Academies,Other Public Bodies,Downend School,660.24, 25-Oct-2019
899,Revenue,CAHD,Statemented Support Academies,Other Public Bodies,Downend School,1025.73, 25-Oct-2019
900,Revenue,CAHD,Statemented Support Academies,Other Public Bodies,Downend School,1013.94, 25-Oct-2019
901,Revenue,CAHD,Statemented Support Academies,Other Public Bodies,Downend School,801.72, 25-Oct-2019
902,Revenue,CAHD,Statemented Support Academies,Other Public Bodies,Downend School,530.55, 25-Oct-2019
903,Revenue,CAHD,Statemented Support Academies,Other Public Bodies,Downend School,1108.26, 25-Oct-2019
904,Revenue,CAHD,Statemented Support Academies,Other Public Bodies,Downend School,554.13, 25-Oct-2019
905,Revenue,CAHD,Statemented Support Academies,Other Public Bodies,Downend School,1438.38, 25-Oct-2019
906,Revenue,CAHD,Statemented Support Academies,Other Public Bodies,Downend School,1709.55, 25-Oct-2019
907,Revenue,CAHD,Statemented Support Academies,Other Public Bodies,Downend School,1544.49, 25-Oct-2019
908,Revenue,CAHD,Social Lettings Agency,Other Supplies & Services,Individual,605.64, 24-Oct-2019
909,Revenue,CAHD,Independent Special Placements - Pre 16,Other Private Contractors,Durham School,8311.95, 07-Oct-2019
910,Revenue,CAHD,Bed and Breakfast,Bed & Breakfast,Individual,494.50, 01-Oct-2019
911,Revenue,CAHD,Bed and Breakfast,Bed & Breakfast,Individual,494.50, 16-Oct-2019
912,Revenue,CAHD,North - bed purchasing and direct  payments,Permanent Residential,East Court,2763.56, 22-Oct-2019
913,Revenue,CAHD,Minor Adaptations Service,Operational Equipment,Eastman & Co (Timber) Limited,1478.07, 03-Oct-2019
914,Revenue,CAHD,Senior Management,Long Service Awards,Edenred (UK Group) Limited,670.00, 30-Oct-2019
915,Revenue,CAHD,South - Bed Purchasing and Direct payments,Permanent Residential,Edgecumbe Lodge,2662.40, 22-Oct-2019
916,Revenue,CAHD,South - Bed Purchasing and Direct payments,Permanent Residential,Edgecumbe Lodge,2662.40, 22-Oct-2019
917,Revenue,CAHD,South - Bed Purchasing and Direct payments,Permanent Residential,Edgecumbe Lodge,2230.32, 22-Oct-2019
918,Revenue,CAHD,Central - Bed Purchasing and Direct Payments,Permanent Residential,Edgecumbe Lodge,10666.43, 22-Oct-2019
919,Revenue,CAHD,Central - Bed Purchasing and Direct Payments,Permanent Residential,Edgecumbe Lodge,2740.00, 22-Oct-2019
920,Revenue,CAHD,Central - Bed Purchasing and Direct Payments,Fees & Charges Income - General,Edgecumbe Lodge,708.21, 22-Oct-2019
921,Revenue,CAHD,North - S117,Permanent Residential,Edgecumbe Lodge,2719.76, 22-Oct-2019
922,Revenue,CAHD,South - Bed Purchasing and Direct payments,Permanent Residential,Edgecumbe Lodge,2662.40, 22-Oct-2019
923,Revenue,CAHD,North - bed purchasing and direct  payments,Respite Emergency - Residential,Edgecumbe Lodge,3718.57, 22-Oct-2019
924,Revenue,CAHD,North - bed purchasing and direct  payments,Permanent Residential,Edgecumbe Lodge,17027.14, 22-Oct-2019
925,Revenue,CAHD,North - bed purchasing and direct  payments,Fees & Charges Income - General,Edgecumbe Lodge,542.65, 22-Oct-2019
926,Revenue,CAHD,North - bed purchasing and direct  payments,Fees & Charges Income - General,Edgecumbe Lodge,1748.87, 22-Oct-2019
927,Revenue,CAHD,North - bed purchasing and direct  payments,Fees & Charges Income - General,Edgecumbe Lodge,8415.71, 22-Oct-2019
928,Revenue,CAHD,South - Bed Purchasing and Direct payments,Permanent Residential,Edgecumbe Lodge,2303.60, 22-Oct-2019
929,Revenue,CAHD,South - Bed Purchasing and Direct payments,Permanent Residential,Edgecumbe Lodge,2504.28, 22-Oct-2019
930,Revenue,CAHD,South - Bed Purchasing and Direct payments,Permanent Residential,Edgecumbe Lodge,2536.84, 22-Oct-2019
931,Revenue,CAHD,South - Bed Purchasing and Direct payments,Permanent Residential,Edgecumbe Lodge,2662.40, 22-Oct-2019
932,Revenue,CAHD,South - Bed Purchasing and Direct payments,Permanent Residential,Edgemont House Ltd,3200.00, 22-Oct-2019
933,Revenue,CAHD,South - Bed Purchasing and Direct payments,Permanent Residential,Edgemont House Ltd,2826.24, 22-Oct-2019
934,Revenue,CAHD,South - Bed Purchasing and Direct payments,Fees & Charges Income - General,Edgemont House Ltd,3030.02, 22-Oct-2019
935,Revenue,CAHD,South - Bed Purchasing and Direct payments,Permanent Residential,Edgemont House Ltd,2022.76, 22-Oct-2019
936,Revenue,CAHD,South - Bed Purchasing and Direct payments,Respite Planned - Residential,Edgemont House Ltd,1700.00, 22-Oct-2019
937,Revenue,CAHD,South - Bed Purchasing and Direct payments,Respite Planned - Residential,Edgemont House Ltd,1457.14, 22-Oct-2019
938,Revenue,CAHD,South - Bed Purchasing and Direct payments,Respite Planned - Residential,Edgemont House Ltd,850.00, 22-Oct-2019
939,Revenue,CAHD,South Glos Users in South Glos Homes,Permanent Nursing,Edgemont View Nursing Home,662.24, 22-Oct-2019
940,Revenue,CAHD,South - Bed Purchasing and Direct payments,Permanent Nursing,Edgemont View Nursing Home,3584.00, 22-Oct-2019
941,Revenue,CAHD,South Glos Users in South Glos Homes,Permanent Nursing,Edgemont View Nursing Home,662.24, 22-Oct-2019
942,Revenue,CAHD,South Glos Users in South Glos Homes,Permanent Nursing,Edgemont View Nursing Home,662.24, 22-Oct-2019
943,Revenue,CAHD,South - Bed Purchasing and Direct payments,Permanent Nursing,Edgemont View Nursing Home,2560.00, 22-Oct-2019
944,Revenue,CAHD,South Glos Users in South Glos Homes,Permanent Nursing,Edgemont View Nursing Home,662.24, 22-Oct-2019
945,Revenue,CAHD,South - Bed Purchasing and Direct payments,Permanent Nursing,Edgemont View Nursing Home,4129.44, 22-Oct-2019
946,Revenue,CAHD,South Glos Users in South Glos Homes,Permanent Nursing,Edgemont View Nursing Home,662.24, 22-Oct-2019
947,Revenue,CAHD,South Glos Users in South Glos Homes,Permanent Nursing,Edgemont View Nursing Home,662.24, 22-Oct-2019
948,Revenue,CAHD,South Glos Users in South Glos Homes,Permanent Nursing,Edgemont View Nursing Home,662.24, 22-Oct-2019
949,Revenue,CAHD,South Glos Users in South Glos Homes,Permanent Nursing,Edgemont View Nursing Home,662.24, 22-Oct-2019
950,Revenue,CAHD,South Glos Users in South Glos Homes,Permanent Nursing,Edgemont View Nursing Home,662.24, 22-Oct-2019
951,Revenue,CAHD,South - Bed Purchasing and Direct payments,Permanent Nursing,Edgemont View Nursing Home,3005.16, 22-Oct-2019
952,Revenue,CAHD,South Glos Users in South Glos Homes,Permanent Nursing,Edgemont View Nursing Home,662.24, 22-Oct-2019
953,Revenue,CAHD,South Glos Users in South Glos Homes,Permanent Nursing,Edgemont View Nursing Home,662.24, 22-Oct-2019
954,Revenue,CAHD,South Glos Users in South Glos Homes,Permanent Nursing,Edgemont View Nursing Home,662.24, 22-Oct-2019
955,Revenue,CAHD,South Glos Users in South Glos Homes,Permanent Nursing,Edgemont View Nursing Home,662.24, 22-Oct-2019
956,Revenue,CAHD,South - Bed Purchasing and Direct payments,Permanent Nursing,Edgemont View Nursing Home,3005.16, 22-Oct-2019
957,Revenue,CAHD,South Glos Users in South Glos Homes,Permanent Nursing,Edgemont View Nursing Home,662.24, 22-Oct-2019
958,Revenue,CAHD,South Glos Users in South Glos Homes,Permanent Nursing,Edgemont View Nursing Home,662.24, 22-Oct-2019
959,Revenue,CAHD,South - Bed Purchasing and Direct payments,Permanent Nursing,Edgemont View Nursing Home,3584.00, 22-Oct-2019
960,Revenue,CAHD,South Glos Users in South Glos Homes,Permanent Nursing,Edgemont View Nursing Home,662.24, 22-Oct-2019
961,Revenue,CAHD,South - Bed Purchasing and Direct payments,Permanent Nursing,Edgemont View Nursing Home,3400.00, 22-Oct-2019
962,Revenue,CAHD,South Glos Users in South Glos Homes,Permanent Nursing,Edgemont View Nursing Home,662.24, 22-Oct-2019
963,Revenue,CAHD,Training Budget - Children`s Social Serv,Training Expenses,EG People Development,653.58, 25-Oct-2019
964,Revenue,CAHD,Planning and Partnerships Procurement,Other Supplies & Services,Eldercare,2981.07, 30-Oct-2019
965,Revenue,CAHD,Planning and Partnerships Procurement,Other Supplies & Services,Eldercare,2466.52, 30-Oct-2019
966,Revenue,CAHD,Future Bright,Fees - General,eLearning Marketplace Ltd,500.00, 18-Oct-2019
967,Revenue,CAHD,Supporting People Programme,Grants to Voluntary Bodies,Elim Housing Association Limited,5372.63, 01-Oct-2019
968,Revenue,CAHD,Tenancy Start Up Scheme,Other Supplies & Services,Elim Housing Association Limited,1152.82, 31-Oct-2019
969,Revenue,CAHD,South - community based support,Day Care / Social Activities,Elite Home Care Ltd,203.36, 10-Oct-2019
970,Revenue,CAHD,South - community based support,Other Small Contracts,Elite Home Care Ltd,8091.23, 10-Oct-2019
971,Revenue,CAHD,North - Community based support,Other Small Contracts,Elite Home Care Ltd,386.88, 10-Oct-2019
972,Revenue,CAHD,South - community based support,Day Care / Social Activities,Elite Home Care Ltd,203.36, 16-Oct-2019
973,Revenue,CAHD,South - community based support,Other Small Contracts,Elite Home Care Ltd,8059.76, 16-Oct-2019
974,Revenue,CAHD,North - Community based support,Other Small Contracts,Elite Home Care Ltd,401.76, 16-Oct-2019
975,Revenue,CAHD,Special ISB,Other Public Bodies,Enable Trust,2307.54, 25-Oct-2019
976,Revenue,CAHD,Special ISB,Other Public Bodies,Enable Trust,1536.62, 25-Oct-2019
977,Revenue,CAHD,Special ISB,Other Public Bodies,Enable Trust,1172.68, 25-Oct-2019
978,Revenue,CAHD,Special ISB,Other Public Bodies,Enable Trust,1172.68, 25-Oct-2019
979,Revenue,CAHD,Special ISB,Other Public Bodies,Enable Trust,1172.68, 25-Oct-2019
980,Revenue,CAHD,Special ISB,Other Public Bodies,Enable Trust,889.61, 25-Oct-2019
981,Revenue,CAHD,Special ISB,Other Public Bodies,Enable Trust,889.61, 25-Oct-2019
982,Revenue,CAHD,Special ISB,Other Public Bodies,Enable Trust,1172.68, 25-Oct-2019
983,Revenue,CAHD,Special ISB,Other Public Bodies,Enable Trust,1536.62, 25-Oct-2019
984,Revenue,CAHD,Special ISB,Other Public Bodies,Enable Trust,889.61, 25-Oct-2019
985,Revenue,CAHD,Special ISB,Other Public Bodies,Enable Trust,1172.68, 25-Oct-2019
986,Revenue,CAHD,Special ISB,Other Public Bodies,Enable Trust,889.61, 25-Oct-2019
987,Revenue,CAHD,Special ISB,Other Public Bodies,Enable Trust,889.61, 25-Oct-2019
988,Revenue,CAHD,Special ISB,Other Public Bodies,Enable Trust,1172.68, 25-Oct-2019
989,Revenue,CAHD,Schools Specific Grant Income,Other Public Bodies,Enable Trust,630.00, 25-Oct-2019
990,Revenue,CAHD,Special ISB,Other Public Bodies,Enable Trust,1172.68, 25-Oct-2019
991,Revenue,CAHD,Special ISB,Other Public Bodies,Enable Trust,1536.62, 25-Oct-2019
992,Revenue,CAHD,Special ISB,Other Public Bodies,Enable Trust,1698.32, 25-Oct-2019
993,Revenue,CAHD,Special ISB,Other Public Bodies,Enable Trust,889.61, 25-Oct-2019
994,Revenue,CAHD,Special ISB,Other Public Bodies,Enable Trust,1536.62, 25-Oct-2019
995,Revenue,CAHD,Special ISB,Other Public Bodies,Enable Trust,1172.68, 25-Oct-2019
996,Revenue,CAHD,Special ISB,Other Public Bodies,Enable Trust,1172.68, 25-Oct-2019
997,Revenue,CAHD,Special ISB,Other Public Bodies,Enable Trust,1172.68, 25-Oct-2019
998,Revenue,CAHD,Special ISB,Other Public Bodies,Enable Trust,1698.32, 25-Oct-2019
999,Revenue,CAHD,Special ISB,Other Public Bodies,Enable Trust,1698.32, 25-Oct-2019
1000,Revenue,CAHD,Special ISB,Other Public Bodies,Enable Trust,1698.32, 25-Oct-2019
1001,Revenue,CAHD,Special ISB,Other Public Bodies,Enable Trust,1172.68, 25-Oct-2019
1002,Revenue,CAHD,Special ISB,Other Public Bodies,Enable Trust,1698.32, 25-Oct-2019
1003,Revenue,CAHD,Special ISB,Other Public Bodies,Enable Trust,1536.62, 25-Oct-2019
1004,Revenue,CAHD,Special ISB,Other Public Bodies,Enable Trust,1536.62, 25-Oct-2019
1005,Revenue,CAHD,Special ISB,Other Public Bodies,Enable Trust,1536.62, 25-Oct-2019
1006,Revenue,CAHD,Special ISB,Other Public Bodies,Enable Trust,1536.62, 25-Oct-2019
1007,Revenue,CAHD,Special ISB,Other Public Bodies,Enable Trust,1698.32, 25-Oct-2019
1008,Revenue,CAHD,Special ISB,Other Public Bodies,Enable Trust,1172.68, 25-Oct-2019
1009,Revenue,CAHD,Special ISB,Other Public Bodies,Enable Trust,1698.32, 25-Oct-2019
1010,Revenue,CAHD,Special ISB,Other Public Bodies,Enable Trust,1172.68, 25-Oct-2019
1011,Revenue,CAHD,Special ISB,Other Public Bodies,Enable Trust,1698.32, 25-Oct-2019
1012,Revenue,CAHD,Special ISB,Other Public Bodies,Enable Trust,1172.68, 25-Oct-2019
1013,Revenue,CAHD,Special ISB,Other Public Bodies,Enable Trust,1172.68, 25-Oct-2019
1014,Revenue,CAHD,Special ISB,Other Public Bodies,Enable Trust,1172.68, 25-Oct-2019
1015,Revenue,CAHD,Special ISB,Other Public Bodies,Enable Trust,889.61, 25-Oct-2019
1016,Revenue,CAHD,Special ISB,Other Public Bodies,Enable Trust,1536.62, 25-Oct-2019
1017,Revenue,CAHD,Special ISB,Other Public Bodies,Enable Trust,1172.68, 25-Oct-2019
1018,Revenue,CAHD,Special ISB,Other Public Bodies,Enable Trust,646.92, 25-Oct-2019
1019,Revenue,CAHD,Special ISB,Other Public Bodies,Enable Trust,889.61, 25-Oct-2019
1020,Revenue,CAHD,Special ISB,Other Public Bodies,Enable Trust,1172.68, 25-Oct-2019
1021,Revenue,CAHD,Special ISB,Other Public Bodies,Enable Trust,1698.32, 25-Oct-2019
1022,Revenue,CAHD,Special ISB,Other Public Bodies,Enable Trust,2183.55, 25-Oct-2019
1023,Revenue,CAHD,Special ISB,Other Public Bodies,Enable Trust,1536.62, 25-Oct-2019
1024,Revenue,CAHD,Special ISB,Other Public Bodies,Enable Trust,1172.68, 25-Oct-2019
1025,Revenue,CAHD,Special ISB,Other Public Bodies,Enable Trust,2183.55, 25-Oct-2019
1026,Revenue,CAHD,Special ISB,Other Public Bodies,Enable Trust,2183.55, 25-Oct-2019
1027,Revenue,CAHD,Special ISB,Other Public Bodies,Enable Trust,2183.55, 25-Oct-2019
1028,Revenue,CAHD,Special ISB,Other Public Bodies,Enable Trust,889.61, 25-Oct-2019
1029,Revenue,CAHD,Special ISB,Other Public Bodies,Enable Trust,1172.68, 25-Oct-2019
1030,Revenue,CAHD,Schools Specific Grant Income,Other Public Bodies,Enable Trust,630.00, 25-Oct-2019
1031,Revenue,CAHD,Special ISB,Other Public Bodies,Enable Trust,1172.68, 25-Oct-2019
1032,Revenue,CAHD,Special ISB,Other Public Bodies,Enable Trust,889.61, 25-Oct-2019
1033,Revenue,CAHD,Special ISB,Other Public Bodies,Enable Trust,889.61, 25-Oct-2019
1034,Revenue,CAHD,Special ISB,Other Public Bodies,Enable Trust,1698.32, 25-Oct-2019
1035,Revenue,CAHD,Special ISB,Other Public Bodies,Enable Trust,889.61, 25-Oct-2019
1036,Revenue,CAHD,Special ISB,Other Public Bodies,Enable Trust,889.61, 25-Oct-2019
1037,Revenue,CAHD,Special ISB,Other Public Bodies,Enable Trust,1172.68, 25-Oct-2019
1038,Revenue,CAHD,Special ISB,Other Public Bodies,Enable Trust,1172.68, 25-Oct-2019
1039,Revenue,CAHD,Special ISB,Other Public Bodies,Enable Trust,1172.68, 25-Oct-2019
1040,Revenue,CAHD,Special ISB,Other Public Bodies,Enable Trust,1172.68, 25-Oct-2019
1041,Revenue,CAHD,Special ISB,Other Public Bodies,Enable Trust,1536.62, 25-Oct-2019
1042,Revenue,CAHD,Special ISB,Other Public Bodies,Enable Trust,1172.68, 25-Oct-2019
1043,Revenue,CAHD,Special ISB,Other Public Bodies,Enable Trust,1536.62, 25-Oct-2019
1044,Revenue,CAHD,Special ISB,Other Public Bodies,Enable Trust,889.61, 25-Oct-2019
1045,Revenue,CAHD,Special ISB,Other Public Bodies,Enable Trust,1172.68, 25-Oct-2019
1046,Revenue,CAHD,Special ISB,Other Public Bodies,Enable Trust,889.61, 25-Oct-2019
1047,Revenue,CAHD,Special ISB,Other Public Bodies,Enable Trust,889.61, 25-Oct-2019
1048,Revenue,CAHD,Special ISB,Other Public Bodies,Enable Trust,1698.32, 25-Oct-2019
1049,Revenue,CAHD,Special ISB,Other Public Bodies,Enable Trust,1698.32, 25-Oct-2019
1050,Revenue,CAHD,Special ISB,Other Public Bodies,Enable Trust,1536.62, 25-Oct-2019
1051,Revenue,CAHD,Special ISB,Other Public Bodies,Enable Trust,1172.68, 25-Oct-2019
1052,Revenue,CAHD,Special ISB,Other Public Bodies,Enable Trust,1172.68, 25-Oct-2019
1053,Revenue,CAHD,Special ISB,Other Public Bodies,Enable Trust,1536.62, 25-Oct-2019
1054,Revenue,CAHD,Special ISB,Other Public Bodies,Enable Trust,889.61, 25-Oct-2019
1055,Revenue,CAHD,Special ISB,Other Public Bodies,Enable Trust,1172.68, 25-Oct-2019
1056,Revenue,CAHD,Special ISB,Other Public Bodies,Enable Trust,1172.68, 25-Oct-2019
1057,Revenue,CAHD,Special ISB,Other Public Bodies,Enable Trust,1172.68, 25-Oct-2019
1058,Revenue,CAHD,Special ISB,Other Public Bodies,Enable Trust,889.61, 25-Oct-2019
1059,Revenue,CAHD,Special ISB,Other Public Bodies,Enable Trust,1698.32, 25-Oct-2019
1060,Revenue,CAHD,Special ISB,Other Public Bodies,Enable Trust,2507.02, 25-Oct-2019
1061,Revenue,CAHD,Special ISB,Other Public Bodies,Enable Trust,1172.68, 25-Oct-2019
1062,Revenue,CAHD,Special ISB,Other Public Bodies,Enable Trust,1010.96, 25-Oct-2019
1063,Revenue,CAHD,Special ISB,Other Public Bodies,Enable Trust,1172.68, 25-Oct-2019
1064,Revenue,CAHD,Special ISB,Other Public Bodies,Enable Trust,1172.68, 25-Oct-2019
1065,Revenue,CAHD,Special ISB,Other Public Bodies,Enable Trust,1172.68, 25-Oct-2019
1066,Revenue,CAHD,Special ISB,Other Public Bodies,Enable Trust,889.61, 25-Oct-2019
1067,Revenue,CAHD,Special ISB,Other Public Bodies,Enable Trust,646.92, 25-Oct-2019
1068,Revenue,CAHD,Special ISB,Other Public Bodies,Enable Trust,1172.68, 25-Oct-2019
1069,Revenue,CAHD,Special ISB,Other Public Bodies,Enable Trust,1172.68, 25-Oct-2019
1070,Revenue,CAHD,Special ISB,Other Public Bodies,Enable Trust,2183.55, 25-Oct-2019
1071,Revenue,CAHD,Special ISB,Other Public Bodies,Enable Trust,1172.68, 25-Oct-2019
1072,Revenue,CAHD,Special ISB,Other Public Bodies,Enable Trust,889.61, 25-Oct-2019
1073,Revenue,CAHD,Special ISB,Other Public Bodies,Enable Trust,1172.68, 25-Oct-2019
1074,Revenue,CAHD,Special ISB,Other Public Bodies,Enable Trust,2183.55, 25-Oct-2019
1075,Revenue,CAHD,Schools Specific Grant Income,Other Public Bodies,Enable Trust,630.00, 25-Oct-2019
1076,Revenue,CAHD,Special ISB,Other Public Bodies,Enable Trust,3341.84, 25-Oct-2019
1077,Revenue,CAHD,Special ISB,Other Public Bodies,Enable Trust,889.61, 25-Oct-2019
1078,Revenue,CAHD,Special ISB,Other Public Bodies,Enable Trust,1172.68, 25-Oct-2019
1079,Revenue,CAHD,Special ISB,Other Public Bodies,Enable Trust,889.61, 25-Oct-2019
1080,Revenue,CAHD,Special ISB,Other Public Bodies,Enable Trust,1172.68, 25-Oct-2019
1081,Revenue,CAHD,Special ISB,Other Public Bodies,Enable Trust,1172.68, 25-Oct-2019
1082,Revenue,CAHD,Special ISB,Other Public Bodies,Enable Trust,1698.32, 25-Oct-2019
1083,Revenue,CAHD,Special ISB,Other Public Bodies,Enable Trust,1172.68, 25-Oct-2019
1084,Revenue,CAHD,Special ISB,Other Public Bodies,Enable Trust,1172.68, 25-Oct-2019
1085,Revenue,CAHD,Special ISB,Other Public Bodies,Enable Trust,1172.68, 25-Oct-2019
1086,Revenue,CAHD,Special ISB,Other Public Bodies,Enable Trust,889.61, 25-Oct-2019
1087,Revenue,CAHD,Special ISB,Other Public Bodies,Enable Trust,1698.32, 25-Oct-2019
1088,Revenue,CAHD,Special ISB,Other Public Bodies,Enable Trust,1172.68, 25-Oct-2019
1089,Revenue,CAHD,Special ISB,Other Public Bodies,Enable Trust,889.61, 25-Oct-2019
1090,Revenue,CAHD,Special ISB,Other Public Bodies,Enable Trust,1536.62, 25-Oct-2019
1091,Revenue,CAHD,Special ISB,Other Public Bodies,Enable Trust,1536.62, 25-Oct-2019
1092,Revenue,CAHD,Special ISB,Other Public Bodies,Enable Trust,1172.68, 25-Oct-2019
1093,Revenue,CAHD,Special ISB,Other Public Bodies,Enable Trust,1172.68, 25-Oct-2019
1094,Revenue,CAHD,Special ISB,Other Public Bodies,Enable Trust,2507.02, 25-Oct-2019
1095,Revenue,CAHD,Special ISB,Other Public Bodies,Enable Trust,889.61, 25-Oct-2019
1096,Revenue,CAHD,Special ISB,Other Public Bodies,Enable Trust,1536.62, 25-Oct-2019
1097,Revenue,CAHD,Special ISB,Other Public Bodies,Enable Trust,889.61, 25-Oct-2019
1098,Revenue,CAHD,Special ISB,Other Public Bodies,Enable Trust,889.61, 25-Oct-2019
1099,Revenue,CAHD,Special ISB,Other Public Bodies,Enable Trust,1698.32, 25-Oct-2019
1100,Revenue,CAHD,Special ISB,Other Public Bodies,Enable Trust,1172.68, 25-Oct-2019
1101,Revenue,CAHD,Special ISB,Other Public Bodies,Enable Trust,889.61, 25-Oct-2019
1102,Revenue,CAHD,Special ISB,Other Public Bodies,Enable Trust,1172.68, 25-Oct-2019
1103,Revenue,CAHD,Special ISB,Other Public Bodies,Enable Trust,889.61, 25-Oct-2019
1104,Revenue,CAHD,Special ISB,Other Public Bodies,Enable Trust,1172.68, 25-Oct-2019
1105,Revenue,CAHD,Special ISB,Other Public Bodies,Enable Trust,2183.55, 25-Oct-2019
1106,Revenue,CAHD,Special ISB,Other Public Bodies,Enable Trust,889.61, 25-Oct-2019
1107,Revenue,CAHD,Special ISB,Other Public Bodies,Enable Trust,889.61, 25-Oct-2019
1108,Revenue,CAHD,Special ISB,Other Public Bodies,Enable Trust,1172.68, 25-Oct-2019
1109,Revenue,CAHD,Special ISB,Other Public Bodies,Enable Trust,889.61, 25-Oct-2019
1110,Revenue,CAHD,Special ISB,Other Public Bodies,Enable Trust,1504.21, 25-Oct-2019
1111,Revenue,CAHD,Special ISB,Other Public Bodies,Enable Trust,1698.32, 25-Oct-2019
1112,Revenue,CAHD,Special ISB,Other Public Bodies,Enable Trust,1172.68, 25-Oct-2019
1113,Revenue,CAHD,Special ISB,Other Public Bodies,Enable Trust,1536.62, 25-Oct-2019
1114,Revenue,CAHD,Special ISB,Other Public Bodies,Enable Trust,889.61, 25-Oct-2019
1115,Revenue,CAHD,Special ISB,Other Public Bodies,Enable Trust,1172.68, 25-Oct-2019
1116,Revenue,CAHD,Special ISB,Other Public Bodies,Enable Trust,2507.02, 25-Oct-2019
1117,Revenue,CAHD,Special ISB,Other Public Bodies,Enable Trust,1172.68, 25-Oct-2019
1118,Revenue,CAHD,Special ISB,Other Public Bodies,Enable Trust,1536.62, 25-Oct-2019
1119,Revenue,CAHD,Special ISB,Other Public Bodies,Enable Trust,889.61, 25-Oct-2019
1120,Revenue,CAHD,Special ISB,Other Public Bodies,Enable Trust,1172.68, 25-Oct-2019
1121,Revenue,CAHD,Special ISB,Other Public Bodies,Enable Trust,889.61, 25-Oct-2019
1122,Revenue,CAHD,Special ISB,Other Public Bodies,Enable Trust,1698.32, 25-Oct-2019
1123,Revenue,CAHD,Special ISB,Other Public Bodies,Enable Trust,1172.68, 25-Oct-2019
1124,Revenue,CAHD,Special ISB,Other Public Bodies,Enable Trust,646.92, 25-Oct-2019
1125,Revenue,CAHD,Special ISB,Other Public Bodies,Enable Trust,1172.68, 25-Oct-2019
1126,Revenue,CAHD,Special ISB,Other Public Bodies,Enable Trust,1536.62, 25-Oct-2019
1127,Revenue,CAHD,Special ISB,Other Public Bodies,Enable Trust,1172.68, 25-Oct-2019
1128,Revenue,CAHD,Special ISB,Other Public Bodies,Enable Trust,1536.62, 25-Oct-2019
1129,Revenue,CAHD,Special ISB,Other Public Bodies,Enable Trust,1172.68, 25-Oct-2019
1130,Revenue,CAHD,Special ISB,Other Public Bodies,Enable Trust,1698.32, 25-Oct-2019
1131,Revenue,CAHD,Special ISB,Other Public Bodies,Enable Trust,1172.68, 25-Oct-2019
1132,Revenue,CAHD,Special ISB,Other Public Bodies,Enable Trust,889.61, 25-Oct-2019
1133,Revenue,CAHD,Special ISB,Other Public Bodies,Enable Trust,2183.55, 25-Oct-2019
1134,Revenue,CAHD,Special ISB,Other Public Bodies,Enable Trust,1698.32, 25-Oct-2019
1135,Revenue,CAHD,Special ISB,Other Public Bodies,Enable Trust,2507.02, 25-Oct-2019
1136,Revenue,CAHD,Central - Community based support,Other Small Contracts,Epiphany In Care,926.00, 23-Oct-2019
1137,Revenue,CAHD,Central - Community based support,Other Small Contracts,Epiphany In Care,7560.00, 03-Oct-2019
1138,Revenue,CAHD,Central - Community based support,Other Small Contracts,Epiphany In Care,2700.00, 03-Oct-2019
1139,Revenue,CAHD,Central - Community based support,Other Small Contracts,Epiphany In Care,5190.75, 18-Oct-2019
1140,Revenue,CAHD,Central - Community based support,Other Small Contracts,Epiphany In Care,5676.00, 03-Oct-2019
1141,Revenue,CAHD,South - Bed Purchasing and Direct payments,Permanent Nursing,Epworth House,3072.00, 22-Oct-2019
1142,Revenue,CAHD,North - S117,Permanent Residential,Evolve House,6553.60, 22-Oct-2019
1143,Revenue,CAHD,South - Bed Purchasing and Direct payments,Permanent Residential,Evolve House,2681.76, 22-Oct-2019
1144,Revenue,CAHD,Placements OLA Special Schools and RB,Other L.A.'s - General,Excalibur Academies Trust T/A,1511.83, 28-Oct-2019
1145,Revenue,CAHD,Extra Care Housing,Private & Voluntary Home Care,Extra Care Charitable Trust,30382.22, 11-Oct-2019
1146,Revenue,CAHD,North - bed purchasing and direct  payments,Permanent Residential,Eyre Court,11157.48, 22-Oct-2019
1147,Revenue,CAHD,South - Bed Purchasing and Direct payments,Permanent Nursing,Fairview Court,3810.56, 22-Oct-2019
1148,Revenue,CAHD,South Glos Users in South Glos Homes,Permanent Nursing,Fairview Court,662.24, 22-Oct-2019
1149,Revenue,CAHD,South Glos Users in South Glos Homes,Permanent Nursing,Fairview Court,662.24, 22-Oct-2019
1150,Revenue,CAHD,South Glos Users in South Glos Homes,Permanent Nursing,Fairview Court,662.24, 22-Oct-2019
1151,Revenue,CAHD,South - Bed Purchasing and Direct payments,Permanent Nursing,Fairview Court,3810.56, 22-Oct-2019
1152,Revenue,CAHD,South Glos Users in South Glos Homes,Permanent Nursing,Fairview Court,662.24, 22-Oct-2019
1153,Revenue,CAHD,South Glos Users in South Glos Homes,Permanent Nursing,Fairview Court,662.24, 22-Oct-2019
1154,Revenue,CAHD,South Glos Users in South Glos Homes,Permanent Nursing,Fairview Court,662.24, 22-Oct-2019
1155,Revenue,CAHD,South Glos Users in South Glos Homes,Permanent Nursing,Fairview Court,662.24, 22-Oct-2019
1156,Revenue,CAHD,South Glos Users in South Glos Homes,Permanent Nursing,Fairview Court,662.24, 22-Oct-2019
1157,Revenue,CAHD,South - Bed Purchasing and Direct payments,Permanent Nursing,Fairview Court,3547.76, 22-Oct-2019
1158,Revenue,CAHD,South Glos Users in South Glos Homes,Permanent Nursing,Fairview Court,662.24, 22-Oct-2019
1159,Revenue,CAHD,South - Bed Purchasing and Direct payments,Permanent Nursing,Fairview Court,3506.00, 22-Oct-2019
1160,Revenue,CAHD,South Glos Users in South Glos Homes,Permanent Nursing,Fairview Court,662.24, 22-Oct-2019
1161,Revenue,CAHD,South Glos Users in South Glos Homes,Permanent Nursing,Fairview Court,662.24, 22-Oct-2019
1162,Revenue,CAHD,South Glos Users in South Glos Homes,Permanent Nursing,Fairview Court,662.24, 22-Oct-2019
1163,Revenue,CAHD,South Glos Users in South Glos Homes,Permanent Nursing,Fairview Court,662.24, 22-Oct-2019
1164,Revenue,CAHD,South - S117,Permanent Nursing,Fairview Court,4173.84, 22-Oct-2019
1165,Revenue,CAHD,South Glos Users in South Glos Homes,Permanent Nursing,Fairview Court,662.24, 22-Oct-2019
1166,Revenue,CAHD,South Glos Users in South Glos Homes,Permanent Nursing,Fairview Court,662.24, 22-Oct-2019
1167,Revenue,CAHD,South - Bed Purchasing and Direct payments,Permanent Nursing,Fairview Court,3382.48, 22-Oct-2019
1168,Revenue,CAHD,South Glos Users in South Glos Homes,Permanent Nursing,Fairview Court,662.24, 22-Oct-2019
1169,Revenue,CAHD,South - Bed Purchasing and Direct payments,Respite Planned - Nursing,Fairview Court,2024.32, 22-Oct-2019
1170,Revenue,CAHD,South Glos Users in South Glos Homes,Permanent Nursing,Fairview Court,662.24, 22-Oct-2019
1171,Revenue,CAHD,South Glos Users in South Glos Homes,Permanent Nursing,Fairview Court,662.24, 22-Oct-2019
1172,Revenue,CAHD,South Glos Users in South Glos Homes,Permanent Nursing,Fairview Court,662.24, 22-Oct-2019
1173,Revenue,CAHD,South Glos Users in South Glos Homes,Permanent Nursing,Fairview Court,662.24, 22-Oct-2019
1174,Revenue,CAHD,South Glos Users in South Glos Homes,Permanent Nursing,Fairview Court,662.24, 22-Oct-2019
1175,Revenue,CAHD,South Glos Users in South Glos Homes,Permanent Nursing,Fairview Court,662.24, 22-Oct-2019
1176,Revenue,CAHD,South Glos Users in South Glos Homes,Permanent Nursing,Fairview Court,662.24, 22-Oct-2019
1177,Revenue,CAHD,South Glos Users in South Glos Homes,Permanent Nursing,Fairview Court,662.24, 22-Oct-2019
1178,Revenue,CAHD,South - Bed Purchasing and Direct payments,Permanent Nursing,Fairview Court,3810.56, 22-Oct-2019
1179,Revenue,CAHD,South Glos Users in South Glos Homes,Permanent Nursing,Fairview Court,662.24, 22-Oct-2019
1180,Revenue,CAHD,South Glos Users in South Glos Homes,Permanent Nursing,Fairview Court,662.24, 22-Oct-2019
1181,Revenue,CAHD,South Glos Users in South Glos Homes,Permanent Nursing,Fairview Court,662.24, 22-Oct-2019
1182,Revenue,CAHD,South Glos Users in South Glos Homes,Permanent Nursing,Fairview Court,662.24, 22-Oct-2019
1183,Revenue,CAHD,South Glos Users in South Glos Homes,Permanent Nursing,Fairview Court,662.24, 22-Oct-2019
1184,Revenue,CAHD,South Glos Users in South Glos Homes,Permanent Nursing,Fairview Court,662.24, 22-Oct-2019
1185,Revenue,CAHD,North - bed purchasing and direct  payments,Permanent Nursing,Fairview Court,3547.76, 22-Oct-2019
1186,Revenue,CAHD,South Glos Users in South Glos Homes,Permanent Nursing,Fairview Court,662.24, 22-Oct-2019
1187,Revenue,CAHD,South Glos Users in South Glos Homes,Permanent Nursing,Fairview Court,662.24, 22-Oct-2019
1188,Revenue,CAHD,South Glos Users in South Glos Homes,Permanent Nursing,Fairview Court,662.24, 22-Oct-2019
1189,Revenue,CAHD,South - Bed Purchasing and Direct payments,Permanent Residential,Fairview Court,4048.64, 22-Oct-2019
1190,Revenue,CAHD,South Glos Users in South Glos Homes,Permanent Nursing,Fairview Court,662.24, 22-Oct-2019
1191,Revenue,CAHD,South Glos Users in South Glos Homes,Permanent Nursing,Fairview Court,662.24, 22-Oct-2019
1192,Revenue,CAHD,South Glos Users in South Glos Homes,Permanent Nursing,Fairview Court,662.24, 22-Oct-2019
1193,Revenue,CAHD,North - bed purchasing and direct  payments,Permanent Residential,Fairview Court,3256.32, 22-Oct-2019
1194,Revenue,CAHD,South Glos Users in South Glos Homes,Permanent Nursing,Fairview Court,662.24, 22-Oct-2019
1195,Revenue,CAHD,South - Bed Purchasing and Direct payments,Permanent Nursing,Fairview Court,3483.68, 22-Oct-2019
1196,Revenue,CAHD,South Glos Users in South Glos Homes,Permanent Nursing,Fairview Court,662.24, 22-Oct-2019
1197,Revenue,CAHD,North - bed purchasing and direct  payments,Permanent Nursing,Fairview Court,3810.56, 22-Oct-2019
1198,Revenue,CAHD,South Glos Users in South Glos Homes,Permanent Nursing,Fairview Court,662.24, 22-Oct-2019
1199,Revenue,CAHD,South - Bed Purchasing and Direct payments,Permanent Nursing,Fairview Court,3130.36, 22-Oct-2019
1200,Revenue,CAHD,South Glos Users in South Glos Homes,Permanent Nursing,Fairview Court,662.24, 22-Oct-2019
1201,Revenue,CAHD,South - Bed Purchasing and Direct payments,Permanent Nursing,Fairview Court,3810.56, 22-Oct-2019
1202,Revenue,CAHD,South Glos Users in South Glos Homes,Permanent Nursing,Fairview Court,662.24, 22-Oct-2019
1203,Revenue,CAHD,South - Bed Purchasing and Direct payments,Permanent Nursing,Fairview Court,3547.76, 22-Oct-2019
1204,Revenue,CAHD,South Glos Users in South Glos Homes,Permanent Nursing,Fairview Court,662.24, 22-Oct-2019
1205,Revenue,CAHD,South Glos Users in South Glos Homes,Permanent Nursing,Fairview Court,662.24, 22-Oct-2019
1206,Revenue,CAHD,South - Bed Purchasing and Direct payments,Permanent Nursing,Fairview Court,3164.86, 22-Oct-2019
1207,Revenue,CAHD,South - Bed Purchasing and Direct payments,Permanent Nursing,Fairview Court,863.14, 22-Oct-2019
1208,Revenue,CAHD,South - Bed Purchasing and Direct payments,Permanent Nursing,Fairview Court,863.14, 22-Oct-2019
1209,Revenue,CAHD,South Glos Users in South Glos Homes,Permanent Nursing,Fairview Court,662.24, 22-Oct-2019
1210,Revenue,CAHD,South - S117,Permanent Residential,Fairview House,2303.52, 22-Oct-2019
1211,Revenue,CAHD,South - Bed Purchasing and Direct payments,Permanent Residential,Fairview House,2303.52, 22-Oct-2019
1212,Revenue,CAHD,North - bed purchasing and direct  payments,Permanent Residential,Fairview House,2846.72, 22-Oct-2019
1213,Revenue,CAHD,South - Bed Purchasing and Direct payments,Permanent Residential,Fairview House,2303.52, 22-Oct-2019
1214,Revenue,CAHD,South - Bed Purchasing and Direct payments,Permanent Residential,Fairview House,2230.32, 22-Oct-2019
1215,Revenue,CAHD,South - Bed Purchasing and Direct payments,Permanent Residential,Fairview House,2230.40, 22-Oct-2019
1216,Revenue,CAHD,North - bed purchasing and direct  payments,Permanent Residential,Faith House,3297.28, 22-Oct-2019
1217,Revenue,CAHD,North - bed purchasing and direct  payments,Permanent Residential,Faith House,2805.76, 22-Oct-2019
1218,Revenue,CAHD,Central - Bed Purchasing and Direct Payments,Fees & Charges Income - General,Faith House,1559.57, 22-Oct-2019
1219,Revenue,CAHD,South - Bed Purchasing and Direct payments,Permanent Residential,Faith House,2805.76, 22-Oct-2019
1220,Revenue,CAHD,South - Bed Purchasing and Direct payments,Respite Emergency - Residential,Faith House,2128.57, 22-Oct-2019
1221,Revenue,CAHD,South - Bed Purchasing and Direct payments,Permanent Residential,Faith House,2128.57, 22-Oct-2019
1222,Revenue,CAHD,South - Bed Purchasing and Direct payments,Permanent Residential,Faith House,745.00, 22-Oct-2019
1223,Revenue,CAHD,Travel to School (HTST) - Secondary,Bus & Rail Passes (not one off tickets),Faresaver Buses,633.33, 15-Oct-2019
1224,Revenue,CAHD,Post 16 High Needs Placements,Other Private Contractors,Farleigh FEC-Frome Priory,22421.57, 14-Oct-2019
1225,Revenue,CAHD,Post 16 High Needs Placements,Other Private Contractors,Farleigh FEC-Frome Priory,13390.29, 18-Oct-2019
1226,Revenue,CAHD,Discretionary Housing Payment,Other Supplies & Services,Farringtons Sales & Lettings,860.00, 09-Oct-2019
1227,Revenue,CAHD,CSC - Fostering Carer Support,Agency Staff (Admin/Support Staff) Pay,Individual,1800.00, 18-Oct-2019
1228,Revenue,CAHD,Central - Bed Purchasing and Direct Payments,Permanent Nursing,Festival House,3055.04, 22-Oct-2019
1229,Revenue,CAHD,North - bed purchasing and direct  payments,Permanent Nursing,Field House Care Home,3522.56, 22-Oct-2019
1230,Revenue,CAHD,South Glos Users in South Glos Homes,Permanent Nursing,Field House Care Home,662.24, 22-Oct-2019
1231,Revenue,CAHD,North - bed purchasing and direct  payments,Permanent Nursing,Field House Care Home,3522.56, 22-Oct-2019
1232,Revenue,CAHD,North - bed purchasing and direct  payments,Permanent Nursing,Field House Care Home,3403.60, 22-Oct-2019
1233,Revenue,CAHD,North - bed purchasing and direct  payments,Permanent Nursing,Field House Care Home,3589.48, 22-Oct-2019
1234,Revenue,CAHD,North - bed purchasing and direct  payments,Permanent Nursing,Field House Care Home,3422.52, 22-Oct-2019
1235,Revenue,CAHD,North - bed purchasing and direct  payments,Permanent Nursing,Field House Care Home,3422.52, 22-Oct-2019
1236,Revenue,CAHD,Central - Bed Purchasing and Direct Payments,Permanent Nursing,Field House Care Home,3740.00, 22-Oct-2019
1237,Revenue,CAHD,North - bed purchasing and direct  payments,Permanent Nursing,Field House Care Home,2216.32, 22-Oct-2019
1238,Revenue,CAHD,Central - Bed Purchasing and Direct Payments,Permanent Nursing,Field House Care Home,5075.71, 22-Oct-2019
1239,Revenue,CAHD,Central - Bed Purchasing and Direct Payments,Permanent Nursing,Field House Care Home,3740.00, 22-Oct-2019
1240,Revenue,CAHD,Central - Bed Purchasing and Direct Payments,Permanent Nursing,Field House Care Home,2076.57, 22-Oct-2019
1241,Revenue,CAHD,Central - Bed Purchasing and Direct Payments,Fees & Charges Income - General,Field House Care Home,1135.40, 22-Oct-2019
1242,Revenue,CAHD,Central - Bed Purchasing and Direct Payments,Fees & Charges Income - General,Field House Care Home,1339.19, 22-Oct-2019
1243,Revenue,CAHD,North - bed purchasing and direct  payments,Permanent Nursing,Field House Care Home,2216.32, 22-Oct-2019
1244,Revenue,CAHD,North - bed purchasing and direct  payments,Permanent Nursing,Field House Care Home,3506.00, 22-Oct-2019
1245,Revenue,CAHD,Central - Bed Purchasing and Direct Payments,Permanent Residential,Fieldview,3481.60, 22-Oct-2019
1246,Revenue,CAHD,North - bed purchasing and direct  payments,Permanent Residential,Fieldview,3756.44, 22-Oct-2019
1247,Revenue,CAHD,North - bed purchasing and direct  payments,Permanent Residential,Fieldview,3200.00, 22-Oct-2019
1248,Revenue,CAHD,MH Purchasing - Younger,Permanent Nursing,Fieldview,5496.52, 22-Oct-2019
1249,Revenue,CAHD,Statemented Support Payments to OLAs,Other L.A.'s - General,Filton Avenue Primary School,1131.84, 25-Oct-2019
1250,Revenue,CAHD,Statemented Support Payments to OLAs,Other L.A.'s - General,Filton Avenue Primary School,1332.27, 25-Oct-2019
1251,Revenue,CAHD,Healthy Lifestyle & Wellbeing Service,Project Funding,Filton Voice Limited,1904.00, 04-Oct-2019
1252,Revenue,CAHD,EARLY YEARS DISABILITY  ACCES FUND,Preventative Assistance,First Steps Day Nursery,615.00, 10-Oct-2019
1253,Revenue,CAHD,CSC - Agency Fostering,Foster Parent Allowances,Five Rivers Child Care Limited,2509.70, 16-Oct-2019
1254,Revenue,CAHD,CSC - Agency Fostering,Foster Parent Allowances,Five Rivers Child Care Limited,2509.70, 16-Oct-2019
1255,Revenue,CAHD,CSC - Agency Fostering,Foster Parent Allowances,Five Rivers Child Care Limited,1368.93, 16-Oct-2019
1256,Revenue,CAHD,CSC - Agency Fostering,Foster Parent Allowances,Five Rivers Child Care Limited,1368.93, 16-Oct-2019
1257,Revenue,CAHD,CSC - Agency Fostering,Foster Parent Allowances,Five Rivers Child Care Limited,3552.86, 01-Oct-2019
1258,Revenue,CAHD,CSC - Agency Fostering,Foster Parent Allowances,Five Rivers Child Care Limited,3938.57, 01-Oct-2019
1259,Revenue,CAHD,CSC - Agency Fostering,Foster Parent Allowances,Five Rivers Child Care Limited,3510.00, 01-Oct-2019
1260,Revenue,CAHD,CSC - Agency Fostering,Foster Parent Allowances,Five Rivers Child Care Limited,4152.86, 01-Oct-2019
1261,Revenue,CAHD,CSC - Agency Fostering,Foster Parent Allowances,Five Rivers Child Care Limited,3404.70, 01-Oct-2019
1262,Revenue,CAHD,CSC - Agency Fostering,Foster Parent Allowances,Five Rivers Child Care Limited,3938.57, 01-Oct-2019
1263,Revenue,CAHD,CSC - Agency Fostering,Foster Parent Allowances,Five Rivers Child Care Limited,3336.60, 01-Oct-2019
1264,Revenue,CAHD,CSC - Agency Fostering,Foster Parent Allowances,Five Rivers Child Care Limited,3336.60, 01-Oct-2019
1265,Revenue,CAHD,School Awards Ceremony,Other Supplies & Services,Flex-e-Vouchers Limited DO NOT USE,3050.00, 02-Oct-2019
1266,Revenue,CAHD,Drug and Alcohol Programme,Other Supplies & Services,Foster & Brown Research LTD,4065.00, 29-Oct-2019
1267,Revenue,CAHD,CSC - Agency Fostering,Foster Parent Allowances,Foster Care Associates Limited,4131.68, 31-Oct-2019
1268,Revenue,CAHD,CSC - Asylum Seekers - Unaccompanied,Foster Parent Allowances,Foster Care Associates Limited,2406.22, 31-Oct-2019
1269,Revenue,CAHD,CSC - Asylum Seekers - Unaccompanied,Foster Parent Allowances,Foster Care Associates Limited,3295.50, 15-Oct-2019
1270,Revenue,CAHD,CSC - Agency Fostering,Foster Parent Allowances,Foster Care Associates Limited,3526.69, 15-Oct-2019
1271,Revenue,CAHD,CSC - Parent & Child Assessments,Foster Parent Allowances,Fostering Matters Ltd,5385.58, 02-Oct-2019
1272,Revenue,CAHD,Central - Community based support,Other Small Contracts,Fourways Care Limited,318.00, 10-Oct-2019
1273,Revenue,CAHD,South - community based support,Other Small Contracts,Fourways Care Limited,873.04, 10-Oct-2019
1274,Revenue,CAHD,North - Community based support,Other Small Contracts,Fourways Care Limited,10770.64, 10-Oct-2019
1275,Revenue,CAHD,Central - Community based support,Other Small Contracts,Fourways Care Limited,318.00, 16-Oct-2019
1276,Revenue,CAHD,South - community based support,Other Small Contracts,Fourways Care Limited,871.92, 16-Oct-2019
1277,Revenue,CAHD,North - Community based support,Other Small Contracts,Fourways Care Limited,10609.60, 16-Oct-2019
1278,Revenue,CAHD,Central - Community based support,Other Small Contracts,Fourways Care Limited,318.00, 23-Oct-2019
1279,Revenue,CAHD,South - community based support,Other Small Contracts,Fourways Care Limited,892.56, 23-Oct-2019
1280,Revenue,CAHD,North - Community based support,Other Small Contracts,Fourways Care Limited,10190.56, 23-Oct-2019
1281,Revenue,CAHD,Pathway 1 - Re-Ablement Home Care,Other Small Contracts,Fourways Care Limited,1259.04, 23-Oct-2019
1282,Revenue,CAHD,Care Management Team - North,Other Employee Expenses,Freedom of Speech Limited,1470.00, 11-Oct-2019
1283,Revenue,CAHD,Supporting People Programme,Grants to Voluntary Bodies,Freeways Trust Limited,6250.18, 01-Oct-2019
1284,Revenue,CAHD,Freeways,Permanent Residential,Freeways Trust Limited,3843.16, 25-Oct-2019
1285,Revenue,CAHD,Freeways,Permanent Residential,Freeways Trust Limited,2473.28, 25-Oct-2019
1286,Revenue,CAHD,Freeways,Permanent Residential,Freeways Trust Limited,2473.28, 25-Oct-2019
1287,Revenue,CAHD,Freeways,Permanent Residential,Freeways Trust Limited,3596.56, 25-Oct-2019
1288,Revenue,CAHD,Freeways,Permanent Residential,Freeways Trust Limited,2473.28, 25-Oct-2019
1289,Revenue,CAHD,Freeways,Permanent Residential,Freeways Trust Limited,3634.92, 25-Oct-2019
1290,Revenue,CAHD,Freeways,Permanent Residential,Freeways Trust Limited,2735.12, 25-Oct-2019
1291,Revenue,CAHD,Freeways,Permanent Residential,Freeways Trust Limited,3813.56, 25-Oct-2019
1292,Revenue,CAHD,Freeways,Permanent Residential,Freeways Trust Limited,2318.08, 25-Oct-2019
1293,Revenue,CAHD,Freeways,Permanent Residential,Freeways Trust Limited,2920.08, 25-Oct-2019
1294,Revenue,CAHD,Freeways,Permanent Residential,Freeways Trust Limited,2887.48, 25-Oct-2019
1295,Revenue,CAHD,Freeways,Permanent Residential,Freeways Trust Limited,4419.72, 25-Oct-2019
1296,Revenue,CAHD,Freeways,Permanent Residential,Freeways Trust Limited,2473.28, 25-Oct-2019
1297,Revenue,CAHD,Freeways,Respite Planned - Residential,Freeways Trust Limited,1031.94, 25-Oct-2019
1298,Revenue,CAHD,Freeways,Respite Planned - Residential,Freeways Trust Limited,562.88, 25-Oct-2019
1299,Revenue,CAHD,Freeways,Respite Planned - Residential,Freeways Trust Limited,1782.44, 25-Oct-2019
1300,Revenue,CAHD,Freeways,Respite Planned - Residential,Freeways Trust Limited,562.88, 25-Oct-2019
1301,Revenue,CAHD,Freeways,Respite Planned - Residential,Freeways Trust Limited,2626.76, 25-Oct-2019
1302,Revenue,CAHD,Central - Community based support,Other Small Contracts,Freeways Trust Limited,639.20, 02-Oct-2019
1303,Revenue,CAHD,North - Community based support,Other Small Contracts,Freeways Trust Limited,846.56, 18-Oct-2019
1304,Revenue,CAHD,North - Community based support,Other Small Contracts,Freeways Trust Limited,12517.12, 18-Oct-2019
1305,Revenue,CAHD,South - community based support,Day Care / Social Activities,Freeways Trust Limited,952.38, 02-Oct-2019
1306,Revenue,CAHD,Central - Community based support,Other Small Contracts,Freeways Trust Limited,769.60, 02-Oct-2019
1307,Revenue,CAHD,South - community based support,Day Care / Social Activities,Freeways Trust Limited,538.72, 02-Oct-2019
1308,Revenue,CAHD,South - community based support,Day Care / Social Activities,Freeways Trust Limited,1115.92, 02-Oct-2019
1309,Revenue,CAHD,North - Community based support,Other Small Contracts,Freeways Trust Limited,16423.68, 31-Oct-2019
1310,Revenue,CAHD,North - Community based support,Other Small Contracts,Freeways Trust Limited,846.56, 18-Oct-2019
1311,Revenue,CAHD,Central - Community based support,Other Small Contracts,Freeways Trust Limited,769.60, 25-Oct-2019
1312,Revenue,CAHD,North - Community based support,Supported Living,Freeways Trust Ltd,845.52, 22-Oct-2019
1313,Revenue,CAHD,S28A cases,Permanent Residential,Freeways Trust Ltd,3886.64, 22-Oct-2019
1314,Revenue,CAHD,North - bed purchasing and direct  payments,Permanent Residential,Freeways Trust Ltd,3763.40, 22-Oct-2019
1315,Revenue,CAHD,South - Bed Purchasing and Direct payments,Permanent Residential,Freeways Trust Ltd,2793.86, 22-Oct-2019
1316,Revenue,CAHD,South - Bed Purchasing and Direct payments,Permanent Residential,Freeways Trust Ltd,1584.40, 22-Oct-2019
1317,Revenue,CAHD,South - Bed Purchasing and Direct payments,Permanent Residential,Freeways Trust Ltd,3961.00, 22-Oct-2019
1318,Revenue,CAHD,North - bed purchasing and direct  payments,Permanent Residential,Freeways Trust Ltd,3013.84, 22-Oct-2019
1319,Revenue,CAHD,South - Bed Purchasing and Direct payments,Permanent Residential,Freeways Trust Ltd,3175.92, 22-Oct-2019
1320,Revenue,CAHD,North - bed purchasing and direct  payments,Permanent Residential,Freeways Trust Ltd,3328.60, 22-Oct-2019
1321,Revenue,CAHD,North - bed purchasing and direct  payments,Permanent Residential,Freeways Trust Ltd,3984.12, 22-Oct-2019
1322,Revenue,CAHD,18-25 Year Olds,Permanent Residential,Freeways Trust Ltd,3680.48, 22-Oct-2019
1323,Revenue,CAHD,Section 117 Placements MH Younger,Permanent Residential,Freeways Trust Ltd,3339.04, 22-Oct-2019
1324,Revenue,CAHD,Central - Community based support,Day Care / Social Activities,Frenchay Beckspool Building,1895.60, 22-Oct-2019
1325,Revenue,CAHD,South - community based support,Day Care / Social Activities,Frenchay Beckspool Building,902.40, 22-Oct-2019
1326,Revenue,CAHD,South - community based support,Day Care / Social Activities,Frenchay Beckspool Building,640.08, 22-Oct-2019
1327,Revenue,CAHD,Pathway 3 - (Complex Beds),Permanent Nursing,Frenchay House,3343.00, 04-Oct-2019
1328,Revenue,CAHD,North - bed purchasing and direct  payments,Permanent Nursing,Frenchay Park Nursing Home,3481.60, 22-Oct-2019
1329,Revenue,CAHD,North - bed purchasing and direct  payments,Permanent Nursing,Frenchay Park Nursing Home,3520.00, 22-Oct-2019
1330,Revenue,CAHD,North - bed purchasing and direct  payments,Permanent Nursing,Frenchay Park Nursing Home,3481.60, 22-Oct-2019
1331,Revenue,CAHD,Central - Bed Purchasing and Direct Payments,Permanent Nursing,Frenchay Park Nursing Home,3400.00, 22-Oct-2019
1332,Revenue,CAHD,CSC - Social Work Team - NORTH,Agency Staff (Admin/Support Staff) Pay,Frontline Staffing Ltd,1731.23, 31-Oct-2019
1333,Revenue,CAHD,CSC - Social Work Team - NORTH,Agency Staff (Admin/Support Staff) Pay,Frontline Staffing Ltd,1871.60, 02-Oct-2019
1334,Revenue,CAHD,CSC - Social Work Team - CENTRAL,Agency Staff (Admin/Support Staff) Pay,Frontline Staffing Ltd,1497.28, 01-Oct-2019
1335,Revenue,CAHD,CSC - Social Work Team - CENTRAL,Agency Staff (Admin/Support Staff) Pay,Frontline Staffing Ltd,1871.60, 04-Oct-2019
1336,Revenue,CAHD,CSC - Social Work Team - NORTH,Agency Staff (Admin/Support Staff) Pay,Frontline Staffing Ltd,1871.60, 04-Oct-2019
1337,Revenue,CAHD,CSC - Through & Leaving Care Team,Agency Staff (Admin/Support Staff) Pay,Frontline Staffing Ltd,1731.23, 04-Oct-2019
1338,Revenue,CAHD,CSC - Social Work Team - NORTH,Agency Staff (Admin/Support Staff) Pay,Frontline Staffing Ltd,1731.23, 08-Oct-2019
1339,Revenue,CAHD,CSC - Social Work Team - NORTH,Agency Staff (Admin/Support Staff) Pay,Frontline Staffing Ltd,1731.23, 14-Oct-2019
1340,Revenue,CAHD,CSC - Social Work Team - CENTRAL,Agency Staff (Admin/Support Staff) Pay,Frontline Staffing Ltd,1871.60, 14-Oct-2019
1341,Revenue,CAHD,CSC - Social Work Team - SOUTH,Agency Staff (Admin/Support Staff) Pay,Frontline Staffing Ltd,1824.81, 14-Oct-2019
1342,Revenue,CAHD,CSC - Through & Leaving Care Team,Agency Staff (Admin/Support Staff) Pay,Frontline Staffing Ltd,1731.23, 14-Oct-2019
1343,Revenue,CAHD,CSC - Social Work Team - CENTRAL,Agency Staff (Admin/Support Staff) Pay,Frontline Staffing Ltd,1871.60, 15-Oct-2019
1344,Revenue,CAHD,CSC - Social Work Team - SOUTH,Agency Staff (Admin/Support Staff) Pay,Frontline Staffing Ltd,1848.21, 16-Oct-2019
1345,Revenue,CAHD,CSC - Social Work Team - SOUTH,Agency Staff (Admin/Support Staff) Pay,Frontline Staffing Ltd,1871.60, 15-Oct-2019
1346,Revenue,CAHD,CSC - Social Work Team - SOUTH,Agency Staff (Admin/Support Staff) Pay,Frontline Staffing Ltd,1742.93, 15-Oct-2019
1347,Revenue,CAHD,CSC - Social Work Team - CENTRAL,Agency Staff (Admin/Support Staff) Pay,Frontline Staffing Ltd,1754.63, 17-Oct-2019
1348,Revenue,CAHD,CSC - Social Work Team - CENTRAL,Agency Staff (Admin/Support Staff) Pay,Frontline Staffing Ltd,1871.60, 17-Oct-2019
1349,Revenue,CAHD,CSC - Through & Leaving Care Team,Agency Staff (Admin/Support Staff) Pay,Frontline Staffing Ltd,1731.23, 17-Oct-2019
1350,Revenue,CAHD,CSC - Social Work Team - NORTH,Agency Staff (Admin/Support Staff) Pay,Frontline Staffing Ltd,1731.23, 17-Oct-2019
1351,Revenue,CAHD,CSC - Social Work Team - CENTRAL,Agency Staff (Admin/Support Staff) Pay,Frontline Staffing Ltd,1731.23, 18-Oct-2019
1352,Revenue,CAHD,CSC - Social Work Team - NORTH,Agency Staff (Admin/Support Staff) Pay,Frontline Staffing Ltd,1871.60, 18-Oct-2019
1353,Revenue,CAHD,CSC - Social Work Team - NORTH,Agency Staff (Admin/Support Staff) Pay,Frontline Staffing Ltd,1871.60, 18-Oct-2019
1354,Revenue,CAHD,CSC - Social Work Team - CENTRAL,Agency Staff (Admin/Support Staff) Pay,Frontline Staffing Ltd,1696.14, 23-Oct-2019
1355,Revenue,CAHD,CSC - Social Work Team - NORTH,Agency Staff (Admin/Support Staff) Pay,Frontline Staffing Ltd,1731.23, 23-Oct-2019
1356,Revenue,CAHD,CSC - Social Work Team - CENTRAL,Agency Staff (Admin/Support Staff) Pay,Frontline Staffing Ltd,1871.60, 28-Oct-2019
1357,Revenue,CAHD,CSC - Social Work Team - NORTH,Agency Staff (Admin/Support Staff) Pay,Frontline Staffing Ltd,1871.60, 28-Oct-2019
1358,Revenue,CAHD,CSC - Social Work Team - SOUTH,Agency Staff (Admin/Support Staff) Pay,Frontline Staffing Ltd,1871.60, 28-Oct-2019
1359,Revenue,CAHD,CSC - Social Work Team - SOUTH,Agency Staff (Admin/Support Staff) Pay,Frontline Staffing Ltd,1871.60, 28-Oct-2019
1360,Revenue,CAHD,CSC - Social Work Team - NORTH,Agency Staff (Admin/Support Staff) Pay,Frontline Staffing Ltd,1731.23, 31-Oct-2019
1361,Revenue,CAHD,South - Bed Purchasing and Direct payments,Permanent Nursing,Fshc  1St Floor,2735.08, 22-Oct-2019
1362,Revenue,CAHD,South Glos Users in South Glos Homes,Permanent Nursing,Fshc  1St Floor,662.24, 22-Oct-2019
1363,Revenue,CAHD,South - Bed Purchasing and Direct payments,Permanent Nursing,Fshc  1St Floor,2398.00, 22-Oct-2019
1364,Revenue,CAHD,South - Bed Purchasing and Direct payments,Permanent Nursing,Fshc  1St Floor,2398.00, 22-Oct-2019
1365,Revenue,CAHD,South Glos Users in South Glos Homes,Permanent Nursing,Fshc  1St Floor,662.24, 22-Oct-2019
1366,Revenue,CAHD,South - Bed Purchasing and Direct payments,Permanent Nursing,Fshc  1St Floor,2398.00, 22-Oct-2019
1367,Revenue,CAHD,South Glos Users in South Glos Homes,Permanent Nursing,Fshc  1St Floor,662.24, 22-Oct-2019
1368,Revenue,CAHD,South - Bed Purchasing and Direct payments,Permanent Residential,Fshc  1St Floor,2462.56, 22-Oct-2019
1369,Revenue,CAHD,South Glos Users in South Glos Homes,Permanent Nursing,Fshc  1St Floor,662.24, 22-Oct-2019
1370,Revenue,CAHD,North - bed purchasing and direct  payments,Permanent Nursing,Fshc  1St Floor,2891.76, 22-Oct-2019
1371,Revenue,CAHD,South Glos Users in South Glos Homes,Permanent Nursing,Fshc  1St Floor,662.24, 22-Oct-2019
1372,Revenue,CAHD,South - Bed Purchasing and Direct payments,Permanent Nursing,Fshc  1St Floor,2662.40, 22-Oct-2019
1373,Revenue,CAHD,South Glos Users in South Glos Homes,Permanent Nursing,Fshc  1St Floor,662.24, 22-Oct-2019
1374,Revenue,CAHD,South Glos Users in South Glos Homes,Permanent Nursing,Fshc  1St Floor,662.24, 22-Oct-2019
1375,Revenue,CAHD,South Glos Users in South Glos Homes,Permanent Nursing,Fshc  1St Floor,662.24, 22-Oct-2019
1376,Revenue,CAHD,South Glos Users in South Glos Homes,Permanent Nursing,Fshc  1St Floor,662.24, 22-Oct-2019
1377,Revenue,CAHD,South - Bed Purchasing and Direct payments,Permanent Nursing,Fshc  1St Floor,2891.76, 22-Oct-2019
1378,Revenue,CAHD,South - Bed Purchasing and Direct payments,Permanent Nursing,Fshc  1St Floor,2621.44, 22-Oct-2019
1379,Revenue,CAHD,South Glos Users in South Glos Homes,Permanent Nursing,Fshc  1St Floor,662.24, 22-Oct-2019
1380,Revenue,CAHD,South Glos Users in South Glos Homes,Permanent Nursing,Fshc  1St Floor,662.24, 22-Oct-2019
1381,Revenue,CAHD,South - Bed Purchasing and Direct payments,Permanent Residential,Fshc  1St Floor,2402.28, 22-Oct-2019
1382,Revenue,CAHD,South - Bed Purchasing and Direct payments,Permanent Residential,Fshc  1St Floor,800.76, 22-Oct-2019
1383,Revenue,CAHD,South Glos Users in South Glos Homes,Permanent Nursing,Fshc  1St Floor,662.24, 22-Oct-2019
1384,Revenue,CAHD,South Glos Users in South Glos Homes,Permanent Nursing,Fshc  1St Floor,662.24, 22-Oct-2019
1385,Revenue,CAHD,South Glos Users in South Glos Homes,Permanent Nursing,Fshc  1St Floor,662.24, 22-Oct-2019
1386,Revenue,CAHD,South - Bed Purchasing and Direct payments,Permanent Nursing,Fshc  1St Floor,2867.20, 22-Oct-2019
1387,Revenue,CAHD,South - Bed Purchasing and Direct payments,Permanent Nursing,Fshc  1St Floor,6722.86, 22-Oct-2019
1388,Revenue,CAHD,South - Bed Purchasing and Direct payments,Permanent Nursing,Fshc  1St Floor,3620.00, 22-Oct-2019
1389,Revenue,CAHD,South - Bed Purchasing and Direct payments,Fees & Charges Income - General,Fshc  1St Floor,1037.12, 22-Oct-2019
1390,Revenue,CAHD,South - Bed Purchasing and Direct payments,Permanent Nursing,Fshc  1St Floor,2398.00, 22-Oct-2019
1391,Revenue,CAHD,South Glos Users in South Glos Homes,Permanent Nursing,Fshc  1St Floor,662.24, 22-Oct-2019
1392,Revenue,CAHD,South - Bed Purchasing and Direct payments,Permanent Nursing,Fshc  1St Floor,2462.56, 22-Oct-2019
1393,Revenue,CAHD,South Glos Users in South Glos Homes,Permanent Nursing,Fshc  1St Floor,662.24, 22-Oct-2019
1394,Revenue,CAHD,South - Bed Purchasing and Direct payments,Permanent Nursing,Fshc  1St Floor,2398.00, 22-Oct-2019
1395,Revenue,CAHD,South Glos Users in South Glos Homes,Permanent Nursing,Fshc  1St Floor,662.24, 22-Oct-2019
1396,Revenue,CAHD,South - Bed Purchasing and Direct payments,Permanent Nursing,Fshc  1St Floor,2398.00, 22-Oct-2019
1397,Revenue,CAHD,South Glos Users in South Glos Homes,Permanent Nursing,Fshc  1St Floor,662.24, 22-Oct-2019
1398,Revenue,CAHD,Bed Purchasing - Elderly MH - South,Permanent Residential,Fshc  1St Floor,3128.00, 22-Oct-2019
1399,Revenue,CAHD,South - Bed Purchasing and Direct payments,Permanent Nursing,Fshc  1St Floor,2398.00, 22-Oct-2019
1400,Revenue,CAHD,South Glos Users in South Glos Homes,Permanent Nursing,Fshc  1St Floor,662.24, 22-Oct-2019
1401,Revenue,CAHD,South Glos Users in South Glos Homes,Permanent Nursing,Fshc  1St Floor,662.24, 22-Oct-2019
1402,Revenue,CAHD,South - Bed Purchasing and Direct payments,Permanent Nursing,Fshc  1St Floor,3172.12, 22-Oct-2019
1403,Revenue,CAHD,South Glos Users in South Glos Homes,Permanent Nursing,Fshc  1St Floor,662.24, 22-Oct-2019
1404,Revenue,CAHD,South - Bed Purchasing and Direct payments,Permanent Nursing,Fshc  1St Floor,2933.00, 22-Oct-2019
1405,Revenue,CAHD,North - bed purchasing and direct  payments,Permanent Residential,Fshc  1St Floor,2891.76, 22-Oct-2019
1406,Revenue,CAHD,South Glos Users in South Glos Homes,Permanent Nursing,Fshc  1St Floor,662.24, 22-Oct-2019
1407,Revenue,CAHD,Central - Bed Purchasing and Direct Payments,Permanent Nursing,Fshc  1St Floor,2398.00, 22-Oct-2019
1408,Revenue,CAHD,South Glos Users in South Glos Homes,Permanent Nursing,Fshc  1St Floor,662.24, 22-Oct-2019
1409,Revenue,CAHD,Central - Bed Purchasing and Direct Payments,Permanent Nursing,Fshc  1St Floor,2398.00, 22-Oct-2019
1410,Revenue,CAHD,South Glos Users in South Glos Homes,Permanent Nursing,Fshc  1St Floor,662.24, 22-Oct-2019
1411,Revenue,CAHD,South Glos Users in South Glos Homes,Permanent Nursing,Fshc  1St Floor,662.24, 22-Oct-2019
1412,Revenue,CAHD,Central - Bed Purchasing and Direct Payments,Permanent Residential,Fshc  1St Floor,2764.80, 22-Oct-2019
1413,Revenue,CAHD,Central - Bed Purchasing and Direct Payments,Permanent Residential,Fshc  1St Floor,2764.80, 22-Oct-2019
1414,Revenue,CAHD,Central - Bed Purchasing and Direct Payments,Permanent Residential,Fshc  1St Floor,2230.32, 22-Oct-2019
1415,Revenue,CAHD,South Glos Users in South Glos Homes,Permanent Nursing,Fshc  1St Floor,662.24, 22-Oct-2019
1416,Revenue,CAHD,South Glos Users in South Glos Homes,Permanent Nursing,Fshc  1St Floor,662.24, 22-Oct-2019
1417,Revenue,CAHD,Central - Bed Purchasing and Direct Payments,Permanent Residential,Fshc  1St Floor,2768.00, 22-Oct-2019
1418,Revenue,CAHD,South Glos Users in South Glos Homes,Permanent Nursing,Fshc  1St Floor,1490.04, 22-Oct-2019
1419,Revenue,CAHD,South Glos Users in South Glos Homes,Permanent Nursing,Fshc  1St Floor,632.64, 22-Oct-2019
1420,Revenue,CAHD,South - Bed Purchasing and Direct payments,Permanent Residential,Fshc  1St Floor,2817.36, 22-Oct-2019
1421,Revenue,CAHD,North - bed purchasing and direct  payments,Permanent Nursing,Fshc  1St Floor,2398.00, 22-Oct-2019
1422,Revenue,CAHD,South Glos Users in South Glos Homes,Permanent Nursing,Fshc  1St Floor,662.24, 22-Oct-2019
1423,Revenue,CAHD,Central - Bed Purchasing and Direct Payments,Permanent Nursing,Fshc  1St Floor,2398.00, 22-Oct-2019
1424,Revenue,CAHD,South Glos Users in South Glos Homes,Permanent Nursing,Fshc  1St Floor,662.24, 22-Oct-2019
1425,Revenue,CAHD,Central - Bed Purchasing and Direct Payments,Permanent Nursing,Fshc  1St Floor,2398.00, 22-Oct-2019
1426,Revenue,CAHD,South Glos Users in South Glos Homes,Permanent Nursing,Fshc  1St Floor,662.24, 22-Oct-2019
1427,Revenue,CAHD,North - bed purchasing and direct  payments,Permanent Nursing,Fshc  1St Floor,2398.00, 22-Oct-2019
1428,Revenue,CAHD,South Glos Users in South Glos Homes,Permanent Nursing,Fshc  1St Floor,662.24, 22-Oct-2019
1429,Revenue,CAHD,North - bed purchasing and direct  payments,Permanent Nursing,Fshc  1St Floor,2398.00, 22-Oct-2019
1430,Revenue,CAHD,South Glos Users in South Glos Homes,Permanent Nursing,Fshc  1St Floor,662.24, 22-Oct-2019
1431,Revenue,CAHD,Central - Bed Purchasing and Direct Payments,Permanent Residential,Fshc  1St Floor,2768.00, 22-Oct-2019
1432,Revenue,CAHD,Central - Bed Purchasing and Direct Payments,Permanent Residential,Fshc  1St Floor,2121.92, 22-Oct-2019
1433,Revenue,CAHD,South Glos Users in South Glos Homes,Permanent Nursing,Fshc  1St Floor,662.24, 22-Oct-2019
1434,Revenue,CAHD,North - bed purchasing and direct  payments,Permanent Nursing,Fshc  1St Floor,2398.00, 22-Oct-2019
1435,Revenue,CAHD,South Glos Users in South Glos Homes,Permanent Nursing,Fshc  1St Floor,662.24, 22-Oct-2019
1436,Revenue,CAHD,North - bed purchasing and direct  payments,Permanent Nursing,Fshc  1St Floor,2398.00, 22-Oct-2019
1437,Revenue,CAHD,South Glos Users in South Glos Homes,Permanent Nursing,Fshc  1St Floor,662.24, 22-Oct-2019
1438,Revenue,CAHD,South Glos Users in South Glos Homes,Permanent Nursing,Fshc  1St Floor,662.24, 22-Oct-2019
1439,Revenue,CAHD,Central - Bed Purchasing and Direct Payments,Permanent Nursing,Fshc  1St Floor,11210.47, 22-Oct-2019
1440,Revenue,CAHD,Central - Bed Purchasing and Direct Payments,Permanent Nursing,Fshc  1St Floor,2471.60, 22-Oct-2019
1441,Revenue,CAHD,South Glos Users in South Glos Homes,Permanent Nursing,Fshc  1St Floor,662.24, 22-Oct-2019
1442,Revenue,CAHD,Central - Bed Purchasing and Direct Payments,Fees & Charges Income - General,Fshc  1St Floor,4992.00, 22-Oct-2019
1443,Revenue,CAHD,North - bed purchasing and direct  payments,Permanent Nursing,Fshc  1St Floor,2439.16, 22-Oct-2019
1444,Revenue,CAHD,South Glos Users in South Glos Homes,Permanent Nursing,Fshc  1St Floor,662.24, 22-Oct-2019
1445,Revenue,CAHD,South Glos Users in South Glos Homes,Permanent Nursing,Fshc  1St Floor,662.24, 22-Oct-2019
1446,Revenue,CAHD,Central - Bed Purchasing and Direct Payments,Permanent Nursing,Fshc  1St Floor,2366.64, 22-Oct-2019
1447,Revenue,CAHD,North - bed purchasing and direct  payments,Permanent Residential,Fshc  1St Floor,2439.16, 22-Oct-2019
1448,Revenue,CAHD,South Glos Users in South Glos Homes,Permanent Nursing,Fshc  1St Floor,662.24, 22-Oct-2019
1449,Revenue,CAHD,South Glos Users in South Glos Homes,Permanent Nursing,Fshc  1St Floor,662.24, 22-Oct-2019
1450,Revenue,CAHD,South Glos Users in South Glos Homes,Permanent Nursing,Fshc  1St Floor,662.24, 22-Oct-2019
1451,Revenue,CAHD,Central - Bed Purchasing and Direct Payments,Permanent Residential,Fshc  1St Floor,2768.00, 22-Oct-2019
1452,Revenue,CAHD,South Glos Users in South Glos Homes,Permanent Nursing,Fshc  1St Floor,662.24, 22-Oct-2019
1453,Revenue,CAHD,North - bed purchasing and direct  payments,Permanent Nursing,Fshc  1St Floor,2398.00, 22-Oct-2019
1454,Revenue,CAHD,South Glos Users in South Glos Homes,Permanent Nursing,Fshc  1St Floor,662.24, 22-Oct-2019
1455,Revenue,CAHD,South Glos Users in South Glos Homes,Permanent Nursing,Fshc  1St Floor,662.24, 22-Oct-2019
1456,Revenue,CAHD,North - S117,Permanent Nursing,Fshc  1St Floor,2470.44, 22-Oct-2019
1457,Revenue,CAHD,South Glos Users in South Glos Homes,Permanent Nursing,Fshc  1St Floor,662.24, 22-Oct-2019
1458,Revenue,CAHD,Central - Bed Purchasing and Direct Payments,Permanent Nursing,Fshc  1St Floor,2398.00, 22-Oct-2019
1459,Revenue,CAHD,South Glos Users in South Glos Homes,Permanent Nursing,Fshc  1St Floor,662.24, 22-Oct-2019
1460,Revenue,CAHD,South Glos Users in South Glos Homes,Permanent Nursing,Fshc  1St Floor,662.24, 22-Oct-2019
1461,Revenue,CAHD,South Glos Users in South Glos Homes,Permanent Nursing,Fshc  1St Floor,662.24, 22-Oct-2019
1462,Revenue,CAHD,Central - Bed Purchasing and Direct Payments,Permanent Nursing,Fshc  1St Floor,2398.00, 22-Oct-2019
1463,Revenue,CAHD,South Glos Users in South Glos Homes,Permanent Nursing,Fshc  1St Floor,662.24, 22-Oct-2019
1464,Revenue,CAHD,Central - Bed Purchasing and Direct Payments,Permanent Nursing,Fshc  1St Floor,2398.00, 22-Oct-2019
1465,Revenue,CAHD,South Glos Users in South Glos Homes,Permanent Nursing,Fshc  1St Floor,662.24, 22-Oct-2019
1466,Revenue,CAHD,South - Bed Purchasing and Direct payments,Permanent Residential,Fshc  1St Floor,4448.57, 22-Oct-2019
1467,Revenue,CAHD,South - Bed Purchasing and Direct payments,Permanent Residential,Fshc  1St Floor,2768.00, 22-Oct-2019
1468,Revenue,CAHD,Central - Bed Purchasing and Direct Payments,Permanent Nursing,Fshc  1St Floor,2311.20, 22-Oct-2019
1469,Revenue,CAHD,South Glos Users in South Glos Homes,Permanent Nursing,Fshc  1St Floor,662.24, 22-Oct-2019
1470,Revenue,CAHD,North - bed purchasing and direct  payments,Permanent Nursing,Fshc  1St Floor,2437.12, 22-Oct-2019
1471,Revenue,CAHD,South Glos Users in South Glos Homes,Permanent Nursing,Fshc  1St Floor,662.24, 22-Oct-2019
1472,Revenue,CAHD,Central - Bed Purchasing and Direct Payments,Permanent Nursing,Fshc  1St Floor,2398.00, 22-Oct-2019
1473,Revenue,CAHD,South Glos Users in South Glos Homes,Permanent Nursing,Fshc  1St Floor,662.24, 22-Oct-2019
1474,Revenue,CAHD,Central - Bed Purchasing and Direct Payments,Permanent Residential,Fshc  1St Floor,2834.44, 22-Oct-2019
1475,Revenue,CAHD,North - bed purchasing and direct  payments,Permanent Nursing,Fshc  1St Floor,2398.00, 22-Oct-2019
1476,Revenue,CAHD,South Glos Users in South Glos Homes,Permanent Nursing,Fshc  1St Floor,662.24, 22-Oct-2019
1477,Revenue,CAHD,North - bed purchasing and direct  payments,Permanent Nursing,Fshc  1St Floor,2398.00, 22-Oct-2019
1478,Revenue,CAHD,South Glos Users in South Glos Homes,Permanent Nursing,Fshc  1St Floor,662.24, 22-Oct-2019
1479,Revenue,CAHD,Central - Bed Purchasing and Direct Payments,Permanent Nursing,Fshc  1St Floor,2398.00, 22-Oct-2019
1480,Revenue,CAHD,South Glos Users in South Glos Homes,Permanent Nursing,Fshc  1St Floor,662.24, 22-Oct-2019
1481,Revenue,CAHD,South Glos Users in South Glos Homes,Permanent Nursing,Fshc  1St Floor,662.24, 22-Oct-2019
1482,Revenue,CAHD,North - bed purchasing and direct  payments,Permanent Nursing,Fshc  1St Floor,2356.60, 22-Oct-2019
1483,Revenue,CAHD,South Glos Users in South Glos Homes,Permanent Nursing,Fshc  1St Floor,662.24, 22-Oct-2019
1484,Revenue,CAHD,North - bed purchasing and direct  payments,Permanent Nursing,Fshc  1St Floor,2471.44, 22-Oct-2019
1485,Revenue,CAHD,South Glos Users in South Glos Homes,Permanent Nursing,Fshc  1St Floor,662.24, 22-Oct-2019
1486,Revenue,CAHD,Central - Bed Purchasing and Direct Payments,Permanent Nursing,Fshc  1St Floor,2486.12, 22-Oct-2019
1487,Revenue,CAHD,South Glos Users in South Glos Homes,Permanent Nursing,Fshc  1St Floor,662.24, 22-Oct-2019
1488,Revenue,CAHD,North - bed purchasing and direct  payments,Permanent Residential,Fshc  1St Floor,3400.00, 22-Oct-2019
1489,Revenue,CAHD,South Glos Users in South Glos Homes,Permanent Nursing,Fshc  1St Floor,662.24, 22-Oct-2019
1490,Revenue,CAHD,Central - Bed Purchasing and Direct Payments,Permanent Nursing,Fshc  1St Floor,3200.00, 22-Oct-2019
1491,Revenue,CAHD,South Glos Users in South Glos Homes,Permanent Nursing,Fshc  1St Floor,662.24, 22-Oct-2019
1492,Revenue,CAHD,North - bed purchasing and direct  payments,Permanent Nursing,Fshc  1St Floor,2398.00, 22-Oct-2019
1493,Revenue,CAHD,South Glos Users in South Glos Homes,Permanent Nursing,Fshc  1St Floor,662.24, 22-Oct-2019
1494,Revenue,CAHD,Central - Bed Purchasing and Direct Payments,Permanent Nursing,Fshc  1St Floor,3234.72, 22-Oct-2019
1495,Revenue,CAHD,South Glos Users in South Glos Homes,Permanent Nursing,Fshc  1St Floor,662.24, 22-Oct-2019
1496,Revenue,CAHD,Central - Bed Purchasing and Direct Payments,Permanent Nursing,Fshc  1St Floor,3472.44, 22-Oct-2019
1497,Revenue,CAHD,South Glos Users in South Glos Homes,Permanent Nursing,Fshc  1St Floor,662.24, 22-Oct-2019
1498,Revenue,CAHD,South Glos Users in South Glos Homes,Permanent Nursing,Fshc  1St Floor,662.24, 22-Oct-2019
1499,Revenue,CAHD,South Glos Users in South Glos Homes,Permanent Nursing,Fshc  1St Floor,662.24, 22-Oct-2019
1500,Revenue,CAHD,South Glos Users in South Glos Homes,Permanent Nursing,Fshc  1St Floor,662.24, 22-Oct-2019
1501,Revenue,CAHD,South Glos Users in South Glos Homes,Permanent Nursing,Fshc  1St Floor,662.24, 22-Oct-2019
1502,Revenue,CAHD,Central - Bed Purchasing and Direct Payments,Permanent Nursing,Fshc  1St Floor,2731.36, 22-Oct-2019
1503,Revenue,CAHD,South Glos Users in South Glos Homes,Permanent Nursing,Fshc  1St Floor,662.24, 22-Oct-2019
1504,Revenue,CAHD,Central - Bed Purchasing and Direct Payments,Permanent Nursing,Fshc  1St Floor,2803.48, 22-Oct-2019
1505,Revenue,CAHD,South Glos Users in South Glos Homes,Permanent Nursing,Fshc  1St Floor,662.24, 22-Oct-2019
1506,Revenue,CAHD,South Glos Users in South Glos Homes,Permanent Nursing,Fshc  1St Floor,662.24, 22-Oct-2019
1507,Revenue,CAHD,Central - Bed Purchasing and Direct Payments,Permanent Nursing,Fshc  1St Floor,2997.60, 22-Oct-2019
1508,Revenue,CAHD,South Glos Users in South Glos Homes,Permanent Nursing,Fshc  1St Floor,662.24, 22-Oct-2019
1509,Revenue,CAHD,South Glos Users in South Glos Homes,Permanent Nursing,Fshc  1St Floor,662.24, 22-Oct-2019
1510,Revenue,CAHD,Central - Bed Purchasing and Direct Payments,Permanent Nursing,Fshc  1St Floor,2833.76, 22-Oct-2019
1511,Revenue,CAHD,South Glos Users in South Glos Homes,Permanent Nursing,Fshc  1St Floor,662.24, 22-Oct-2019
1512,Revenue,CAHD,North - bed purchasing and direct  payments,Permanent Nursing,Fshc  1St Floor,2587.56, 22-Oct-2019
1513,Revenue,CAHD,South Glos Users in South Glos Homes,Permanent Nursing,Fshc  1St Floor,662.24, 22-Oct-2019
1514,Revenue,CAHD,South Glos Users in South Glos Homes,Permanent Nursing,Fshc  1St Floor,662.24, 22-Oct-2019
1515,Revenue,CAHD,South Glos Users in South Glos Homes,Permanent Nursing,Fshc  1St Floor,662.24, 22-Oct-2019
1516,Revenue,CAHD,South Glos Users in South Glos Homes,Permanent Nursing,Fshc  1St Floor,662.24, 22-Oct-2019
1517,Revenue,CAHD,South Glos Users in South Glos Homes,Permanent Nursing,Fshc  1St Floor,662.24, 22-Oct-2019
1518,Revenue,CAHD,Central - Bed Purchasing and Direct Payments,Respite Planned - Nursing,Fshc  1St Floor,3686.40, 22-Oct-2019
1519,Revenue,CAHD,South Glos Users in South Glos Homes,Permanent Nursing,Fshc  1St Floor,662.24, 22-Oct-2019
1520,Revenue,CAHD,Central - Bed Purchasing and Direct Payments,Permanent Nursing,Fshc  1St Floor,2471.44, 22-Oct-2019
1521,Revenue,CAHD,South Glos Users in South Glos Homes,Permanent Nursing,Fshc  1St Floor,662.24, 22-Oct-2019
1522,Revenue,CAHD,Central - Bed Purchasing and Direct Payments,Permanent Nursing,Fshc  1St Floor,3038.56, 22-Oct-2019
1523,Revenue,CAHD,South Glos Users in South Glos Homes,Permanent Nursing,Fshc  1St Floor,662.24, 22-Oct-2019
1524,Revenue,CAHD,North - bed purchasing and direct  payments,Permanent Nursing,Fshc  1St Floor,2834.20, 22-Oct-2019
1525,Revenue,CAHD,South Glos Users in South Glos Homes,Permanent Nursing,Fshc  1St Floor,662.24, 22-Oct-2019
1526,Revenue,CAHD,South Glos Users in South Glos Homes,Permanent Nursing,Fshc  1St Floor,662.24, 22-Oct-2019
1527,Revenue,CAHD,Central - Bed Purchasing and Direct Payments,Permanent Nursing,Fshc  1St Floor,3234.72, 22-Oct-2019
1528,Revenue,CAHD,South Glos Users in South Glos Homes,Permanent Nursing,Fshc  1St Floor,662.24, 22-Oct-2019
1529,Revenue,CAHD,North - bed purchasing and direct  payments,Permanent Nursing,Fshc  1St Floor,2515.48, 22-Oct-2019
1530,Revenue,CAHD,South Glos Users in South Glos Homes,Permanent Nursing,Fshc  1St Floor,662.24, 22-Oct-2019
1531,Revenue,CAHD,South - Bed Purchasing and Direct payments,Permanent Nursing,Fshc  1St Floor,2616.12, 22-Oct-2019
1532,Revenue,CAHD,South Glos Users in South Glos Homes,Permanent Nursing,Fshc  1St Floor,662.24, 22-Oct-2019
1533,Revenue,CAHD,Central - Bed Purchasing and Direct Payments,Permanent Nursing,Fshc  1St Floor,2471.44, 22-Oct-2019
1534,Revenue,CAHD,South Glos Users in South Glos Homes,Permanent Nursing,Fshc  1St Floor,662.24, 22-Oct-2019
1535,Revenue,CAHD,South Glos Users in South Glos Homes,Permanent Nursing,Fshc  1St Floor,3378.24, 22-Oct-2019
1536,Revenue,CAHD,South - Bed Purchasing and Direct payments,Permanent Nursing,Fshc  1St Floor,3243.36, 22-Oct-2019
1537,Revenue,CAHD,South Glos Users in South Glos Homes,Permanent Nursing,Fshc  1St Floor,662.24, 22-Oct-2019
1538,Revenue,CAHD,South - Bed Purchasing and Direct payments,Permanent Nursing,Fshc  1St Floor,2608.68, 22-Oct-2019
1539,Revenue,CAHD,South Glos Users in South Glos Homes,Permanent Nursing,Fshc  1St Floor,662.24, 22-Oct-2019
1540,Revenue,CAHD,South - Bed Purchasing and Direct payments,Permanent Nursing,Fshc  1St Floor,2504.28, 22-Oct-2019
1541,Revenue,CAHD,South Glos Users in South Glos Homes,Permanent Nursing,Fshc  1St Floor,662.24, 22-Oct-2019
1542,Revenue,CAHD,South Glos Users in South Glos Homes,Permanent Nursing,Fshc  1St Floor,662.24, 22-Oct-2019
1543,Revenue,CAHD,South - Bed Purchasing and Direct payments,Permanent Residential,Fshc  1St Floor,2662.40, 22-Oct-2019
1544,Revenue,CAHD,South Glos Users in South Glos Homes,Permanent Nursing,Fshc  1St Floor,662.24, 22-Oct-2019
1545,Revenue,CAHD,South Glos Users in South Glos Homes,Permanent Nursing,Fshc  1St Floor,662.24, 22-Oct-2019
1546,Revenue,CAHD,South - Bed Purchasing and Direct payments,Permanent Residential,Fshc  1St Floor,2399.96, 22-Oct-2019
1547,Revenue,CAHD,South Glos Users in South Glos Homes,Permanent Nursing,Fshc  1St Floor,662.24, 22-Oct-2019
1548,Revenue,CAHD,South Glos Users in South Glos Homes,Permanent Nursing,Fshc  1St Floor,662.24, 22-Oct-2019
1549,Revenue,CAHD,South Glos Users in South Glos Homes,Permanent Nursing,Fshc  1St Floor,662.24, 22-Oct-2019
1550,Revenue,CAHD,South - Bed Purchasing and Direct payments,Permanent Nursing,Fshc  1St Floor,2398.00, 22-Oct-2019
1551,Revenue,CAHD,South Glos Users in South Glos Homes,Permanent Nursing,Fshc  1St Floor,662.24, 22-Oct-2019
1552,Revenue,CAHD,South - Bed Purchasing and Direct payments,Permanent Residential,Fshc  1St Floor,2303.60, 22-Oct-2019
1553,Revenue,CAHD,South - Bed Purchasing and Direct payments,Permanent Nursing,Fshc  1St Floor,2287.36, 22-Oct-2019
1554,Revenue,CAHD,South - S117,Permanent Nursing,Fshc  1St Floor,2287.36, 22-Oct-2019
1555,Revenue,CAHD,South - Bed Purchasing and Direct payments,Permanent Nursing,Fshc  1St Floor,3593.88, 22-Oct-2019
1556,Revenue,CAHD,North - bed purchasing and direct  payments,Permanent Nursing,Fshc  1St Floor,2287.36, 22-Oct-2019
1557,Revenue,CAHD,North - bed purchasing and direct  payments,Permanent Nursing,Fshc  1St Floor,3234.72, 22-Oct-2019
1558,Revenue,CAHD,South - Bed Purchasing and Direct payments,Permanent Nursing,Fshc  1St Floor,2287.36, 22-Oct-2019
1559,Revenue,CAHD,South - Bed Purchasing and Direct payments,Permanent Residential,Fshc  1St Floor,3744.04, 22-Oct-2019
1560,Revenue,CAHD,North - bed purchasing and direct  payments,Permanent Nursing,Fshc  1St Floor,2401.84, 22-Oct-2019
1561,Revenue,CAHD,North - bed purchasing and direct  payments,Permanent Residential,Fshc  1St Floor,12268.70, 22-Oct-2019
1562,Revenue,CAHD,North - bed purchasing and direct  payments,Permanent Residential,Fshc  1St Floor,2174.20, 22-Oct-2019
1563,Revenue,CAHD,North - bed purchasing and direct  payments,Fees & Charges Income - General,Fshc  1St Floor,4116.76, 22-Oct-2019
1564,Revenue,CAHD,North - bed purchasing and direct  payments,Respite Planned - Residential,Fshc  1St Floor,2484.80, 22-Oct-2019
1565,Revenue,CAHD,North - bed purchasing and direct  payments,Respite Planned - Residential,Fshc  1St Floor,2018.90, 22-Oct-2019
1566,Revenue,CAHD,Central - Bed Purchasing and Direct Payments,Permanent Nursing,Fshc  1St Floor,4173.84, 22-Oct-2019
1567,Revenue,CAHD,North - bed purchasing and direct  payments,Permanent Residential,Fshc  1St Floor,2273.28, 22-Oct-2019
1568,Revenue,CAHD,North - bed purchasing and direct  payments,Permanent Nursing,Fshc  1St Floor,2657.80, 22-Oct-2019
1569,Revenue,CAHD,CSC - Agency Fostering,Foster Parent Allowances,Fusion Fostering Ltd,4600.85, 31-Oct-2019
1570,Revenue,CAHD,CSC - Asylum Seekers - Unaccompanied,Adults - Family Support,Fusion Independence Limited,3214.28, 02-Oct-2019
1571,Revenue,CAHD,CSC - Vinney Green Secure Unit,External Lecturers Fees,Future Sports Development,585.00, 18-Oct-2019
1572,Revenue,CAHD,CSC - Age Related Allowances,Foster Parent Allowances,Individual,500.57, 25-Oct-2019
1573,Revenue,CAHD,CSC - Corporate Parenting Manager,Agency Staff (Admin/Support Staff) Pay,Gatenby Sanderson Limited,2900.00, 11-Oct-2019
1574,Revenue,CAHD,CSC - Ofsted Work,Consultants Fees,Gatenby Sanderson Limited,2900.00, 16-Oct-2019
1575,Revenue,CAHD,CSC - Ofsted Work,Consultants Fees,Gatenby Sanderson Limited,2900.00, 16-Oct-2019
1576,Revenue,CAHD,Alexandra Way,Premises Maintenance by Contractor,Individual,2550.00, 23-Oct-2019
1577,Revenue,CAHD,MH Purchasing - Younger,Permanent Residential,Gladstone House,9917.46, 22-Oct-2019
1578,Revenue,CAHD,MH Purchasing - Younger,Fees & Charges Income - General,Gladstone House,961.54, 22-Oct-2019
1579,Revenue,CAHD,MH Purchasing - Younger,Fees & Charges Income - General,Gladstone House,1124.26, 22-Oct-2019
1580,Revenue,CAHD,South - Bed Purchasing and Direct payments,Permanent Residential,Gladstone House,5999.84, 22-Oct-2019
1581,Revenue,CAHD,Jointly Funded H&SC Packages,Permanent Residential,Gladstone House,783.98, 22-Oct-2019
1582,Revenue,CAHD,MH Purchasing - Younger,Permanent Residential,Gladstone House,3135.90, 22-Oct-2019
1583,Revenue,CAHD,North - bed purchasing and direct  payments,Permanent Residential,Glan Y Felin,6803.40, 22-Oct-2019
1584,Revenue,CAHD,South - Bed Purchasing and Direct payments,Permanent Residential,Glasallt Fawr,5344.40, 22-Oct-2019
1585,Revenue,CAHD,North - bed purchasing and direct  payments,Permanent Nursing,Glebe House Nursing Home,3664.16, 22-Oct-2019
1586,Revenue,CAHD,South Glos Users in South Glos Homes,Permanent Nursing,Glebe House Nursing Home,662.24, 22-Oct-2019
1587,Revenue,CAHD,North - bed purchasing and direct  payments,Permanent Nursing,Glebe House Nursing Home,3973.12, 22-Oct-2019
1588,Revenue,CAHD,South Glos Users in South Glos Homes,Permanent Nursing,Glebe House Nursing Home,662.24, 22-Oct-2019
1589,Revenue,CAHD,South Glos Users in South Glos Homes,Permanent Nursing,Glebe House Nursing Home,662.24, 22-Oct-2019
1590,Revenue,CAHD,South Glos Users in South Glos Homes,Permanent Nursing,Glebe House Nursing Home,662.24, 22-Oct-2019
1591,Revenue,CAHD,South Glos Users in South Glos Homes,Permanent Nursing,Glebe House Nursing Home,662.24, 22-Oct-2019
1592,Revenue,CAHD,South Glos Users in South Glos Homes,Permanent Nursing,Glebe House Nursing Home,662.24, 22-Oct-2019
1593,Revenue,CAHD,North - bed purchasing and direct  payments,Permanent Residential,Glebe House Nursing Home,3785.04, 22-Oct-2019
1594,Revenue,CAHD,South Glos Users in South Glos Homes,Permanent Nursing,Glebe House Nursing Home,662.24, 22-Oct-2019
1595,Revenue,CAHD,North - bed purchasing and direct  payments,Permanent Residential,Glebe House Nursing Home,3833.84, 22-Oct-2019
1596,Revenue,CAHD,North - bed purchasing and direct  payments,Permanent Nursing,Glebe House Nursing Home,4080.00, 22-Oct-2019
1597,Revenue,CAHD,South Glos Users in South Glos Homes,Permanent Nursing,Glebe House Nursing Home,662.24, 22-Oct-2019
1598,Revenue,CAHD,South Glos Users in South Glos Homes,Permanent Nursing,Glebe House Nursing Home,662.24, 22-Oct-2019
1599,Revenue,CAHD,North - bed purchasing and direct  payments,Permanent Nursing,Glebe House Nursing Home,4048.60, 22-Oct-2019
1600,Revenue,CAHD,South Glos Users in South Glos Homes,Permanent Nursing,Glebe House Nursing Home,662.24, 22-Oct-2019
1601,Revenue,CAHD,South Glos Users in South Glos Homes,Permanent Nursing,Glebe House Nursing Home,662.24, 22-Oct-2019
1602,Revenue,CAHD,South Glos Users in South Glos Homes,Permanent Nursing,Glebe House Nursing Home,662.24, 22-Oct-2019
1603,Revenue,CAHD,North - bed purchasing and direct  payments,Permanent Nursing,Glebe House Nursing Home,3960.16, 22-Oct-2019
1604,Revenue,CAHD,South Glos Users in South Glos Homes,Permanent Nursing,Glebe House Nursing Home,662.24, 22-Oct-2019
1605,Revenue,CAHD,South Glos Users in South Glos Homes,Permanent Nursing,Glebe House Nursing Home,662.24, 22-Oct-2019
1606,Revenue,CAHD,South Glos Users in South Glos Homes,Permanent Nursing,Glebe House Nursing Home,662.24, 22-Oct-2019
1607,Revenue,CAHD,North - bed purchasing and direct  payments,Permanent Nursing,Glebe House Nursing Home,3760.00, 22-Oct-2019
1608,Revenue,CAHD,South Glos Users in South Glos Homes,Permanent Nursing,Glebe House Nursing Home,662.24, 22-Oct-2019
1609,Revenue,CAHD,North - bed purchasing and direct  payments,Permanent Nursing,Glebe House Nursing Home,3502.08, 22-Oct-2019
1610,Revenue,CAHD,South Glos Users in South Glos Homes,Permanent Nursing,Glebe House Nursing Home,662.24, 22-Oct-2019
1611,Revenue,CAHD,South - Bed Purchasing and Direct payments,Permanent Nursing,Glenview,2891.76, 22-Oct-2019
1612,Revenue,CAHD,North - S117,Permanent Nursing,Glenview,3301.36, 22-Oct-2019
1613,Revenue,CAHD,South - Bed Purchasing and Direct payments,Permanent Nursing,Glenview,3993.60, 22-Oct-2019
1614,Revenue,CAHD,North - bed purchasing and direct  payments,Permanent Nursing,Glenview,2891.76, 22-Oct-2019
1615,Revenue,CAHD,Training Budget - Children`s Social Serv,Training Expenses,GM Tree Training Ltd,568.90, 22-Oct-2019
1616,Revenue,CAHD,South - Bed Purchasing and Direct payments,Permanent Residential,Gordena Care Home,4018.92, 22-Oct-2019
1617,Revenue,CAHD,South - Bed Purchasing and Direct payments,Permanent Residential,Gordena Care Home,2736.12, 22-Oct-2019
1618,Revenue,CAHD,South - Bed Purchasing and Direct payments,Permanent Residential,Gordena Care Home,3895.40, 22-Oct-2019
1619,Revenue,CAHD,South - Bed Purchasing and Direct payments,Permanent Residential,Gordena Care Home,3907.28, 22-Oct-2019
1620,Revenue,CAHD,South - Bed Purchasing and Direct payments,Permanent Residential,Gordena Care Limited,5105.52, 22-Oct-2019
1621,Revenue,CAHD,S28A cases,Permanent Residential,Gordena Care Limited,4965.36, 22-Oct-2019
1622,Revenue,CAHD,North - bed purchasing and direct  payments,Permanent Residential,Gordena Care Limited,5175.04, 22-Oct-2019
1623,Revenue,CAHD,Central - Bed Purchasing and Direct Payments,Permanent Residential,Grace Care Centre,4915.20, 22-Oct-2019
1624,Revenue,CAHD,North - bed purchasing and direct  payments,Permanent Residential,Grace Care Centre,4800.00, 22-Oct-2019
1625,Revenue,CAHD,North - bed purchasing and direct  payments,Permanent Residential,Grace Care Centre,5160.00, 22-Oct-2019
1626,Revenue,CAHD,South - Bed Purchasing and Direct payments,Permanent Nursing,Gracefields Nursing Home,3761.76, 22-Oct-2019
1627,Revenue,CAHD,South Glos Users in South Glos Homes,Permanent Nursing,Gracefields Nursing Home,662.24, 22-Oct-2019
1628,Revenue,CAHD,South Glos Users in South Glos Homes,Permanent Nursing,Gracefields Nursing Home,662.24, 22-Oct-2019
1629,Revenue,CAHD,South - Bed Purchasing and Direct payments,Permanent Nursing,Gracefields Nursing Home,3537.76, 22-Oct-2019
1630,Revenue,CAHD,South Glos Users in South Glos Homes,Permanent Nursing,Gracefields Nursing Home,662.24, 22-Oct-2019
1631,Revenue,CAHD,South - Bed Purchasing and Direct payments,Permanent Nursing,Gracefields Nursing Home,3652.12, 22-Oct-2019
1632,Revenue,CAHD,South Glos Users in South Glos Homes,Permanent Nursing,Gracefields Nursing Home,662.24, 22-Oct-2019
1633,Revenue,CAHD,South Glos Users in South Glos Homes,Permanent Nursing,Gracefields Nursing Home,662.24, 22-Oct-2019
1634,Revenue,CAHD,South Glos Users in South Glos Homes,Permanent Nursing,Gracefields Nursing Home,662.24, 22-Oct-2019
1635,Revenue,CAHD,South - Bed Purchasing and Direct payments,Permanent Nursing,Gracefields Nursing Home,3652.96, 22-Oct-2019
1636,Revenue,CAHD,South Glos Users in South Glos Homes,Permanent Nursing,Gracefields Nursing Home,662.24, 22-Oct-2019
1637,Revenue,CAHD,South Glos Users in South Glos Homes,Permanent Nursing,Gracefields Nursing Home,2801.70, 22-Oct-2019
1638,Revenue,CAHD,South - Bed Purchasing and Direct payments,Permanent Nursing,Gracefields Nursing Home,3652.96, 22-Oct-2019
1639,Revenue,CAHD,South Glos Users in South Glos Homes,Permanent Nursing,Gracefields Nursing Home,662.24, 22-Oct-2019
1640,Revenue,CAHD,South - S117,Permanent Nursing,Gracefields Nursing Home,2551.96, 22-Oct-2019
1641,Revenue,CAHD,South Glos Users in South Glos Homes,Permanent Nursing,Gracefields Nursing Home,662.24, 22-Oct-2019
1642,Revenue,CAHD,South - Bed Purchasing and Direct payments,Permanent Nursing,Gracefields Nursing Home,3229.20, 22-Oct-2019
1643,Revenue,CAHD,South Glos Users in South Glos Homes,Permanent Nursing,Gracefields Nursing Home,662.24, 22-Oct-2019
1644,Revenue,CAHD,South Glos Users in South Glos Homes,Permanent Nursing,Gracefields Nursing Home,662.24, 22-Oct-2019
1645,Revenue,CAHD,North - bed purchasing and direct  payments,Permanent Nursing,Gracefields Nursing Home,3571.04, 22-Oct-2019
1646,Revenue,CAHD,South Glos Users in South Glos Homes,Permanent Nursing,Gracefields Nursing Home,662.24, 22-Oct-2019
1647,Revenue,CAHD,South - Bed Purchasing and Direct payments,Permanent Nursing,Gracefields Nursing Home,3874.16, 22-Oct-2019
1648,Revenue,CAHD,South Glos Users in South Glos Homes,Permanent Nursing,Gracefields Nursing Home,662.24, 22-Oct-2019
1649,Revenue,CAHD,Central - Bed Purchasing and Direct Payments,Permanent Nursing,Gracefields Nursing Home,3652.96, 22-Oct-2019
1650,Revenue,CAHD,South Glos Users in South Glos Homes,Permanent Nursing,Gracefields Nursing Home,662.24, 22-Oct-2019
1651,Revenue,CAHD,South Glos Users in South Glos Homes,Permanent Nursing,Gracefields Nursing Home,677.83, 22-Oct-2019
1652,Revenue,CAHD,South Glos Users in South Glos Homes,Permanent Nursing,Gracefields Nursing Home,662.24, 22-Oct-2019
1653,Revenue,CAHD,South Glos Users in South Glos Homes,Permanent Nursing,Gracefields Nursing Home,662.24, 22-Oct-2019
1654,Revenue,CAHD,South - Bed Purchasing and Direct payments,Permanent Nursing,Gracefields Nursing Home,3652.96, 22-Oct-2019
1655,Revenue,CAHD,South Glos Users in South Glos Homes,Permanent Nursing,Gracefields Nursing Home,662.24, 22-Oct-2019
1656,Revenue,CAHD,South Glos Users in South Glos Homes,Permanent Nursing,Gracefields Nursing Home,662.24, 22-Oct-2019
1657,Revenue,CAHD,South Glos Users in South Glos Homes,Permanent Nursing,Gracefields Nursing Home,662.24, 22-Oct-2019
1658,Revenue,CAHD,South - Bed Purchasing and Direct payments,Permanent Nursing,Gracefields Nursing Home,3204.88, 22-Oct-2019
1659,Revenue,CAHD,South Glos Users in South Glos Homes,Permanent Nursing,Gracefields Nursing Home,662.24, 22-Oct-2019
1660,Revenue,CAHD,South Glos Users in South Glos Homes,Permanent Nursing,Gracefields Nursing Home,662.24, 22-Oct-2019
1661,Revenue,CAHD,South Glos Users in South Glos Homes,Permanent Nursing,Gracefields Nursing Home,662.24, 22-Oct-2019
1662,Revenue,CAHD,South - Bed Purchasing and Direct payments,Permanent Nursing,Gracefields Nursing Home,3229.20, 22-Oct-2019
1663,Revenue,CAHD,South Glos Users in South Glos Homes,Permanent Nursing,Gracefields Nursing Home,662.24, 22-Oct-2019
1664,Revenue,CAHD,South Glos Users in South Glos Homes,Permanent Nursing,Gracefields Nursing Home,662.24, 22-Oct-2019
1665,Revenue,CAHD,South Glos Users in South Glos Homes,Permanent Nursing,Gracefields Nursing Home,662.24, 22-Oct-2019
1666,Revenue,CAHD,South Glos Users in South Glos Homes,Permanent Nursing,Gracefields Nursing Home,662.24, 22-Oct-2019
1667,Revenue,CAHD,South Glos Users in South Glos Homes,Permanent Nursing,Gracefields Nursing Home,662.24, 22-Oct-2019
1668,Revenue,CAHD,South Glos Users in South Glos Homes,Permanent Nursing,Gracefields Nursing Home,662.24, 22-Oct-2019
1669,Revenue,CAHD,South Glos Users in South Glos Homes,Permanent Nursing,Gracefields Nursing Home,662.24, 22-Oct-2019
1670,Revenue,CAHD,South Glos Users in South Glos Homes,Permanent Nursing,Gracefields Nursing Home,662.24, 22-Oct-2019
1671,Revenue,CAHD,South Glos Users in South Glos Homes,Permanent Nursing,Gracefields Nursing Home,662.24, 22-Oct-2019
1672,Revenue,CAHD,South Glos Users in South Glos Homes,Permanent Nursing,Gracefields Nursing Home,662.24, 22-Oct-2019
1673,Revenue,CAHD,South Glos Users in South Glos Homes,Permanent Nursing,Gracefields Nursing Home,662.24, 22-Oct-2019
1674,Revenue,CAHD,South Glos Users in South Glos Homes,Permanent Nursing,Gracefields Nursing Home,662.24, 22-Oct-2019
1675,Revenue,CAHD,South Glos Users in South Glos Homes,Permanent Nursing,Gracefields Nursing Home,662.24, 22-Oct-2019
1676,Revenue,CAHD,South Glos Users in South Glos Homes,Permanent Nursing,Gracefields Nursing Home,662.24, 22-Oct-2019
1677,Revenue,CAHD,South - Bed Purchasing and Direct payments,Permanent Nursing,Gracefields Nursing Home,3565.76, 22-Oct-2019
1678,Revenue,CAHD,South - Bed Purchasing and Direct payments,Permanent Nursing,Gracefields Nursing Home,3481.60, 22-Oct-2019
1679,Revenue,CAHD,South Glos Users in South Glos Homes,Permanent Nursing,Gracefields Nursing Home,662.24, 22-Oct-2019
1680,Revenue,CAHD,North - bed purchasing and direct  payments,Permanent Nursing,Gracefields Nursing Home,3789.76, 22-Oct-2019
1681,Revenue,CAHD,Bed Purchasing - Southmead Hospital,Permanent Nursing,Gracefields Nursing Home,2300.93, 22-Oct-2019
1682,Revenue,CAHD,South - Bed Purchasing and Direct payments,Permanent Nursing,Gracefields Nursing Home,3652.96, 22-Oct-2019
1683,Revenue,CAHD,South - Bed Purchasing and Direct payments,Permanent Nursing,Gracefields Nursing Home,2551.96, 22-Oct-2019
1684,Revenue,CAHD,South Glos Users in South Glos Homes,Permanent Nursing,Gracefields Nursing Home,662.24, 22-Oct-2019
1685,Revenue,CAHD,South - Bed Purchasing and Direct payments,Permanent Nursing,Gracefields Nursing Home,3547.76, 22-Oct-2019
1686,Revenue,CAHD,South Glos Users in South Glos Homes,Permanent Nursing,Gracefields Nursing Home,662.24, 22-Oct-2019
1687,Revenue,CAHD,South Glos Users in South Glos Homes,Permanent Nursing,Gracefields Nursing Home,662.24, 22-Oct-2019
1688,Revenue,CAHD,South Glos Users in South Glos Homes,Permanent Nursing,Gracefields Nursing Home,662.24, 22-Oct-2019
1689,Revenue,CAHD,South Glos Users in South Glos Homes,Permanent Nursing,Gracefields Nursing Home,662.24, 22-Oct-2019
1690,Revenue,CAHD,North - bed purchasing and direct  payments,Permanent Residential,Greenacres,8014.29, 22-Oct-2019
1691,Revenue,CAHD,CSC - Residential Placements,Permanent Residential,Greenfields Adolecent Development Limited,25671.43, 30-Oct-2019
1692,Revenue,CAHD,Academy Resource Base Funding,Other Public Bodies,Greenshaw Learning Trust T/A Yate Academy,1536.62, 25-Oct-2019
1693,Revenue,CAHD,Academy Resource Base Funding,Other Public Bodies,Greenshaw Learning Trust T/A Yate Academy,1010.96, 25-Oct-2019
1694,Revenue,CAHD,Academy Resource Base Funding,Other Public Bodies,Greenshaw Learning Trust T/A Yate Academy,646.92, 25-Oct-2019
1695,Revenue,CAHD,Statemented Support Academies,Other Public Bodies,Greenshaw Learning Trust T/A Yate Academy,554.13, 25-Oct-2019
1696,Revenue,CAHD,Statemented Support Academies,Other Public Bodies,Greenshaw Learning Trust T/A Yate Academy,1072.89, 25-Oct-2019
1697,Revenue,CAHD,Statemented Support Academies,Other Public Bodies,Greenshaw Learning Trust T/A Yate Academy,707.40, 25-Oct-2019
1698,Revenue,CAHD,Statemented Support Academies,Other Public Bodies,Greenshaw Learning Trust T/A Yate Academy,1320.48, 25-Oct-2019
1699,Revenue,CAHD,Statemented Support Academies,Other Public Bodies,Greenshaw Learning Trust T/A Yate Academy,1320.48, 25-Oct-2019
1700,Revenue,CAHD,Statemented Support Academies,Other Public Bodies,Greenshaw Learning Trust T/A Yate Academy,1072.89, 25-Oct-2019
1701,Revenue,CAHD,Statemented Support Academies,Other Public Bodies,Greenshaw Learning Trust T/A Yate Academy,1072.89, 25-Oct-2019
1702,Revenue,CAHD,Statemented Support Academies,Other Public Bodies,Greenshaw Learning Trust T/A Yate Academy,837.09, 25-Oct-2019
1703,Revenue,CAHD,Statemented Support Academies,Other Public Bodies,Greenshaw Learning Trust T/A Yate Academy,801.72, 25-Oct-2019
1704,Revenue,CAHD,Statemented Support Academies,Other Public Bodies,Greenshaw Learning Trust T/A Yate Academy,742.77, 25-Oct-2019
1705,Revenue,CAHD,Statemented Support Academies,Other Public Bodies,Greenshaw Learning Trust T/A Yate Academy,825.30, 25-Oct-2019
1706,Revenue,CAHD,Statemented Support Academies,Other Public Bodies,Greenshaw Learning Trust T/A Yate Academy,778.14, 25-Oct-2019
1707,Revenue,CAHD,Statemented Support Academies,Other Public Bodies,Greenshaw Learning Trust T/A Yate Academy,541.58, 25-Oct-2019
1708,Revenue,CAHD,Statemented Support Academies,Other Public Bodies,Greenshaw Learning Trust T/A Yate Academy,860.67, 25-Oct-2019
1709,Revenue,CAHD,Statemented Support Academies,Other Public Bodies,Greenshaw Learning Trust T/A Yate Academy,624.87, 25-Oct-2019
1710,Revenue,CAHD,Statemented Support Academies,Other Public Bodies,Greenshaw Learning Trust T/A Yate Academy,554.13, 25-Oct-2019
1711,Revenue,CAHD,Statemented Support Academies,Other Public Bodies,Greenshaw Learning Trust T/A Yate Academy,624.87, 25-Oct-2019
1712,Revenue,CAHD,Academy Resource Base Funding,Other Public Bodies,Greenshaw Learning Trust T/A Yate Academy,1536.62, 25-Oct-2019
1713,Revenue,CAHD,Central - Bed Purchasing and Direct Payments,Permanent Residential,Greensleeves,2841.54, 22-Oct-2019
1714,Revenue,CAHD,Central - Bed Purchasing and Direct Payments,Fees & Charges Income - General,Greensleeves,1042.16, 22-Oct-2019
1715,Revenue,CAHD,North - S117,Permanent Residential,Grove View,7204.88, 22-Oct-2019
1716,Revenue,CAHD,South - Bed Purchasing and Direct payments,Permanent Residential,Gwendoline House,2600.00, 22-Oct-2019
1717,Revenue,CAHD,South - Bed Purchasing and Direct payments,Permanent Residential,Gwendoline House,2473.40, 22-Oct-2019
1718,Revenue,CAHD,South - Bed Purchasing and Direct payments,Permanent Residential,Gwendoline House,2600.00, 22-Oct-2019
1719,Revenue,CAHD,North - Community based support,Other Small Contracts,H F T,776.48, 18-Oct-2019
1720,Revenue,CAHD,Supporting People Programme,Grants to Voluntary Bodies,Habinteg Housing Association,694.00, 01-Oct-2019
1721,Revenue,CAHD,Mental Capacity Act / DOLS,Legal Fees,Halcyon Doctors,678.22, 15-Oct-2019
1722,Revenue,CAHD,Mental Capacity Act / DOLS,Legal Fees,Halcyon Doctors,768.00, 15-Oct-2019
1723,Revenue,CAHD,Social Lettings Agency,Fees - General,Individual,13.13, 25-Oct-2019
1724,Revenue,CAHD,Social Lettings Agency,Other Supplies & Services,Individual,577.72, 25-Oct-2019
1725,Revenue,CAHD,Early Years Inclusion Fund,Other Public Bodies,Hanham Toddlers Pre School,1400.00, 31-Oct-2019
1726,Revenue,CAHD,CSC - Care Leavers Support Costs,Personal Needs of Clients,Harwood Shropshire Rentals,840.00, 18-Oct-2019
1727,Revenue,CAHD,Home Care Monitoring (CM2000),Other Supplies & Services,HAS Technology Limited T/A CM2000,9784.38, 29-Oct-2019
1728,Revenue,CAHD,Home Care Monitoring (CM2000),Other Supplies & Services,HAS Technology Limited T/A CM2000,9691.91, 24-Oct-2019
1729,Revenue,CAHD,North - bed purchasing and direct  payments,Permanent Nursing,Hazelwood Gardens Nursing Home,2721.84, 22-Oct-2019
1730,Revenue,CAHD,North - bed purchasing and direct  payments,Permanent Nursing,Hazelwood Gardens Nursing Home,2343.48, 22-Oct-2019
1731,Revenue,CAHD,Central - Bed Purchasing and Direct Payments,Permanent Residential,Hc-One Ltd,2233.36, 22-Oct-2019
1732,Revenue,CAHD,Central - Bed Purchasing and Direct Payments,Permanent Residential,Hc-One Ltd,2277.92, 22-Oct-2019
1733,Revenue,CAHD,Central - Bed Purchasing and Direct Payments,Permanent Residential,Hc-One Ltd,2369.24, 22-Oct-2019
1734,Revenue,CAHD,Central - Bed Purchasing and Direct Payments,Permanent Nursing,Hc-One Ltd,1160.86, 22-Oct-2019
1735,Revenue,CAHD,Central - Bed Purchasing and Direct Payments,Permanent Nursing,Hc-One Ltd,1160.86, 22-Oct-2019
1736,Revenue,CAHD,North - bed purchasing and direct  payments,Respite Planned - Residential,Hc-One Ltd,2404.00, 22-Oct-2019
1737,Revenue,CAHD,North - bed purchasing and direct  payments,Respite Planned - Residential,Hc-One Ltd,601.00, 22-Oct-2019
1738,Revenue,CAHD,North - bed purchasing and direct  payments,Permanent Nursing,Hc-One Ltd,2223.20, 22-Oct-2019
1739,Revenue,CAHD,North - bed purchasing and direct  payments,Permanent Nursing,Hc-One Ltd,2737.76, 22-Oct-2019
1740,Revenue,CAHD,North - bed purchasing and direct  payments,Permanent Residential,Hc-One Ltd,2264.52, 22-Oct-2019
1741,Revenue,CAHD,North - bed purchasing and direct  payments,Permanent Nursing,Head Office,2470.80, 22-Oct-2019
1742,Revenue,CAHD,North - bed purchasing and direct  payments,Permanent Nursing,Head Office,4554.08, 22-Oct-2019
1743,Revenue,CAHD,Central - Community based support,Day Care / Social Activities,Headway Bristol,451.20, 07-Oct-2019
1744,Revenue,CAHD,Central - Community based support,Other Small Contracts,Headway Bristol,541.44, 07-Oct-2019
1745,Revenue,CAHD,South - community based support,Day Care / Social Activities,Headway Bristol,338.40, 07-Oct-2019
1746,Revenue,CAHD,South - community based support,Other Small Contracts,Headway Bristol,270.72, 07-Oct-2019
1747,Revenue,CAHD,North - Community based support,Day Care / Social Activities,Headway Bristol,67.68, 07-Oct-2019
1748,Revenue,CAHD,Younger MH non-res purchasing,Day Care / Social Activities,Headway Bristol,45.12, 07-Oct-2019
1749,Revenue,CAHD,Central - Community based support,Day Care / Social Activities,Headway Bristol,564.00, 11-Oct-2019
1750,Revenue,CAHD,Central - Community based support,Other Small Contracts,Headway Bristol,676.80, 11-Oct-2019
1751,Revenue,CAHD,South - community based support,Day Care / Social Activities,Headway Bristol,338.40, 11-Oct-2019
1752,Revenue,CAHD,South - community based support,Other Small Contracts,Headway Bristol,270.72, 11-Oct-2019
1753,Revenue,CAHD,North - Community based support,Day Care / Social Activities,Headway Bristol,67.68, 11-Oct-2019
1754,Revenue,CAHD,North - Community based support,Other Small Contracts,Headway Bristol,90.24, 11-Oct-2019
1755,Revenue,CAHD,Central - Community based support,Day Care / Social Activities,Headway Bristol,564.00, 21-Oct-2019
1756,Revenue,CAHD,Central - Community based support,Other Small Contracts,Headway Bristol,541.44, 21-Oct-2019
1757,Revenue,CAHD,South - community based support,Day Care / Social Activities,Headway Bristol,338.40, 21-Oct-2019
1758,Revenue,CAHD,South - community based support,Other Small Contracts,Headway Bristol,203.04, 21-Oct-2019
1759,Revenue,CAHD,North - Community based support,Day Care / Social Activities,Headway Bristol,67.68, 21-Oct-2019
1760,Revenue,CAHD,Younger MH non-res purchasing,Day Care / Social Activities,Headway Bristol,90.24, 21-Oct-2019
1761,Revenue,CAHD,Central - Community based support,Day Care / Social Activities,Headway Bristol,564.00, 28-Oct-2019
1762,Revenue,CAHD,Central - Community based support,Other Small Contracts,Headway Bristol,676.80, 28-Oct-2019
1763,Revenue,CAHD,South - community based support,Day Care / Social Activities,Headway Bristol,338.40, 28-Oct-2019
1764,Revenue,CAHD,South - community based support,Other Small Contracts,Headway Bristol,203.04, 28-Oct-2019
1765,Revenue,CAHD,North - Community based support,Day Care / Social Activities,Headway Bristol,67.68, 28-Oct-2019
1766,Revenue,CAHD,North - Community based support,Other Small Contracts,Headway Bristol,90.24, 28-Oct-2019
1767,Revenue,CAHD,Younger MH non-res purchasing,Day Care / Social Activities,Headway Bristol,45.12, 28-Oct-2019
1768,Revenue,CAHD,SLA Grants - Support Serv,Grants to Voluntary Bodies,Healthwatch North Somerset,56262.25, 18-Oct-2019
1769,Revenue,CAHD,S117 Placements PCT,Permanent Residential,Hesley Hall,19720.32, 22-Oct-2019
1770,Revenue,CAHD,Schools Specific Grant Income,Other Public Bodies,Hidelow Grange School,630.00, 25-Oct-2019
1771,Revenue,CAHD,Central - Bed Purchasing and Direct Payments,Permanent Residential,High Border Lodge,2142.20, 22-Oct-2019
1772,Revenue,CAHD,North - bed purchasing and direct  payments,Permanent Residential,High Border Lodge,2088.68, 22-Oct-2019
1773,Revenue,CAHD,Schools Specific Grant Income,Other Public Bodies,High School For Girls,630.00, 25-Oct-2019
1774,Revenue,CAHD,Schools Specific Grant Income,Other Public Bodies,High School For Girls,630.00, 25-Oct-2019
1775,Revenue,CAHD,18-25 Year Olds,Supported Living,Hillcairnie House,3487.72, 22-Oct-2019
1776,Revenue,CAHD,South - community based support,Supported Living,Hillcairnie House,4295.80, 22-Oct-2019
